Department Family,Entity,Payment Date,Expense Type,Expense Area,Supplier,Transaction Number,Amount,Description
BIS,Skills Funding Agency,23/12/2016,Catering Contracts,Chief Executive Office - Executive Office,WESTBURY STREET HOLDINGS,SPINVB_33732,"15,222.65",Purchase Invoice
BIS,Skills Funding Agency,23/12/2016,Course Fees,Operations Finance - Executive Office,Agency Staff Member,SCLAIM_47326,121.00,Staff Expenses Claim
BIS,Skills Funding Agency,23/12/2016,Diesel Car Mileage Passenger Supplement,Central Delivery Service - European Social Fund - Audit Compliance,Agency Staff Member,SCLAIM_47348,5.70,Staff Expenses Claim
BIS,Skills Funding Agency,23/12/2016,Diesel Car Mileage Passenger Supplement,Employer & Provider Services North West,Agency Staff Member,SCLAIM_47317,0.15,Staff Expenses Claim
BIS,Skills Funding Agency,23/12/2016,Diesel Car Mileage Passenger Supplement,Funding & Programmes - Provider Management & Intervention Central,Agency Staff Member,SCLAIM_47322,14.00,Staff Expenses Claim
BIS,Skills Funding Agency,23/12/2016,Diesel Car Mileage,Apprenticeships & Delivery Services - Executive Office,Agency Staff Member,SCLAIM_47339,110.70,Staff Expenses Claim
BIS,Skills Funding Agency,23/12/2016,Diesel Car Mileage,Central Delivery Service - European Social Fund - Audit Compliance,Agency Staff Member,SCLAIM_47308,109.80,Staff Expenses Claim
BIS,Skills Funding Agency,23/12/2016,Diesel Car Mileage,Central Delivery Service - European Social Fund - Audit Compliance,Agency Staff Member,SCLAIM_47348,234.00,Staff Expenses Claim
BIS,Skills Funding Agency,23/12/2016,Diesel Car Mileage,Central Delivery Service - Leeds,Agency Staff Member,SCLAIM_47318,117.00,Staff Expenses Claim
BIS,Skills Funding Agency,23/12/2016,Diesel Car Mileage,Central Delivery Service - Leeds,Agency Staff Member,SCLAIM_47323,191.70,Staff Expenses Claim
BIS,Skills Funding Agency,23/12/2016,Diesel Car Mileage,Employer & Provider Services North East & Yorkshire,Agency Staff Member,SCLAIM_47305,237.60,Staff Expenses Claim
BIS,Skills Funding Agency,23/12/2016,Diesel Car Mileage,Employer & Provider Services North East & Yorkshire,Agency Staff Member,SCLAIM_47306,266.40,Staff Expenses Claim
BIS,Skills Funding Agency,23/12/2016,Diesel Car Mileage,Employer & Provider Services North West,Agency Staff Member,SCLAIM_47310,291.60,Staff Expenses Claim
BIS,Skills Funding Agency,23/12/2016,Diesel Car Mileage,Employer & Provider Services North West,Agency Staff Member,SCLAIM_47317,445.50,Staff Expenses Claim
BIS,Skills Funding Agency,23/12/2016,Diesel Car Mileage,Funding & Programmes - Localism Policy Implementation,Agency Staff Member,SCLAIM_47320,150.30,Staff Expenses Claim
BIS,Skills Funding Agency,23/12/2016,Diesel Car Mileage,Funding & Programmes - Provider Management & Intervention Central,Agency Staff Member,SCLAIM_47322,557.40,Staff Expenses Claim
BIS,Skills Funding Agency,23/12/2016,Diesel Car Mileage,Funding & Programmes - Provider Management & Intervention North,Agency Staff Member,SCLAIM_47311,160.20,Staff Expenses Claim
BIS,Skills Funding Agency,23/12/2016,Diesel Car Mileage,Intervention,Agency Staff Member,SCLAIM_47332,45.90,Staff Expenses Claim
BIS,Skills Funding Agency,23/12/2016,Diesel Car Mileage,Large Companies Unit,Agency Staff Member,SCLAIM_47342,58.95,Staff Expenses Claim
BIS,Skills Funding Agency,23/12/2016,Diesel Car Mileage,National Careers & Learner Services,Agency Staff Member,SCLAIM_47327,328.50,Staff Expenses Claim
BIS,Skills Funding Agency,23/12/2016,Diesel Car Mileage,National Careers & Learner Services,Agency Staff Member,SCLAIM_47328,241.20,Staff Expenses Claim
BIS,Skills Funding Agency,23/12/2016,Diesel Car Mileage,National Careers & Learner Services,Agency Staff Member,SCLAIM_47329,73.80,Staff Expenses Claim
BIS,Skills Funding Agency,23/12/2016,Diesel Car Mileage,National Careers & Learner Services,Agency Staff Member,SCLAIM_47338,58.50,Staff Expenses Claim
BIS,Skills Funding Agency,23/12/2016,Electricity,Chief Executive Office - Executive Office,EDF ENERGY PLC,SPINVNO_3925,"12,838.36",Purchase Invoice
BIS,Skills Funding Agency,23/12/2016,Eye Tests,Central Delivery Service - London,Agency Staff Member,SCLAIM_47335,70.00,Staff Expenses Claim
BIS,Skills Funding Agency,23/12/2016,Eye Tests,National Careers & Learner Services,Agency Staff Member,SCLAIM_47312,20.00,Staff Expenses Claim
BIS,Skills Funding Agency,23/12/2016,Implementation,Apprenticeships & Delivery Services - Executive Office,THE WEB USABILITY PARTNERSHIP LTD,SPINVB_33626,"1,500.00",Purchase Invoice
BIS,Skills Funding Agency,23/12/2016,Landline Telephone Service,Operations ICT - Information & Communication Technology - Technical,BT GROUP PLC,IPINVELECT3_2190,465.16,Purchase Invoice
BIS,Skills Funding Agency,23/12/2016,Managed IT Service,Apprenticeships & Delivery Services - Executive Office,LEIDOS INNOVATIONS UK LTD,SPINVB_33681,"32,586.00",Purchase Invoice
BIS,Skills Funding Agency,23/12/2016,Managed IT Service,Apprenticeships & Delivery Services - Executive Office,SCROLL LLP,SPINVB_33650,"9,548.64",Purchase Invoice
BIS,Skills Funding Agency,23/12/2016,Managed IT Service,Apprenticeships & Delivery Services - Executive Office,SCROLL LLP,SPINVB_33692,"31,782.01",Purchase Invoice
BIS,Skills Funding Agency,23/12/2016,Managed IT Service,Operations ICT - Projects,LEIDOS INNOVATIONS UK LTD,SPINVB_33386,"4,945.39",Purchase Invoice
BIS,Skills Funding Agency,23/12/2016,Next Step Development,Main Funding,ATOS IT SERVICES UK,SPINVB_33704,"77,157.91",Purchase Invoice
BIS,Skills Funding Agency,23/12/2016,Next Step Development,Main Funding,ATOS IT SERVICES UK,SPINVB_33705,"25,307.21",Purchase Invoice
BIS,Skills Funding Agency,23/12/2016,Next Step Development,Main Funding,ATOS IT SERVICES UK,SPINVB_33706,"39,144.00",Purchase Invoice
BIS,Skills Funding Agency,23/12/2016,Next Step Development,Main Funding,ATOS IT SERVICES UK,SPINVB_33707,"25,307.21",Purchase Invoice
BIS,Skills Funding Agency,23/12/2016,Non Staff Expenses,Transformation & Corporate Strategy,Private Individual,SPINVNO_3923,41.40,Purchase Invoice
BIS,Skills Funding Agency,23/12/2016,Non Staff Expenses,Transformation & Corporate Strategy,Private Individual,SPINVNO_3924,60.05,Purchase Invoice
BIS,Skills Funding Agency,23/12/2016,Other Events,Chief Executive Office - Executive Office,CAPITA TRAVEL AND EVENTS LTD,IPINVELECT3_2192,"2,249.04",Purchase Invoice
BIS,Skills Funding Agency,23/12/2016,Other Fuel Car Mileage,Employer & Provider Services North East & Yorkshire,Agency Staff Member,SCLAIM_47313,371.25,Staff Expenses Claim
BIS,Skills Funding Agency,23/12/2016,Other Travel,Apprenticeships & Delivery Services - Executive Office,Agency Staff Member,SCLAIM_47331,52.50,Staff Expenses Claim
BIS,Skills Funding Agency,23/12/2016,Other Travel,Apprenticeships & Delivery Services - Marketing,Agency Staff Member,SCLAIM_47325,12.50,Staff Expenses Claim
BIS,Skills Funding Agency,23/12/2016,Other Travel,Central Delivery Service - European Social Fund - Audit Compliance,Agency Staff Member,SCLAIM_47308,64.70,Staff Expenses Claim
BIS,Skills Funding Agency,23/12/2016,Other Travel,Central Delivery Service - European Social Fund - Audit Compliance,Agency Staff Member,SCLAIM_47348,41.00,Staff Expenses Claim
BIS,Skills Funding Agency,23/12/2016,Other Travel,Central Delivery Service - European Social Fund - Audit Compliance,Agency Staff Member,SCLAIM_47349,40.00,Staff Expenses Claim
BIS,Skills Funding Agency,23/12/2016,Other Travel,Central Delivery Service - European Social Fund - Audit Compliance,Agency Staff Member,SCLAIM_47350,15.00,Staff Expenses Claim
BIS,Skills Funding Agency,23/12/2016,Other Travel,Central Delivery Service - Leeds,Agency Staff Member,SCLAIM_47318,20.00,Staff Expenses Claim
BIS,Skills Funding Agency,23/12/2016,Other Travel,Central Delivery Service - Leeds,Agency Staff Member,SCLAIM_47323,3.00,Staff Expenses Claim
BIS,Skills Funding Agency,23/12/2016,Other Travel,Employer & Provider Services London,Agency Staff Member,SCLAIM_47324,25.50,Staff Expenses Claim
BIS,Skills Funding Agency,23/12/2016,Other Travel,Employer & Provider Services North East & Yorkshire,Agency Staff Member,SCLAIM_47305,21.00,Staff Expenses Claim
BIS,Skills Funding Agency,23/12/2016,Other Travel,Employer & Provider Services North East & Yorkshire,Agency Staff Member,SCLAIM_47306,81.00,Staff Expenses Claim
BIS,Skills Funding Agency,23/12/2016,Other Travel,Employer & Provider Services North East & Yorkshire,Agency Staff Member,SCLAIM_47313,8.40,Staff Expenses Claim
BIS,Skills Funding Agency,23/12/2016,Other Travel,Employer & Provider Services North West,Agency Staff Member,SCLAIM_47310,88.10,Staff Expenses Claim
BIS,Skills Funding Agency,23/12/2016,Other Travel,Employer & Provider Services North West,Agency Staff Member,SCLAIM_47317,71.30,Staff Expenses Claim
BIS,Skills Funding Agency,23/12/2016,Other Travel,Funding & Programmes - Executive Office,Agency Staff Member,SCLAIM_47344,52.50,Staff Expenses Claim
BIS,Skills Funding Agency,23/12/2016,Other Travel,Funding & Programmes - Executive Office,Agency Staff Member,SCLAIM_47345,56.50,Staff Expenses Claim
BIS,Skills Funding Agency,23/12/2016,Other Travel,Funding & Programmes - Executive Office,Agency Staff Member,SCLAIM_47346,36.00,Staff Expenses Claim
BIS,Skills Funding Agency,23/12/2016,Other Travel,Funding & Programmes - Executive Office,Agency Staff Member,SCLAIM_47347,11.00,Staff Expenses Claim
BIS,Skills Funding Agency,23/12/2016,Other Travel,Funding & Programmes - Provider Management & Intervention Central,Agency Staff Member,SCLAIM_47322,6.50,Staff Expenses Claim
BIS,Skills Funding Agency,23/12/2016,Other Travel,Funding & Programmes - Provider Management & Intervention North,Agency Staff Member,SCLAIM_47311,19.00,Staff Expenses Claim
BIS,Skills Funding Agency,23/12/2016,Other Travel,Intervention,Agency Staff Member,SCLAIM_47332,11.90,Staff Expenses Claim
BIS,Skills Funding Agency,23/12/2016,Other Travel,Large Companies Unit,Agency Staff Member,SCLAIM_47340,63.69,Staff Expenses Claim
BIS,Skills Funding Agency,23/12/2016,Other Travel,Large Companies Unit,Agency Staff Member,SCLAIM_47341,33.40,Staff Expenses Claim
BIS,Skills Funding Agency,23/12/2016,Other Travel,Large Companies Unit,Agency Staff Member,SCLAIM_47342,81.79,Staff Expenses Claim
BIS,Skills Funding Agency,23/12/2016,Other Travel,National Careers & Learner Services,Agency Staff Member,SCLAIM_47327,9.10,Staff Expenses Claim
BIS,Skills Funding Agency,23/12/2016,Other Travel,National Careers & Learner Services,Agency Staff Member,SCLAIM_47328,7.10,Staff Expenses Claim
BIS,Skills Funding Agency,23/12/2016,Other Travel,National Careers & Learner Services,Agency Staff Member,SCLAIM_47329,7.10,Staff Expenses Claim
BIS,Skills Funding Agency,23/12/2016,Other Travel,National Careers & Learner Services,Agency Staff Member,SCLAIM_47338,17.50,Staff Expenses Claim
BIS,Skills Funding Agency,23/12/2016,Other Travel,Operations Finance - Executive Office,Agency Staff Member,SCLAIM_47319,8.50,Staff Expenses Claim
BIS,Skills Funding Agency,23/12/2016,Petrol Car Mileage,Apprenticeships & Delivery Services - Executive Office,Agency Staff Member,SCLAIM_47331,124.20,Staff Expenses Claim
BIS,Skills Funding Agency,23/12/2016,Petrol Car Mileage,Central Delivery Service - European Social Fund - Audit Compliance,Agency Staff Member,SCLAIM_47349,101.70,Staff Expenses Claim
BIS,Skills Funding Agency,23/12/2016,Petrol Car Mileage,Central Delivery Service - European Social Fund - Audit Compliance,Agency Staff Member,SCLAIM_47350,21.60,Staff Expenses Claim
BIS,Skills Funding Agency,23/12/2016,Petrol Car Mileage,Chief Executive Office - Communications,Agency Staff Member,SCLAIM_47303,39.60,Staff Expenses Claim
BIS,Skills Funding Agency,23/12/2016,Petrol Car Mileage,Chief Executive Office - Communications,Agency Staff Member,SCLAIM_47304,19.80,Staff Expenses Claim
BIS,Skills Funding Agency,23/12/2016,Petrol Car Mileage,Employer & Provider Services London,Agency Staff Member,SCLAIM_47324,202.50,Staff Expenses Claim
BIS,Skills Funding Agency,23/12/2016,Petrol Car Mileage,Employer & Provider Services London,Agency Staff Member,SCLAIM_47334,107.10,Staff Expenses Claim
BIS,Skills Funding Agency,23/12/2016,Petrol Car Mileage,Funding & Programmes - Executive Office,Agency Staff Member,SCLAIM_47343,72.00,Staff Expenses Claim
BIS,Skills Funding Agency,23/12/2016,Petrol Car Mileage,Funding & Programmes - Executive Office,Agency Staff Member,SCLAIM_47344,226.80,Staff Expenses Claim
BIS,Skills Funding Agency,23/12/2016,Petrol Car Mileage,Funding & Programmes - Executive Office,Agency Staff Member,SCLAIM_47345,237.60,Staff Expenses Claim
BIS,Skills Funding Agency,23/12/2016,Petrol Car Mileage,Funding & Programmes - Executive Office,Agency Staff Member,SCLAIM_47346,82.80,Staff Expenses Claim
BIS,Skills Funding Agency,23/12/2016,Petrol Car Mileage,Operations Finance - Executive Office,Agency Staff Member,SCLAIM_47330,64.80,Staff Expenses Claim
BIS,Skills Funding Agency,23/12/2016,Postage,Chief Executive Office - Executive Office,ROYAL MAIL HOLDINGS PLC,SPINVNO_3926,893.41,Purchase Invoice
BIS,Skills Funding Agency,23/12/2016,Professional Subscriptions,Operations Finance - Executive Office,Agency Staff Member,SCLAIMPRO_967,231.00,Staff Expenses Claim
BIS,Skills Funding Agency,23/12/2016,Professional Subscriptions,Operations ICT - Information & Communication Technology - Technical,Agency Staff Member,SCLAIMPRO_966,269.00,Staff Expenses Claim
BIS,Skills Funding Agency,23/12/2016,Rail Warrants & Tickets,Apprenticeships & Delivery Services - Executive Office,Agency Staff Member,SCLAIM_47316,11.80,Staff Expenses Claim
BIS,Skills Funding Agency,23/12/2016,Rail Warrants & Tickets,Apprenticeships & Delivery Services - Executive Office,Private Individual,SPINVNO_3922,37.50,Purchase Invoice
BIS,Skills Funding Agency,23/12/2016,Rail Warrants & Tickets,Apprenticeships & Delivery Services - Marketing,Agency Staff Member,SCLAIM_47325,8.80,Staff Expenses Claim
BIS,Skills Funding Agency,23/12/2016,Rail Warrants & Tickets,Central Delivery Service - Leeds,Agency Staff Member,SCLAIM_47318,28.70,Staff Expenses Claim
BIS,Skills Funding Agency,23/12/2016,Rail Warrants & Tickets,Funding & Programmes - Executive Office,Agency Staff Member,SCLAIM_47343,74.60,Staff Expenses Claim
BIS,Skills Funding Agency,23/12/2016,Rail Warrants & Tickets,Large Companies Unit,Agency Staff Member,SCLAIM_47340,27.90,Staff Expenses Claim
BIS,Skills Funding Agency,23/12/2016,Rail Warrants & Tickets,Large Companies Unit,Agency Staff Member,SCLAIM_47342,9.70,Staff Expenses Claim
BIS,Skills Funding Agency,23/12/2016,Rates,Operations Finance - Financial Management,COVENTRY CITY COUNCIL,RATES_1177,"3,181.00",Rates Demand
BIS,Skills Funding Agency,23/12/2016,Rates,Operations Finance - Financial Management,COVENTRY CITY COUNCIL,RATES_1187,"55,664.00",Rates Demand
BIS,Skills Funding Agency,23/12/2016,Rates,Operations Finance - Financial Management,COVENTRY CITY COUNCIL,RATES_1197,"5,566.00",Rates Demand
BIS,Skills Funding Agency,23/12/2016,Rates,Operations Finance - Financial Management,COVENTRY CITY COUNCIL,RATES_1207,"8,499.00",Rates Demand
BIS,Skills Funding Agency,23/12/2016,Self-Drive Car Hire,Central Delivery Service - European Social Fund - Audit Compliance,Agency Staff Member,SCLAIM_47308,132.77,Staff Expenses Claim
BIS,Skills Funding Agency,23/12/2016,Self-Drive Car Hire,Central Delivery Service - European Social Fund - Audit Compliance,Agency Staff Member,SCLAIM_47349,46.25,Staff Expenses Claim
BIS,Skills Funding Agency,23/12/2016,Self-Drive Car Hire,Large Companies Unit,Agency Staff Member,SCLAIM_47342,34.70,Staff Expenses Claim
BIS,Skills Funding Agency,23/12/2016,Self-Drive Car Hire,Transformation & Corporate Strategy,Agency Staff Member,SCLAIM_47321,28.00,Staff Expenses Claim
BIS,Skills Funding Agency,23/12/2016,Service Charges,Chief Executive Office - Executive Office,DEPARTMENT FOR BUSINESS INNOVATION & SKILLS (NEWPORT),SPINVB_33742,62.34,Purchase Invoice
BIS,Skills Funding Agency,23/12/2016,Software Maintenance & Repair,Operations ICT - Business IT - Agency Services,ORACLE CORP UK LTD,SPINVB_33628,"33,871.54",Purchase Invoice
BIS,Skills Funding Agency,23/12/2016,Software Maintenance & Repair,Operations ICT - Business IT - Citizen Services,LEIDOS INNOVATIONS UK LTD,SPINVB_33386,"3,778.21",Purchase Invoice
BIS,Skills Funding Agency,23/12/2016,Subsistence,Apprenticeships & Delivery Services - Executive Office,Agency Staff Member,SCLAIM_47339,4.50,Staff Expenses Claim
BIS,Skills Funding Agency,23/12/2016,Subsistence,Apprenticeships & Delivery Services - Executive Office,Private Individual,SPINVNO_3922,9.95,Purchase Invoice
BIS,Skills Funding Agency,23/12/2016,Subsistence,Central Delivery Service - European Social Fund - Audit Compliance,Agency Staff Member,SCLAIM_47308,17.72,Staff Expenses Claim
BIS,Skills Funding Agency,23/12/2016,Subsistence,Central Delivery Service - European Social Fund - Audit Compliance,Agency Staff Member,SCLAIM_47348,20.85,Staff Expenses Claim
BIS,Skills Funding Agency,23/12/2016,Subsistence,Central Delivery Service - European Social Fund - Audit Compliance,Agency Staff Member,SCLAIM_47349,36.00,Staff Expenses Claim
BIS,Skills Funding Agency,23/12/2016,Subsistence,Central Delivery Service - European Social Fund - Audit Compliance,Agency Staff Member,SCLAIM_47350,12.00,Staff Expenses Claim
BIS,Skills Funding Agency,23/12/2016,Subsistence,Central Delivery Service - Leeds,Agency Staff Member,SCLAIM_47318,21.15,Staff Expenses Claim
BIS,Skills Funding Agency,23/12/2016,Subsistence,Central Delivery Service - London,Agency Staff Member,SCLAIM_47333,4.70,Staff Expenses Claim
BIS,Skills Funding Agency,23/12/2016,Subsistence,Employer & Provider Services London,Agency Staff Member,SCLAIM_47309,5.00,Staff Expenses Claim
BIS,Skills Funding Agency,23/12/2016,Subsistence,Employer & Provider Services London,Agency Staff Member,SCLAIM_47324,5.00,Staff Expenses Claim
BIS,Skills Funding Agency,23/12/2016,Subsistence,Employer & Provider Services North West,Agency Staff Member,SCLAIM_47317,15.00,Staff Expenses Claim
BIS,Skills Funding Agency,23/12/2016,Subsistence,Funding & Programmes - Executive Office,Agency Staff Member,SCLAIM_47344,7.00,Staff Expenses Claim
BIS,Skills Funding Agency,23/12/2016,Subsistence,Funding & Programmes - Executive Office,Agency Staff Member,SCLAIM_47345,7.00,Staff Expenses Claim
BIS,Skills Funding Agency,23/12/2016,Subsistence,Funding & Programmes - Provider Management & Intervention Central,Agency Staff Member,SCLAIM_47322,36.63,Staff Expenses Claim
BIS,Skills Funding Agency,23/12/2016,Subsistence,Large Companies Unit,Agency Staff Member,SCLAIM_47340,5.00,Staff Expenses Claim
BIS,Skills Funding Agency,23/12/2016,Subsistence,Large Companies Unit,Agency Staff Member,SCLAIM_47341,22.38,Staff Expenses Claim
BIS,Skills Funding Agency,23/12/2016,Subsistence,Large Companies Unit,Agency Staff Member,SCLAIM_47342,100.99,Staff Expenses Claim
BIS,Skills Funding Agency,23/12/2016,Subsistence,National Careers & Learner Services,Agency Staff Member,SCLAIM_47327,32.80,Staff Expenses Claim
BIS,Skills Funding Agency,23/12/2016,Subsistence,National Careers & Learner Services,Agency Staff Member,SCLAIM_47336,58.70,Staff Expenses Claim
BIS,Skills Funding Agency,23/12/2016,Subsistence,National Careers & Learner Services,Agency Staff Member,SCLAIM_47337,99.29,Staff Expenses Claim
BIS,Skills Funding Agency,23/12/2016,Subsistence,Operations Finance - Executive Office,Agency Staff Member,SCLAIM_47307,45.33,Staff Expenses Claim
BIS,Skills Funding Agency,23/12/2016,Subsistence,Operations Finance - Executive Office,Agency Staff Member,SCLAIM_47319,35.00,Staff Expenses Claim
BIS,Skills Funding Agency,23/12/2016,Subsistence,Operations Finance - Executive Office,Agency Staff Member,SCLAIM_47330,4.50,Staff Expenses Claim
BIS,Skills Funding Agency,23/12/2016,Sundry Items,Apprenticeships & Delivery Services - Executive Office,Agency Staff Member,SCLAIM_47316,7.10,Staff Expenses Claim
BIS,Skills Funding Agency,23/12/2016,Sundry Items,Funding & Programmes - Executive Office,Agency Staff Member,SCLAIM_47347,19.90,Staff Expenses Claim
BIS,Skills Funding Agency,23/12/2016,Sundry Items,Transformation & Corporate Strategy,Agency Staff Member,SCLAIM_47321,13.00,Staff Expenses Claim
BIS,Skills Funding Agency,23/12/2016,Taxis,Apprenticeships & Delivery Services - Executive Office,Agency Staff Member,SCLAIM_47331,9.10,Staff Expenses Claim
BIS,Skills Funding Agency,23/12/2016,Taxis,Central Delivery Service - European Social Fund - Audit Compliance,Agency Staff Member,SCLAIM_47350,16.80,Staff Expenses Claim
BIS,Skills Funding Agency,23/12/2016,Taxis,Central Delivery Service - London,Agency Staff Member,SCLAIM_47333,26.50,Staff Expenses Claim
BIS,Skills Funding Agency,23/12/2016,Taxis,Employer & Provider Services London,Agency Staff Member,SCLAIM_47309,36.40,Staff Expenses Claim
BIS,Skills Funding Agency,23/12/2016,Taxis,Funding & Programmes - Localism Policy Implementation,Agency Staff Member,SCLAIM_47320,4.50,Staff Expenses Claim
BIS,Skills Funding Agency,23/12/2016,Taxis,Large Companies Unit,Agency Staff Member,SCLAIM_47340,11.80,Staff Expenses Claim
BIS,Skills Funding Agency,23/12/2016,Taxis,National Careers & Learner Services,Agency Staff Member,SCLAIM_47312,8.20,Staff Expenses Claim
BIS,Skills Funding Agency,23/12/2016,Taxis,National Careers & Learner Services,Agency Staff Member,SCLAIM_47327,54.00,Staff Expenses Claim
BIS,Skills Funding Agency,23/12/2016,Taxis,National Careers & Learner Services,Agency Staff Member,SCLAIM_47336,40.00,Staff Expenses Claim
BIS,Skills Funding Agency,23/12/2016,Taxis,National Careers & Learner Services,Agency Staff Member,SCLAIM_47337,35.00,Staff Expenses Claim
BIS,Skills Funding Agency,23/12/2016,Taxis,Operations Finance - Executive Office,Agency Staff Member,SCLAIM_47315,18.20,Staff Expenses Claim
BIS,Skills Funding Agency,23/12/2016,Taxis,Operations Finance - Executive Office,Agency Staff Member,SCLAIM_47319,4.00,Staff Expenses Claim
BIS,Skills Funding Agency,23/12/2016,Taxis,Operations Finance - Executive Office,Agency Staff Member,SCLAIM_47330,58.50,Staff Expenses Claim
BIS,Skills Funding Agency,23/12/2016,Temporary Staff,Apprenticeships & Delivery Services - Executive Office,CAPITA BUSINESS SERVICES LTD,IPINVELECT3_2193,"6,225.90",Purchase Invoice
BIS,Skills Funding Agency,23/12/2016,Temporary Staff,Apprenticeships & Delivery Services - Executive Office,HAYS SPECIALIST RECRUITMENT LTD,IPINVELECT3_2191,719.45,Purchase Invoice
BIS,Skills Funding Agency,23/12/2016,Temporary Staff,Apprenticeships & Delivery Services - Executive Office,MICHAEL PAGE INTERNATIONAL RECRUITMENT LTD,SPINVB_33714,"2,940.00",Purchase Invoice
BIS,Skills Funding Agency,23/12/2016,Temporary Staff,Apprenticeships & Delivery Services - Executive Office,SMART SOURCING PLC,SPINVB_33717,"11,977.20",Purchase Invoice
BIS,Skills Funding Agency,23/12/2016,Temporary Staff,Chief Executive Office - Executive Office,HAYS SPECIALIST RECRUITMENT LTD,IPINVELECT3_2191,"2,576.70",Purchase Invoice
BIS,Skills Funding Agency,23/12/2016,Temporary Staff,Data Science,CAPITA BUSINESS SERVICES LTD,IPINVELECT3_2193,"2,802.48",Purchase Invoice
BIS,Skills Funding Agency,23/12/2016,Temporary Staff,Data Science,HAYS SPECIALIST RECRUITMENT LTD,IPINVELECT3_2191,"3,960.00",Purchase Invoice
BIS,Skills Funding Agency,23/12/2016,Temporary Staff,Funding & Programmes - Executive Office,CAPITA BUSINESS SERVICES LTD,IPINVELECT3_2193,"12,047.40",Purchase Invoice
BIS,Skills Funding Agency,23/12/2016,Temporary Staff,Funding & Programmes - Executive Office,HAYS SPECIALIST RECRUITMENT LTD,IPINVELECT3_2191,"14,681.34",Purchase Invoice
BIS,Skills Funding Agency,23/12/2016,Temporary Staff,Operations Finance - Executive Office,HAYS SPECIALIST RECRUITMENT LTD,IPINVELECT3_2191,"2,400.00",Purchase Invoice
BIS,Skills Funding Agency,23/12/2016,Temporary Staff,Operations ICT - Information & Communication Technology - Technical,CAPITA BUSINESS SERVICES LTD,IPINVELECT3_2193,"2,639.10",Purchase Invoice
BIS,Skills Funding Agency,23/12/2016,Temporary Staff,Operations ICT - Information & Communication Technology - Technical,HAYS SPECIALIST RECRUITMENT LTD,IPINVELECT3_2191,"10,326.90",Purchase Invoice
BIS,Skills Funding Agency,23/12/2016,Temporary Staff,Operations ICT - Projects,CAPITA BUSINESS SERVICES LTD,IPINVELECT3_2193,"3,083.24",Purchase Invoice
BIS,Skills Funding Agency,23/12/2016,Temporary Staff,Transaction Unit,GOODMAN MASSON RECRUITMENT SERVICES LTD,SPINVB_33669,"2,600.16",Purchase Invoice
BIS,Skills Funding Agency,23/12/2016,Temporary Staff,Transformation & Corporate Strategy,HAYS SPECIALIST RECRUITMENT LTD,IPINVELECT3_2191,"4,180.50",Purchase Invoice
BIS,Skills Funding Agency,23/12/2016,Young People's Helpline,Main Funding,MAVERISH LTD,SPINVB_33753,941.36,Purchase Invoice
BIS,Skills Funding Agency,23/12/2016,Young People's Helpline,Main Funding,WHITESPACE EXHIBITIONS,SPINVB_33752,"5,593.20",Purchase Invoice
BIS,Skills Funding Agency,03/01/2017,Hosting,Operations ICT - Technical Design Authority,BYTES SOFTWARE SERVICES LTD,SPINVB_33749,"8,796.96",Purchase Invoice
BIS,Skills Funding Agency,03/01/2017,Professional Services,Finance Division - Accounting Services,COMPANIES HOUSE,DD_383,4.00,Purchase Invoice
BIS,Skills Funding Agency,03/01/2017,Software Maintenance & Repair,Operations ICT - Service Integration & Management,BAE SYSTEMS APPLIED INTELLIGENCE LIMITED,SPINVB_33696,"76,438.24",Purchase Invoice
BIS,Skills Funding Agency,03/01/2017,Support Services,Operations ICT - Technical Design Authority,SPECIALIST COMPUTER CENTRES PLC,SPINVB_33748,"13,348.50",Purchase Invoice
BIS,Skills Funding Agency,03/01/2017,Temporary Staff,Operations ICT - Information & Communication Technology - Technical,KELLY SERVICES UK LTD,SPINVB_33759,949.60,Purchase Invoice
BIS,Skills Funding Agency,03/01/2017,Temporary Staff,Transaction Unit,GOODMAN MASSON RECRUITMENT SERVICES LTD,SPINVB_33745,"2,600.16",Purchase Invoice
BIS,Skills Funding Agency,03/01/2017,Temporary Staff,Transformation & Corporate Strategy,PERTEMPS RECRUITMENT PARTNERSHIP LTD,SPINVB_33027,916.06,Purchase Invoice
BIS,Skills Funding Agency,03/01/2017,Temporary Staff,Transformation & Corporate Strategy,PERTEMPS RECRUITMENT PARTNERSHIP LTD,SPINVB_33316,862.86,Purchase Invoice
BIS,Skills Funding Agency,03/01/2017,Temporary Staff,Transformation & Corporate Strategy,PERTEMPS RECRUITMENT PARTNERSHIP LTD,SPINVB_33453,709.20,Purchase Invoice
BIS,Skills Funding Agency,03/01/2017,Temporary Staff,Transformation & Corporate Strategy,PERTEMPS RECRUITMENT PARTNERSHIP LTD,SPINVB_33646,892.42,Purchase Invoice
BIS,Skills Funding Agency,04/01/2017,16-18 Apprenticeship Grant for Employers - Centralised Contract Management,Main Funding,BARNET AND SOUTHGATE COLLEGE,AGER_10623,"-4,500.00",Programme System File
BIS,Skills Funding Agency,04/01/2017,16-18 Apprenticeship Grant for Employers - Centralised Contract Management,Main Funding,BARNET AND SOUTHGATE COLLEGE,AGER_11416,"-1,500.00",Programme System File
BIS,Skills Funding Agency,04/01/2017,16-18 Apprenticeship Grant for Employers - Centralised Contract Management,Main Funding,BARNET AND SOUTHGATE COLLEGE,AGER_9448,"4,500.00",Programme System File
BIS,Skills Funding Agency,04/01/2017,16-18 Apprenticeship Grant for Employers,Main Funding,BARNET AND SOUTHGATE COLLEGE,NUPS16_6665,"-1,500.00",Programme Template
BIS,Skills Funding Agency,04/01/2017,16-18 Apprenticeships - Centralised Contract Management,Main Funding,BARNET AND SOUTHGATE COLLEGE,AP16R_17471,"17,957.25",Programme System File
BIS,Skills Funding Agency,04/01/2017,16-18 Apprenticeships - Centralised Contract Management,Main Funding,BARNET AND SOUTHGATE COLLEGE,AP16R_18819,"61,064.17",Programme System File
BIS,Skills Funding Agency,04/01/2017,16-18 Apprenticeships - Centralised Contract Management,Main Funding,BARNET AND SOUTHGATE COLLEGE,AP16R_19687,"71,502.36",Programme System File
BIS,Skills Funding Agency,04/01/2017,16-18 Apprenticeships Trailblazers,Main Funding,BARNET AND SOUTHGATE COLLEGE,AP16R_17477,"4,000.00",Programme System File
BIS,Skills Funding Agency,04/01/2017,16-18 Apprenticeships Trailblazers,Main Funding,BARNET AND SOUTHGATE COLLEGE,AP16R_18830,"1,600.00",Programme System File
BIS,Skills Funding Agency,04/01/2017,16-18 Apprenticeships Trailblazers,Main Funding,BARNET AND SOUTHGATE COLLEGE,AP16R_19336,400.00,Programme System File
BIS,Skills Funding Agency,04/01/2017,19-23 Apprenticeships Colleges - Centralised Contract Management,Main Funding,BARNET AND SOUTHGATE COLLEGE,AACOP_1429,"121,924.00",Programme System File
BIS,Skills Funding Agency,04/01/2017,19-23 Apprenticeships Colleges - Centralised Contract Management,Main Funding,BARNET AND SOUTHGATE COLLEGE,AACOP_1805,"91,771.00",Programme System File
BIS,Skills Funding Agency,04/01/2017,19-24 Apprenticeship Grant for Employers - Centralised Contract Management,Main Funding,BARNET AND SOUTHGATE COLLEGE,AGER_10219,"1,500.00",Programme System File
BIS,Skills Funding Agency,04/01/2017,19-24 Apprenticeship Grant for Employers - Centralised Contract Management,Main Funding,BARNET AND SOUTHGATE COLLEGE,AGER_10831,"1,500.00",Programme System File
BIS,Skills Funding Agency,04/01/2017,Adult Education Budget Colleges,Main Funding,BARNET AND SOUTHGATE COLLEGE,AECOP_1404,"893,055.00",Programme System File
BIS,Skills Funding Agency,04/01/2017,Adult Education Budget Colleges,Main Funding,BARNET AND SOUTHGATE COLLEGE,AECOP_1781,"717,723.00",Programme System File
BIS,Skills Funding Agency,04/01/2017,Books,Central Delivery Service - London,Agency Staff Member,SCLAIM_47376,20.00,Staff Expenses Claim
BIS,Skills Funding Agency,04/01/2017,Books,Central Delivery Service - London,Agency Staff Member,SCLAIM_47377,20.00,Staff Expenses Claim
BIS,Skills Funding Agency,04/01/2017,Catering Contracts,Chief Executive Office - Executive Office,DEPARTMENT FOR BUSINESS INNOVATION & SKILLS (NEWPORT),SPINVB_33743,"1,121.40",Purchase Invoice
BIS,Skills Funding Agency,04/01/2017,Catering Contracts,Chief Executive Office - Executive Office,WESTBURY STREET HOLDINGS,SPINVB_33733,"11,331.31",Purchase Invoice
BIS,Skills Funding Agency,04/01/2017,Catering Contracts,Chief Executive Office - Executive Office,WESTBURY STREET HOLDINGS,SPINVB_33734,40.82,Purchase Invoice
BIS,Skills Funding Agency,04/01/2017,Catering Contracts,Chief Executive Office - Executive Office,WESTBURY STREET HOLDINGS,SPINVB_33735,54.43,Purchase Invoice
BIS,Skills Funding Agency,04/01/2017,Diesel Car Mileage Passenger Supplement,Funding & Programmes - Provider Management & Intervention South,Agency Staff Member,SCLAIM_47387,0.45,Staff Expenses Claim
BIS,Skills Funding Agency,04/01/2017,Diesel Car Mileage,Apprenticeships & Delivery Services - Apprenticeships & Employer Policy Implementation,Agency Staff Member,SCLAIM_47355,126.90,Staff Expenses Claim
BIS,Skills Funding Agency,04/01/2017,Diesel Car Mileage,Apprenticeships & Delivery Services - Executive Office,Agency Staff Member,SCLAIM_47352,106.20,Staff Expenses Claim
BIS,Skills Funding Agency,04/01/2017,Diesel Car Mileage,Apprenticeships & Delivery Services - Executive Office,Agency Staff Member,SCLAIM_47353,240.30,Staff Expenses Claim
BIS,Skills Funding Agency,04/01/2017,Diesel Car Mileage,Apprenticeships & Delivery Services - Executive Office,Agency Staff Member,SCLAIM_47354,189.90,Staff Expenses Claim
BIS,Skills Funding Agency,04/01/2017,Diesel Car Mileage,Apprenticeships & Delivery Services - Executive Office,Agency Staff Member,SCLAIM_47363,157.50,Staff Expenses Claim
BIS,Skills Funding Agency,04/01/2017,Diesel Car Mileage,Apprenticeships & Delivery Services - Executive Office,Agency Staff Member,SCLAIM_47369,236.25,Staff Expenses Claim
BIS,Skills Funding Agency,04/01/2017,Diesel Car Mileage,Central Delivery Service - European Social Fund - Audit Compliance,Agency Staff Member,SCLAIM_47371,2.70,Staff Expenses Claim
BIS,Skills Funding Agency,04/01/2017,Diesel Car Mileage,Central Delivery Service - Leeds,Agency Staff Member,SCLAIM_47378,16.20,Staff Expenses Claim
BIS,Skills Funding Agency,04/01/2017,Diesel Car Mileage,Central Delivery Service - Leeds,Agency Staff Member,SCLAIM_47382,80.00,Staff Expenses Claim
BIS,Skills Funding Agency,04/01/2017,Diesel Car Mileage,Finance Division - Provider Finance,Agency Staff Member,SCLAIM_47351,62.10,Staff Expenses Claim
BIS,Skills Funding Agency,04/01/2017,Diesel Car Mileage,Funding & Programmes - Executive Office,Agency Staff Member,SCLAIM_47373,18.90,Staff Expenses Claim
BIS,Skills Funding Agency,04/01/2017,Diesel Car Mileage,Funding & Programmes - Executive Office,Agency Staff Member,SCLAIM_47374,16.20,Staff Expenses Claim
BIS,Skills Funding Agency,04/01/2017,Diesel Car Mileage,Funding & Programmes - Funding Policy Implementation Programmes,Agency Staff Member,SCLAIM_47380,85.50,Staff Expenses Claim
BIS,Skills Funding Agency,04/01/2017,Diesel Car Mileage,Funding & Programmes - Funding Policy Implementation Programmes,Agency Staff Member,SCLAIM_47381,170.10,Staff Expenses Claim
BIS,Skills Funding Agency,04/01/2017,Diesel Car Mileage,Funding & Programmes - Provider Management & Intervention South,Agency Staff Member,SCLAIM_47387,184.50,Staff Expenses Claim
BIS,Skills Funding Agency,04/01/2017,Diesel Car Mileage,Funding & Programmes - Provider Management & Intervention South,Agency Staff Member,SCLAIM_47393,308.25,Staff Expenses Claim
BIS,Skills Funding Agency,04/01/2017,Diesel Car Mileage,Large Companies Unit,Agency Staff Member,SCLAIM_47358,70.20,Staff Expenses Claim
BIS,Skills Funding Agency,04/01/2017,Diesel Car Mileage,Large Companies Unit,Agency Staff Member,SCLAIM_47361,94.05,Staff Expenses Claim
BIS,Skills Funding Agency,04/01/2017,Diesel Car Mileage,National Careers & Learner Services,Agency Staff Member,SCLAIM_47390,81.90,Staff Expenses Claim
BIS,Skills Funding Agency,04/01/2017,Diesel Car Mileage,Operations Finance - Executive Office,Agency Staff Member,SCLAIM_47391,166.50,Staff Expenses Claim
BIS,Skills Funding Agency,04/01/2017,Diesel Car Mileage,Operations Finance - Executive Office,Agency Staff Member,SCLAIM_47394,10.80,Staff Expenses Claim
BIS,Skills Funding Agency,04/01/2017,Eye Tests,Apprenticeships & Delivery Services - Apprenticeships & Employer Policy Implementation,Agency Staff Member,SCLAIM_47355,60.00,Staff Expenses Claim
BIS,Skills Funding Agency,04/01/2017,Life Long Learning Accounts,Main Funding,KINDRED AGENCY LIMITED,SPINVB_33754,"9,576.00",Purchase Invoice
BIS,Skills Funding Agency,04/01/2017,Managed IT Service,Funding & Programmes - Executive Office,DIGI2AL LTD,SPINVB_33660,"18,480.00",Purchase Invoice
BIS,Skills Funding Agency,04/01/2017,Managed IT Service,Funding & Programmes - Executive Office,FLATWORLDWORKS LTD,SPINVB_33690,"15,720.00",Purchase Invoice
BIS,Skills Funding Agency,04/01/2017,Managed IT Service,Operations ICT - Information & Communication Technology - Technical,INDIGOBLUE CONSULTING LIMITED,SPINVB_33619,"13,881.00",Purchase Invoice
BIS,Skills Funding Agency,04/01/2017,Managed IT Service,Operations ICT - Information & Communication Technology - Technical,LEIDOS INNOVATIONS UK LTD,SPINVB_33680,"6,608.58",Purchase Invoice
BIS,Skills Funding Agency,04/01/2017,Managed IT Service,Operations ICT - Information & Communication Technology - Technical,LEIDOS INNOVATIONS UK LTD,SPINVB_33683,"1,365.31",Purchase Invoice
BIS,Skills Funding Agency,04/01/2017,Managed IT Service,Operations ICT - Information & Communication Technology - Technical,LEIDOS INNOVATIONS UK LTD,SPINVB_33686,"11,414.82",Purchase Invoice
BIS,Skills Funding Agency,04/01/2017,Other Fuel Car Mileage,Central Delivery Service - European Social Fund - Audit Compliance,Agency Staff Member,SCLAIM_47372,137.70,Staff Expenses Claim
BIS,Skills Funding Agency,04/01/2017,Other Travel,Apprenticeships & Delivery Services - Apprenticeships & Employer Policy Implementation,Agency Staff Member,SCLAIM_47355,13.00,Staff Expenses Claim
BIS,Skills Funding Agency,04/01/2017,Other Travel,Apprenticeships & Delivery Services - Apprenticeships & Employer Policy Implementation,Agency Staff Member,SCLAIM_47384,119.55,Staff Expenses Claim
BIS,Skills Funding Agency,04/01/2017,Other Travel,Apprenticeships & Delivery Services - Executive Office,Agency Staff Member,SCLAIM_47353,6.10,Staff Expenses Claim
BIS,Skills Funding Agency,04/01/2017,Other Travel,Apprenticeships & Delivery Services - Executive Office,Agency Staff Member,SCLAIM_47354,5.70,Staff Expenses Claim
BIS,Skills Funding Agency,04/01/2017,Other Travel,Apprenticeships & Delivery Services - Executive Office,Agency Staff Member,SCLAIM_47356,15.00,Staff Expenses Claim
BIS,Skills Funding Agency,04/01/2017,Other Travel,Apprenticeships & Delivery Services - Executive Office,Agency Staff Member,SCLAIM_47359,17.30,Staff Expenses Claim
BIS,Skills Funding Agency,04/01/2017,Other Travel,Apprenticeships & Delivery Services - Executive Office,Agency Staff Member,SCLAIM_47360,7.00,Staff Expenses Claim
BIS,Skills Funding Agency,04/01/2017,Other Travel,Apprenticeships & Delivery Services - Executive Office,Agency Staff Member,SCLAIM_47369,73.12,Staff Expenses Claim
BIS,Skills Funding Agency,04/01/2017,Other Travel,Central Delivery Service - European Social Fund - Audit Compliance,Agency Staff Member,SCLAIM_47362,2.00,Staff Expenses Claim
BIS,Skills Funding Agency,04/01/2017,Other Travel,Central Delivery Service - European Social Fund - Audit Compliance,Agency Staff Member,SCLAIM_47371,5.20,Staff Expenses Claim
BIS,Skills Funding Agency,04/01/2017,Other Travel,Central Delivery Service - European Social Fund - Audit Compliance,Agency Staff Member,SCLAIM_47372,20.50,Staff Expenses Claim
BIS,Skills Funding Agency,04/01/2017,Other Travel,Central Delivery Service - Leeds,Agency Staff Member,SCLAIM_47378,5.00,Staff Expenses Claim
BIS,Skills Funding Agency,04/01/2017,Other Travel,Central Delivery Service - Leeds,Agency Staff Member,SCLAIM_47382,4.00,Staff Expenses Claim
BIS,Skills Funding Agency,04/01/2017,Other Travel,Central Delivery Service - London,Agency Staff Member,SCLAIM_47376,83.20,Staff Expenses Claim
BIS,Skills Funding Agency,04/01/2017,Other Travel,Central Delivery Service - London,Agency Staff Member,SCLAIM_47377,74.10,Staff Expenses Claim
BIS,Skills Funding Agency,04/01/2017,Other Travel,Employer & Provider Services North East & Yorkshire,Agency Staff Member,SCLAIM_47375,6.80,Staff Expenses Claim
BIS,Skills Funding Agency,04/01/2017,Other Travel,Finance Division - Provider Finance,Agency Staff Member,SCLAIM_47351,13.00,Staff Expenses Claim
BIS,Skills Funding Agency,04/01/2017,Other Travel,Funding & Programmes - Executive Office,Agency Staff Member,SCLAIM_47373,32.10,Staff Expenses Claim
BIS,Skills Funding Agency,04/01/2017,Other Travel,Funding & Programmes - Executive Office,Agency Staff Member,SCLAIM_47374,30.70,Staff Expenses Claim
BIS,Skills Funding Agency,04/01/2017,Other Travel,Funding & Programmes - Funding Policy Implementation Programmes,Agency Staff Member,SCLAIM_47380,49.50,Staff Expenses Claim
BIS,Skills Funding Agency,04/01/2017,Other Travel,Funding & Programmes - Funding Policy Implementation Programmes,Agency Staff Member,SCLAIM_47381,80.00,Staff Expenses Claim
BIS,Skills Funding Agency,04/01/2017,Other Travel,Funding & Programmes - Provider Management & Intervention South,Agency Staff Member,SCLAIM_47387,23.20,Staff Expenses Claim
BIS,Skills Funding Agency,04/01/2017,Other Travel,Funding & Programmes - Provider Management & Intervention South,Agency Staff Member,SCLAIM_47393,5.70,Staff Expenses Claim
BIS,Skills Funding Agency,04/01/2017,Other Travel,Large Companies Unit,Agency Staff Member,SCLAIM_47357,53.10,Staff Expenses Claim
BIS,Skills Funding Agency,04/01/2017,Other Travel,Large Companies Unit,Agency Staff Member,SCLAIM_47358,18.70,Staff Expenses Claim
BIS,Skills Funding Agency,04/01/2017,Other Travel,Large Companies Unit,Agency Staff Member,SCLAIM_47361,110.39,Staff Expenses Claim
BIS,Skills Funding Agency,04/01/2017,Other Travel,Operations Finance - Executive Office,Agency Staff Member,SCLAIM_47365,69.00,Staff Expenses Claim
BIS,Skills Funding Agency,04/01/2017,Other Travel,Operations Finance - Executive Office,Agency Staff Member,SCLAIM_47379,3.00,Staff Expenses Claim
BIS,Skills Funding Agency,04/01/2017,Other Travel,Operations Finance - Executive Office,Agency Staff Member,SCLAIM_47383,12.40,Staff Expenses Claim
BIS,Skills Funding Agency,04/01/2017,Other Travel,Operations Finance - Executive Office,Agency Staff Member,SCLAIM_47385,9.00,Staff Expenses Claim
BIS,Skills Funding Agency,04/01/2017,Other Travel,Operations Finance - Executive Office,Agency Staff Member,SCLAIM_47392,4.00,Staff Expenses Claim
BIS,Skills Funding Agency,04/01/2017,Other Travel,Operations Finance - Executive Office,Agency Staff Member,SCLAIM_47394,39.90,Staff Expenses Claim
BIS,Skills Funding Agency,04/01/2017,Other Travel,Operations ICT - Information & Communication Technology - Technical,Agency Staff Member,SCLAIM_47367,34.00,Staff Expenses Claim
BIS,Skills Funding Agency,04/01/2017,Other Travel,Transaction Unit,Agency Staff Member,SCLAIM_47388,7.00,Staff Expenses Claim
BIS,Skills Funding Agency,04/01/2017,Petrol Car Mileage,Apprenticeships & Delivery Services - Executive Office,Agency Staff Member,SCLAIM_47359,135.90,Staff Expenses Claim
BIS,Skills Funding Agency,04/01/2017,Petrol Car Mileage,Apprenticeships & Delivery Services - Executive Office,Agency Staff Member,SCLAIM_47360,59.40,Staff Expenses Claim
BIS,Skills Funding Agency,04/01/2017,Petrol Car Mileage,Central Delivery Service - Birmingham,Agency Staff Member,SCLAIM_47370,360.00,Staff Expenses Claim
BIS,Skills Funding Agency,04/01/2017,Petrol Car Mileage,Central Delivery Service - Birmingham,Agency Staff Member,SCLAIM_47386,90.00,Staff Expenses Claim
BIS,Skills Funding Agency,04/01/2017,Petrol Car Mileage,Employer & Provider Services North East & Yorkshire,Agency Staff Member,SCLAIM_47375,419.50,Staff Expenses Claim
BIS,Skills Funding Agency,04/01/2017,Petrol Car Mileage,Operations Finance - Executive Office,Agency Staff Member,SCLAIM_47379,90.00,Staff Expenses Claim
BIS,Skills Funding Agency,04/01/2017,Petrol Car Mileage,Operations Finance - Executive Office,Agency Staff Member,SCLAIM_47383,62.10,Staff Expenses Claim
BIS,Skills Funding Agency,04/01/2017,Petrol Car Mileage,Operations Finance - Executive Office,Agency Staff Member,SCLAIM_47385,27.00,Staff Expenses Claim
BIS,Skills Funding Agency,04/01/2017,Petrol Car Mileage,Operations Finance - Executive Office,Agency Staff Member,SCLAIM_47392,99.90,Staff Expenses Claim
BIS,Skills Funding Agency,04/01/2017,Rail Warrants & Tickets,Apprenticeships & Delivery Services - Executive Office,Agency Staff Member,SCLAIM_47354,1.20,Staff Expenses Claim
BIS,Skills Funding Agency,04/01/2017,Rail Warrants & Tickets,Central Delivery Service - European Social Fund - Audit Compliance,Agency Staff Member,SCLAIM_47372,76.10,Staff Expenses Claim
BIS,Skills Funding Agency,04/01/2017,Rail Warrants & Tickets,Central Delivery Service - London,Agency Staff Member,SCLAIM_47376,87.60,Staff Expenses Claim
BIS,Skills Funding Agency,04/01/2017,Rail Warrants & Tickets,Central Delivery Service - London,Agency Staff Member,SCLAIM_47377,67.80,Staff Expenses Claim
BIS,Skills Funding Agency,04/01/2017,Rail Warrants & Tickets,Funding & Programmes - Provider Management & Intervention North,Agency Staff Member,SCLAIM_47364,55.20,Staff Expenses Claim
BIS,Skills Funding Agency,04/01/2017,Rail Warrants & Tickets,Large Companies Unit,Agency Staff Member,SCLAIM_47358,53.90,Staff Expenses Claim
BIS,Skills Funding Agency,04/01/2017,Rail Warrants & Tickets,Operations Finance - Executive Office,Agency Staff Member,SCLAIM_47385,20.00,Staff Expenses Claim
BIS,Skills Funding Agency,04/01/2017,Room Hire,Chief Executive Office - Executive Office,DEPARTMENT FOR BUSINESS INNOVATION & SKILLS (NEWPORT),SPINVB_33743,"3,692.00",Purchase Invoice
BIS,Skills Funding Agency,04/01/2017,Self-Drive Car Hire,Central Delivery Service - European Social Fund - Audit Compliance,Agency Staff Member,SCLAIM_47362,4.25,Staff Expenses Claim
BIS,Skills Funding Agency,04/01/2017,Self-Drive Car Hire,Finance Division - Provider Finance,Agency Staff Member,SCLAIM_47351,19.18,Staff Expenses Claim
BIS,Skills Funding Agency,04/01/2017,Self-Drive Car Hire,Finance Division - Provider Finance,Agency Staff Member,SCLAIMPRO_968,231.00,Staff Expenses Claim
BIS,Skills Funding Agency,04/01/2017,Self-Drive Car Hire,Funding & Programmes - Provider Management & Intervention South,Agency Staff Member,SCLAIM_47387,58.12,Staff Expenses Claim
BIS,Skills Funding Agency,04/01/2017,Self-Drive Car Hire,Operations Finance - Executive Office,Agency Staff Member,SCLAIM_47392,29.43,Staff Expenses Claim
BIS,Skills Funding Agency,04/01/2017,Self-Drive Car Hire,Operations Finance - Executive Office,Agency Staff Member,SCLAIM_47394,23.09,Staff Expenses Claim
BIS,Skills Funding Agency,04/01/2017,Subsistence,Apprenticeships & Delivery Services - Apprenticeships & Employer Policy Implementation,Agency Staff Member,SCLAIM_47355,41.10,Staff Expenses Claim
BIS,Skills Funding Agency,04/01/2017,Subsistence,Apprenticeships & Delivery Services - Executive Office,Agency Staff Member,SCLAIM_47353,20.39,Staff Expenses Claim
BIS,Skills Funding Agency,04/01/2017,Subsistence,Apprenticeships & Delivery Services - Executive Office,Agency Staff Member,SCLAIM_47354,38.75,Staff Expenses Claim
BIS,Skills Funding Agency,04/01/2017,Subsistence,Apprenticeships & Delivery Services - Executive Office,Agency Staff Member,SCLAIM_47356,11.45,Staff Expenses Claim
BIS,Skills Funding Agency,04/01/2017,Subsistence,Apprenticeships & Delivery Services - Executive Office,Agency Staff Member,SCLAIM_47359,15.32,Staff Expenses Claim
BIS,Skills Funding Agency,04/01/2017,Subsistence,Apprenticeships & Delivery Services - Executive Office,Agency Staff Member,SCLAIM_47360,18.17,Staff Expenses Claim
BIS,Skills Funding Agency,04/01/2017,Subsistence,Apprenticeships & Delivery Services - Executive Office,Agency Staff Member,SCLAIM_47368,114.38,Staff Expenses Claim
BIS,Skills Funding Agency,04/01/2017,Subsistence,Apprenticeships & Delivery Services - Executive Office,Agency Staff Member,SCLAIM_47369,28.35,Staff Expenses Claim
BIS,Skills Funding Agency,04/01/2017,Subsistence,Central Delivery Service - European Social Fund - Audit Compliance,Agency Staff Member,SCLAIM_47371,4.50,Staff Expenses Claim
BIS,Skills Funding Agency,04/01/2017,Subsistence,Central Delivery Service - European Social Fund - Audit Compliance,Agency Staff Member,SCLAIM_47372,15.44,Staff Expenses Claim
BIS,Skills Funding Agency,04/01/2017,Subsistence,Central Delivery Service - Leeds,Agency Staff Member,SCLAIM_47378,39.14,Staff Expenses Claim
BIS,Skills Funding Agency,04/01/2017,Subsistence,Central Delivery Service - Leeds,Agency Staff Member,SCLAIM_47382,2.65,Staff Expenses Claim
BIS,Skills Funding Agency,04/01/2017,Subsistence,Central Delivery Service - London,Agency Staff Member,SCLAIM_47376,45.00,Staff Expenses Claim
BIS,Skills Funding Agency,04/01/2017,Subsistence,Central Delivery Service - London,Agency Staff Member,SCLAIM_47377,50.00,Staff Expenses Claim
BIS,Skills Funding Agency,04/01/2017,Subsistence,Finance Division - Provider Finance,Agency Staff Member,SCLAIM_47351,43.33,Staff Expenses Claim
BIS,Skills Funding Agency,04/01/2017,Subsistence,Funding & Programmes - Executive Office,Agency Staff Member,SCLAIM_47373,12.51,Staff Expenses Claim
BIS,Skills Funding Agency,04/01/2017,Subsistence,Funding & Programmes - Executive Office,Agency Staff Member,SCLAIM_47374,22.05,Staff Expenses Claim
BIS,Skills Funding Agency,04/01/2017,Subsistence,Funding & Programmes - Funding Policy Implementation Programmes,Agency Staff Member,SCLAIM_47380,25.00,Staff Expenses Claim
BIS,Skills Funding Agency,04/01/2017,Subsistence,Funding & Programmes - Funding Policy Implementation Programmes,Agency Staff Member,SCLAIM_47381,101.80,Staff Expenses Claim
BIS,Skills Funding Agency,04/01/2017,Subsistence,Funding & Programmes - Provider Management & Intervention South,Agency Staff Member,SCLAIM_47387,9.60,Staff Expenses Claim
BIS,Skills Funding Agency,04/01/2017,Subsistence,Large Companies Unit,Agency Staff Member,SCLAIM_47357,31.25,Staff Expenses Claim
BIS,Skills Funding Agency,04/01/2017,Subsistence,Large Companies Unit,Agency Staff Member,SCLAIM_47361,94.75,Staff Expenses Claim
BIS,Skills Funding Agency,04/01/2017,Subsistence,Operations Finance - Executive Office,Agency Staff Member,SCLAIM_47379,7.50,Staff Expenses Claim
BIS,Skills Funding Agency,04/01/2017,Subsistence,Operations Finance - Executive Office,Agency Staff Member,SCLAIM_47385,13.50,Staff Expenses Claim
BIS,Skills Funding Agency,04/01/2017,Subsistence,Operations Finance - Executive Office,Agency Staff Member,SCLAIM_47391,18.74,Staff Expenses Claim
BIS,Skills Funding Agency,04/01/2017,Subsistence,Operations Finance - Executive Office,Agency Staff Member,SCLAIM_47392,17.20,Staff Expenses Claim
BIS,Skills Funding Agency,04/01/2017,Subsistence,Operations Finance - Executive Office,Agency Staff Member,SCLAIM_47394,23.26,Staff Expenses Claim
BIS,Skills Funding Agency,04/01/2017,Subsistence,Transaction Unit,Agency Staff Member,SCLAIM_47388,9.55,Staff Expenses Claim
BIS,Skills Funding Agency,04/01/2017,Taxis,Apprenticeships & Delivery Services - Executive Office,Agency Staff Member,SCLAIM_47356,12.00,Staff Expenses Claim
BIS,Skills Funding Agency,04/01/2017,Taxis,Central Delivery Service - European Social Fund - Audit Compliance,Agency Staff Member,SCLAIM_47372,11.00,Staff Expenses Claim
BIS,Skills Funding Agency,04/01/2017,Taxis,Central Delivery Service - London,Agency Staff Member,SCLAIM_47377,15.00,Staff Expenses Claim
BIS,Skills Funding Agency,04/01/2017,Taxis,Funding & Programmes - Executive Office,Agency Staff Member,SCLAIM_47374,28.00,Staff Expenses Claim
BIS,Skills Funding Agency,04/01/2017,Taxis,Funding & Programmes - Funding Policy Implementation Programmes,Agency Staff Member,SCLAIM_47380,101.80,Staff Expenses Claim
BIS,Skills Funding Agency,04/01/2017,Taxis,Funding & Programmes - Funding Policy Implementation Programmes,Agency Staff Member,SCLAIM_47381,52.80,Staff Expenses Claim
BIS,Skills Funding Agency,04/01/2017,Taxis,Large Companies Unit,Agency Staff Member,SCLAIM_47361,7.00,Staff Expenses Claim
BIS,Skills Funding Agency,04/01/2017,Temporary Staff,Apprenticeships & Delivery Services - Executive Office,CAPITA BUSINESS SERVICES LTD,IPINVELECT3_2194,"5,903.62",Purchase Invoice
BIS,Skills Funding Agency,04/01/2017,Temporary Staff,Data Science,CAPITA BUSINESS SERVICES LTD,IPINVELECT3_2194,"1,401.24",Purchase Invoice
BIS,Skills Funding Agency,04/01/2017,Temporary Staff,Finance Division - Provider Finance,SF RECRUITMENT LTD,SPINVB_33400,"2,196.00",Purchase Invoice
BIS,Skills Funding Agency,04/01/2017,Temporary Staff,Finance Division - Provider Finance,SF RECRUITMENT LTD,SPINVB_33464,"2,196.00",Purchase Invoice
BIS,Skills Funding Agency,04/01/2017,Temporary Staff,Finance Division - Provider Finance,SF RECRUITMENT LTD,SPINVB_33582,"2,196.00",Purchase Invoice
BIS,Skills Funding Agency,04/01/2017,Temporary Staff,Funding & Programmes - Executive Office,CAPITA BUSINESS SERVICES LTD,IPINVELECT3_2194,"6,962.40",Purchase Invoice
BIS,Skills Funding Agency,04/01/2017,Temporary Staff,Operations Finance - Executive Office,SF RECRUITMENT LTD,SPINVB_33739,"1,976.40",Purchase Invoice
BIS,Skills Funding Agency,04/01/2017,Temporary Staff,Operations ICT - Information & Communication Technology - Technical,CAPITA BUSINESS SERVICES LTD,IPINVELECT3_2194,"6,610.20",Purchase Invoice
BIS,Skills Funding Agency,04/01/2017,Temporary Staff,Operations ICT - Projects,CAPITA BUSINESS SERVICES LTD,IPINVELECT3_2194,"22,510.02",Purchase Invoice
BIS,Skills Funding Agency,04/01/2017,Temporary Staff,Transaction Unit,GOODMAN MASSON RECRUITMENT SERVICES LTD,SPINVB_33744,"2,493.00",Purchase Invoice
BIS,Skills Funding Agency,04/01/2017,Temporary Staff,Transformation & Corporate Strategy,PERTEMPS RECRUITMENT PARTNERSHIP LTD,SPINVB_33080,715.12,Purchase Invoice
BIS,Skills Funding Agency,04/01/2017,Temporary Staff,Transformation & Corporate Strategy,PERTEMPS RECRUITMENT PARTNERSHIP LTD,SPINVB_33235,732.84,Purchase Invoice
BIS,Skills Funding Agency,04/01/2017,Temporary Staff,Transformation & Corporate Strategy,PERTEMPS RECRUITMENT PARTNERSHIP LTD,SPINVB_33452,904.24,Purchase Invoice
BIS,Skills Funding Agency,06/01/2017,Archiving,Chief Executive Office - Executive Office,IRON MOUNTAIN UK LTD,IPINVELECT3_2197,"14,318.44",Purchase Invoice
BIS,Skills Funding Agency,06/01/2017,Business Support Service,Main Funding,SERCO LTD,SPINVB_33796,"269,356.10",Purchase Invoice
BIS,Skills Funding Agency,06/01/2017,Hardware Maintenance & Repair,Chief Executive Office - Executive Office,EXTERA LIMITED,SPINVB_33807,710.40,Purchase Invoice
BIS,Skills Funding Agency,06/01/2017,Hosting,Operations ICT - Technical Design Authority,FORDWAY SOLUTIONS LIMITED,SPINVB_33805,"1,440.00",Purchase Invoice
BIS,Skills Funding Agency,06/01/2017,Hosting,Operations ICT - Technical Design Authority,FORDWAY SOLUTIONS LIMITED,SPINVB_33806,"4,060.80",Purchase Invoice
BIS,Skills Funding Agency,06/01/2017,Hosting,Operations ICT - Technical Design Authority,SPECIALIST COMPUTER CENTRES PLC,SPINVB_33776,"211,739.92",Purchase Invoice
BIS,Skills Funding Agency,06/01/2017,Managed IT Service,Apprenticeships & Delivery Services - Executive Office,ORANGE BUS LIMITED,SPINVB_33799,"10,890.00",Purchase Invoice
BIS,Skills Funding Agency,06/01/2017,"National Apprenticeship Service - Business, Innovation & Skills - Non-Participation",Main Funding,SERCO LTD,SPINVB_33795,"65,312.45",Purchase Invoice
BIS,Skills Funding Agency,06/01/2017,Next Step Helpline,Main Funding,SERCO LTD,SPINVB_33794,"164,318.71",Purchase Invoice
BIS,Skills Funding Agency,06/01/2017,Postage,Chief Executive Office - Executive Office,ACAS LEEDS,SPINVB_33800,477.06,Purchase Invoice
BIS,Skills Funding Agency,06/01/2017,Postage,Chief Executive Office - Executive Office,ROYAL MAIL HOLDINGS PLC,SPINVNO_3927,732.69,Purchase Invoice
BIS,Skills Funding Agency,06/01/2017,Professional Services,Operations ICT - Technical Design Authority,SPECIALIST COMPUTER CENTRES PLC,SPINVB_33775,"8,646.00",Purchase Invoice
BIS,Skills Funding Agency,06/01/2017,Service Charges,Chief Executive Office - Executive Office,DEPARTMENT FOR BUSINESS INNOVATION & SKILLS (NEWPORT),SPINVB_33801,336.74,Purchase Invoice
BIS,Skills Funding Agency,06/01/2017,Software Maintenance & Repair,Operations ICT - Technical Design Authority,FORDWAY SOLUTIONS LIMITED,SPINVB_33804,"17,516.52",Purchase Invoice
BIS,Skills Funding Agency,06/01/2017,Support Services,Operations ICT - Technical Design Authority,SPECIALIST COMPUTER CENTRES PLC,SPINVB_33778,965.30,Purchase Invoice
BIS,Skills Funding Agency,06/01/2017,Temporary Staff,Apprenticeships & Delivery Services - Executive Office,PARITY RESOURCES LTD,IPINVELECT3_2195,"14,900.28",Purchase Invoice
BIS,Skills Funding Agency,06/01/2017,Temporary Staff,Apprenticeships & Delivery Services - Executive Office,PARITY RESOURCES LTD,IPINVELECT3_2196,"26,169.34",Purchase Invoice
BIS,Skills Funding Agency,06/01/2017,Temporary Staff,Data Science,PARITY RESOURCES LTD,IPINVELECT3_2195,"8,837.28",Purchase Invoice
BIS,Skills Funding Agency,06/01/2017,Temporary Staff,Data Science,PARITY RESOURCES LTD,IPINVELECT3_2196,900.00,Purchase Invoice
BIS,Skills Funding Agency,06/01/2017,Temporary Staff,Funding & Programmes - Delivery & Performance,PARITY RESOURCES LTD,IPINVELECT3_2195,"11,868.00",Purchase Invoice
BIS,Skills Funding Agency,06/01/2017,Temporary Staff,Funding & Programmes - Executive Office,PARITY RESOURCES LTD,IPINVELECT3_2195,"42,247.23",Purchase Invoice
BIS,Skills Funding Agency,06/01/2017,Temporary Staff,Funding & Programmes - Executive Office,PARITY RESOURCES LTD,IPINVELECT3_2196,"41,084.04",Purchase Invoice
BIS,Skills Funding Agency,06/01/2017,Temporary Staff,Operations Finance - Executive Office,PARITY RESOURCES LTD,IPINVELECT3_2195,"2,309.76",Purchase Invoice
BIS,Skills Funding Agency,06/01/2017,Temporary Staff,Operations Finance - Executive Office,PARITY RESOURCES LTD,IPINVELECT3_2196,"2,309.76",Purchase Invoice
BIS,Skills Funding Agency,06/01/2017,Temporary Staff,Operations ICT - Information & Communication Technology - Technical,KELLY SERVICES UK LTD,SPINVB_33786,969.25,Purchase Invoice
BIS,Skills Funding Agency,06/01/2017,Temporary Staff,Operations ICT - Information & Communication Technology - Technical,LA INTERNATIONAL,SPINVB_33763,"6,903.64",Purchase Invoice
BIS,Skills Funding Agency,06/01/2017,Temporary Staff,Operations ICT - Information & Communication Technology - Technical,PARITY RESOURCES LTD,IPINVELECT3_2195,"24,068.58",Purchase Invoice
BIS,Skills Funding Agency,06/01/2017,Temporary Staff,Operations ICT - Information & Communication Technology - Technical,PARITY RESOURCES LTD,IPINVELECT3_2196,"9,743.04",Purchase Invoice
BIS,Skills Funding Agency,06/01/2017,Temporary Staff,Transaction Unit,PARITY RESOURCES LTD,IPINVELECT3_2195,"8,197.21",Purchase Invoice
BIS,Skills Funding Agency,06/01/2017,Temporary Staff,Transaction Unit,PARITY RESOURCES LTD,IPINVELECT3_2196,"2,859.78",Purchase Invoice
BIS,Skills Funding Agency,09/01/2017,Bank Charges,Strategic Finance - Financial Control Accounting Services,ROYAL BANK OF SCOTLAND,BANKCHARGES_335,85.00,Bank Charge
BIS,Skills Funding Agency,09/01/2017,Bank Charges,Strategic Finance - Financial Control Accounting Services,ROYAL BANK OF SCOTLAND,BANKCHARGES_338,85.00,Bank Charge
BIS,Skills Funding Agency,10/01/2017,Catering Contracts,Chief Executive Office - Executive Office,DEPARTMENT FOR BUSINESS INNOVATION & SKILLS (NEWPORT),SPINVB_33751,393.30,Purchase Invoice
BIS,Skills Funding Agency,10/01/2017,Licences,Data Science,BIRST INC.,SPINVB_33727,"18,709.58",Purchase Invoice
BIS,Skills Funding Agency,10/01/2017,Managed IT Service,Data Science,LEIDOS INNOVATIONS UK LTD,SPINVB_33675,"154,536.30",Purchase Invoice
BIS,Skills Funding Agency,10/01/2017,Managed IT Service,Funding & Programmes - Executive Office,ANALYSE-CONCEPT LTD,SPINVB_33814,"28,560.00",Purchase Invoice
BIS,Skills Funding Agency,10/01/2017,Managed IT Service,Funding & Programmes - Executive Office,FLATWORLDWORKS LTD,SPINVB_33684,"16,560.00",Purchase Invoice
BIS,Skills Funding Agency,10/01/2017,Managed IT Service,Operations ICT - Mission IT / Business As Usual Major Releases,INFOR GLOBAL SOLUTIONS MIDLANDS V CO,SPINVB_33792,"1,181.98",Purchase Invoice
BIS,Skills Funding Agency,10/01/2017,Managed IT Service,Operations ICT - Projects,TEST-DIRECT LTD,SPCRNB_1221,"-11,520.00",Purchase Credit Note
BIS,Skills Funding Agency,10/01/2017,Managed IT Service,Operations ICT - Projects,TEST-DIRECT LTD,SPINVB_33837,"10,200.00",Purchase Invoice
BIS,Skills Funding Agency,10/01/2017,Managed IT Service,Operations ICT - Projects,TEST-DIRECT LTD,SPINVB_33838,"11,400.00",Purchase Invoice
BIS,Skills Funding Agency,10/01/2017,Managed IT Service,Operations ICT - Projects,TEST-DIRECT LTD,SPINVB_33839,"8,670.00",Purchase Invoice
BIS,Skills Funding Agency,10/01/2017,Room Hire,Chief Executive Office - Executive Office,DEPARTMENT FOR BUSINESS INNOVATION & SKILLS (NEWPORT),SPINVB_33751,"1,335.00",Purchase Invoice
BIS,Skills Funding Agency,10/01/2017,Software Maintenance & Repair,Operations ICT - Business IT - Citizen Services,LEIDOS INNOVATIONS UK LTD,SPINVB_33834,"118,643.86",Purchase Invoice
BIS,Skills Funding Agency,10/01/2017,Software Upgrades,Operations ICT - Information & Communication Technology - Technical,ENGAGE ESM LTD,SPINVB_33815,"7,140.00",Purchase Invoice
BIS,Skills Funding Agency,10/01/2017,Support Services,Data Science,LEIDOS INNOVATIONS UK LTD,SPINVB_33699,341.33,Purchase Invoice
BIS,Skills Funding Agency,10/01/2017,Support Services,Data Science,LEIDOS INNOVATIONS UK LTD,SPINVB_33736,"12,383.51",Purchase Invoice
BIS,Skills Funding Agency,10/01/2017,Support Services,Data Science,LEIDOS INNOVATIONS UK LTD,SPINVB_33833,375.46,Purchase Invoice
BIS,Skills Funding Agency,10/01/2017,Temporary Staff,Apprenticeships & Delivery Services - Executive Office,LA INTERNATIONAL,SPINVB_33766,"4,477.50",Purchase Invoice
BIS,Skills Funding Agency,10/01/2017,Temporary Staff,Apprenticeships & Delivery Services - Executive Office,SF RECRUITMENT LTD,SPINVB_33741,776.39,Purchase Invoice
BIS,Skills Funding Agency,10/01/2017,Temporary Staff,Apprenticeships & Delivery Services - Executive Office,SF RECRUITMENT LTD,SPINVB_33816,420.94,Purchase Invoice
BIS,Skills Funding Agency,10/01/2017,Temporary Staff,Apprenticeships & Delivery Services - Executive Office,SMART SOURCING PLC,SPINVB_33846,"6,103.68",Purchase Invoice
BIS,Skills Funding Agency,10/01/2017,Temporary Staff,Chief Executive Office - Executive Office,SF RECRUITMENT LTD,SPINVB_33737,"1,646.70",Purchase Invoice
BIS,Skills Funding Agency,10/01/2017,Temporary Staff,Chief Executive Office - Executive Office,SF RECRUITMENT LTD,SPINVB_33738,"1,646.70",Purchase Invoice
BIS,Skills Funding Agency,10/01/2017,Temporary Staff,Data Science,LA INTERNATIONAL,SPINVB_33761,"8,991.72",Purchase Invoice
BIS,Skills Funding Agency,10/01/2017,Temporary Staff,Data Science,LA INTERNATIONAL,SPINVB_33762,"7,058.70",Purchase Invoice
BIS,Skills Funding Agency,10/01/2017,Temporary Staff,Data Science,LA INTERNATIONAL,SPINVB_33764,"14,612.17",Purchase Invoice
BIS,Skills Funding Agency,10/01/2017,Temporary Staff,Data Science,LA INTERNATIONAL,SPINVB_33772,"9,020.34",Purchase Invoice
BIS,Skills Funding Agency,10/01/2017,Temporary Staff,Data Science,PERTEMPS RECRUITMENT PARTNERSHIP LTD,SPINVB_33720,810.00,Purchase Invoice
BIS,Skills Funding Agency,10/01/2017,Temporary Staff,Data Science,PERTEMPS RECRUITMENT PARTNERSHIP LTD,SPINVB_33721,810.00,Purchase Invoice
BIS,Skills Funding Agency,10/01/2017,Temporary Staff,Data Science,PERTEMPS RECRUITMENT PARTNERSHIP LTD,SPINVB_33722,810.00,Purchase Invoice
BIS,Skills Funding Agency,10/01/2017,Temporary Staff,Data Science,PERTEMPS RECRUITMENT PARTNERSHIP LTD,SPINVB_33723,810.00,Purchase Invoice
BIS,Skills Funding Agency,10/01/2017,Temporary Staff,Data Science,PERTEMPS RECRUITMENT PARTNERSHIP LTD,SPINVB_33724,648.00,Purchase Invoice
BIS,Skills Funding Agency,10/01/2017,Temporary Staff,Data Science,PERTEMPS RECRUITMENT PARTNERSHIP LTD,SPINVB_33725,810.00,Purchase Invoice
BIS,Skills Funding Agency,10/01/2017,Temporary Staff,Data Science,SMART SOURCING PLC,SPINVB_33603,"1,752.84",Purchase Invoice
BIS,Skills Funding Agency,10/01/2017,Temporary Staff,Data Science,SMART SOURCING PLC,SPINVB_33604,"11,085.10",Purchase Invoice
BIS,Skills Funding Agency,10/01/2017,Temporary Staff,Finance Division - Provider Finance,SF RECRUITMENT LTD,SPINVB_33667,"2,196.00",Purchase Invoice
BIS,Skills Funding Agency,10/01/2017,Temporary Staff,Finance Division - Provider Finance,SF RECRUITMENT LTD,SPINVB_33740,"2,196.00",Purchase Invoice
BIS,Skills Funding Agency,10/01/2017,Temporary Staff,Finance Division - Provider Finance,SF RECRUITMENT LTD,SPINVB_33818,"1,317.60",Purchase Invoice
BIS,Skills Funding Agency,10/01/2017,Temporary Staff,Funding & Programmes - Executive Office,LA INTERNATIONAL,SPINVB_33424,"1,598.40",Purchase Invoice
BIS,Skills Funding Agency,10/01/2017,Temporary Staff,Transaction Unit,GOODMAN MASSON RECRUITMENT SERVICES LTD,SPINVB_33813,"1,440.00",Purchase Invoice
BIS,Skills Funding Agency,10/01/2017,Temporary Staff,Transformation & Corporate Strategy,PERTEMPS RECRUITMENT PARTNERSHIP LTD,SPINVB_33726,815.58,Purchase Invoice
BIS,Skills Funding Agency,10/01/2017,Temporary Staff,Transformation & Corporate Strategy,SMART SOURCING PLC,SPINVB_33716,"10,779.48",Purchase Invoice
BIS,Skills Funding Agency,10/01/2017,Young People's Helpline,Main Funding,WILLIAMS LEA LIMITED,SPINVB_33803,"1,800.00",Purchase Invoice
BIS,Skills Funding Agency,11/01/2017,Diesel Car Mileage Passenger Supplement,Central Delivery Service - European Social Fund - Audit Compliance,Agency Staff Member,SCLAIM_47410,9.00,Staff Expenses Claim
BIS,Skills Funding Agency,11/01/2017,Diesel Car Mileage,Central Delivery Service - European Social Fund - Audit Compliance,Agency Staff Member,SCLAIM_47405,144.90,Staff Expenses Claim
BIS,Skills Funding Agency,11/01/2017,Diesel Car Mileage,Central Delivery Service - European Social Fund - Audit Compliance,Agency Staff Member,SCLAIM_47407,2.70,Staff Expenses Claim
BIS,Skills Funding Agency,11/01/2017,Diesel Car Mileage,Central Delivery Service - European Social Fund - Audit Compliance,Agency Staff Member,SCLAIM_47410,565.20,Staff Expenses Claim
BIS,Skills Funding Agency,11/01/2017,Diesel Car Mileage,Central Delivery Service - European Social Fund - Audit Compliance,Agency Staff Member,SCLAIM_47412,298.80,Staff Expenses Claim
BIS,Skills Funding Agency,11/01/2017,Diesel Car Mileage,Central Delivery Service - European Social Fund - Audit Compliance,Agency Staff Member,SCLAIM_47418,10.80,Staff Expenses Claim
BIS,Skills Funding Agency,11/01/2017,Diesel Car Mileage,Central Delivery Service - European Social Fund - Audit Compliance,Agency Staff Member,SCLAIM_47420,24.30,Staff Expenses Claim
BIS,Skills Funding Agency,11/01/2017,Diesel Car Mileage,Central Delivery Service - European Social Fund - Audit Compliance,Agency Staff Member,SCLAIM_47421,2.70,Staff Expenses Claim
BIS,Skills Funding Agency,11/01/2017,Diesel Car Mileage,Funding & Programmes - Executive Office,Agency Staff Member,SCLAIM_47419,2.70,Staff Expenses Claim
BIS,Skills Funding Agency,11/01/2017,Diesel Car Mileage,Funding & Programmes - Executive Office,Agency Staff Member,SCLAIM_47423,10.80,Staff Expenses Claim
BIS,Skills Funding Agency,11/01/2017,Diesel Car Mileage,Funding & Programmes - Provider Management & Intervention North,Agency Staff Member,SCLAIM_47400,175.05,Staff Expenses Claim
BIS,Skills Funding Agency,11/01/2017,Diesel Car Mileage,Funding & Programmes - Provider Management & Intervention North,Agency Staff Member,SCLAIM_47402,553.50,Staff Expenses Claim
BIS,Skills Funding Agency,11/01/2017,Diesel Car Mileage,Funding & Programmes - Provider Management & Intervention North,Agency Staff Member,SCLAIM_47415,88.20,Staff Expenses Claim
BIS,Skills Funding Agency,11/01/2017,Diesel Car Mileage,Large Companies Unit,Agency Staff Member,SCLAIM_47397,57.60,Staff Expenses Claim
BIS,Skills Funding Agency,11/01/2017,Diesel Car Mileage,National Careers & Learner Services,Agency Staff Member,SCLAIM_47406,286.20,Staff Expenses Claim
BIS,Skills Funding Agency,11/01/2017,Eye Tests,National Careers & Learner Services,Agency Staff Member,SCLAIM_47409,20.00,Staff Expenses Claim
BIS,Skills Funding Agency,11/01/2017,Hospitality,Apprenticeships & Delivery Services - Marketing,Agency Staff Member,SCLAIM_47403,3.50,Staff Expenses Claim
BIS,Skills Funding Agency,11/01/2017,Hosting,Operations ICT - Technical Design Authority,CGI IT UK LIMITED,SPINVB_33756,"172,958.27",Purchase Invoice
BIS,Skills Funding Agency,11/01/2017,Hosting,Operations ICT - Technical Design Authority,SPECIALIST COMPUTER CENTRES PLC,SPINVB_33777,"28,800.00",Purchase Invoice
BIS,Skills Funding Agency,11/01/2017,Landline Telephone Service,Operations ICT - Business IT - Agency Services,CGI IT UK LIMITED,SPINVB_33757,"3,735.60",Purchase Invoice
BIS,Skills Funding Agency,11/01/2017,Licences,Operations ICT - Business IT - Agency Services,SCARISTA LTD,SPINVB_33835,221.94,Purchase Invoice
BIS,Skills Funding Agency,11/01/2017,Managed IT Service,Data Science,CENTRE4 RESOURCES LIMITED,SPINVB_33828,"9,180.00",Purchase Invoice
BIS,Skills Funding Agency,11/01/2017,Managed IT Service,Data Science,CENTRE4 RESOURCES LIMITED,SPINVB_33829,"9,180.00",Purchase Invoice
BIS,Skills Funding Agency,11/01/2017,Managed IT Service,Funding & Programmes - Executive Office,FLATWORLDWORKS LTD,SPINVB_33774,"12,240.00",Purchase Invoice
BIS,Skills Funding Agency,11/01/2017,Managed IT Service,Funding & Programmes - Executive Office,INTERACT CONSULTING LTD,SPINVB_33802,"12,960.00",Purchase Invoice
BIS,Skills Funding Agency,11/01/2017,Managed IT Service,Funding & Programmes - Executive Office,INTERACT CONSULTING LTD,SPINVB_33811,"12,240.00",Purchase Invoice
BIS,Skills Funding Agency,11/01/2017,Managed IT Service,Operations ICT - Mission IT / Business As Usual Major Releases,INFOR GLOBAL SOLUTIONS MIDLANDS V CO,SPINVB_33793,"1,140.00",Purchase Invoice
BIS,Skills Funding Agency,11/01/2017,Other Travel,Apprenticeships & Delivery Services - Executive Office,Agency Staff Member,SCLAIM_47424,16.30,Staff Expenses Claim
BIS,Skills Funding Agency,11/01/2017,Other Travel,Apprenticeships & Delivery Services - Marketing,Agency Staff Member,SCLAIM_47403,32.40,Staff Expenses Claim
BIS,Skills Funding Agency,11/01/2017,Other Travel,Central Delivery Service - European Social Fund - Audit Compliance,Agency Staff Member,SCLAIM_47405,23.10,Staff Expenses Claim
BIS,Skills Funding Agency,11/01/2017,Other Travel,Central Delivery Service - European Social Fund - Audit Compliance,Agency Staff Member,SCLAIM_47407,4.50,Staff Expenses Claim
BIS,Skills Funding Agency,11/01/2017,Other Travel,Central Delivery Service - European Social Fund - Audit Compliance,Agency Staff Member,SCLAIM_47412,24.00,Staff Expenses Claim
BIS,Skills Funding Agency,11/01/2017,Other Travel,Central Delivery Service - European Social Fund - Audit Compliance,Agency Staff Member,SCLAIM_47417,2.00,Staff Expenses Claim
BIS,Skills Funding Agency,11/01/2017,Other Travel,Central Delivery Service - European Social Fund - Audit Compliance,Agency Staff Member,SCLAIM_47418,14.30,Staff Expenses Claim
BIS,Skills Funding Agency,11/01/2017,Other Travel,Central Delivery Service - European Social Fund - Audit Compliance,Agency Staff Member,SCLAIM_47420,45.20,Staff Expenses Claim
BIS,Skills Funding Agency,11/01/2017,Other Travel,Central Delivery Service - European Social Fund - Audit Compliance,Agency Staff Member,SCLAIM_47421,4.50,Staff Expenses Claim
BIS,Skills Funding Agency,11/01/2017,Other Travel,Central Delivery Service - London,Agency Staff Member,SCLAIM_47396,8.25,Staff Expenses Claim
BIS,Skills Funding Agency,11/01/2017,Other Travel,Employer & Provider Services North East & Yorkshire,Agency Staff Member,SCLAIM_47416,4.00,Staff Expenses Claim
BIS,Skills Funding Agency,11/01/2017,Other Travel,Funding & Programmes - Executive Office,Agency Staff Member,SCLAIM_47419,4.50,Staff Expenses Claim
BIS,Skills Funding Agency,11/01/2017,Other Travel,Funding & Programmes - Executive Office,Agency Staff Member,SCLAIM_47423,18.00,Staff Expenses Claim
BIS,Skills Funding Agency,11/01/2017,Other Travel,Funding & Programmes - Funding Policy Implementation Programmes,Agency Staff Member,SCLAIM_47398,278.50,Staff Expenses Claim
BIS,Skills Funding Agency,11/01/2017,Other Travel,Funding & Programmes - Provider Management & Intervention North,Agency Staff Member,SCLAIM_47400,7.50,Staff Expenses Claim
BIS,Skills Funding Agency,11/01/2017,Other Travel,Funding & Programmes - Provider Management & Intervention North,Agency Staff Member,SCLAIM_47402,7.10,Staff Expenses Claim
BIS,Skills Funding Agency,11/01/2017,Other Travel,Funding & Programmes - Provider Management & Intervention North,Agency Staff Member,SCLAIM_47415,15.11,Staff Expenses Claim
BIS,Skills Funding Agency,11/01/2017,Other Travel,National Careers & Learner Services,Agency Staff Member,SCLAIM_47406,51.10,Staff Expenses Claim
BIS,Skills Funding Agency,11/01/2017,Other Travel,Operations Finance - Executive Office,Agency Staff Member,SCLAIM_47401,11.20,Staff Expenses Claim
BIS,Skills Funding Agency,11/01/2017,Other Travel,Operations Finance - Executive Office,Agency Staff Member,SCLAIM_47404,40.02,Staff Expenses Claim
BIS,Skills Funding Agency,11/01/2017,Petrol Car Mileage,Central Delivery Service - European Social Fund - Audit Compliance,Agency Staff Member,SCLAIM_47399,131.40,Staff Expenses Claim
BIS,Skills Funding Agency,11/01/2017,Petrol Car Mileage,Central Delivery Service - European Social Fund - Audit Compliance,Agency Staff Member,SCLAIM_47417,72.00,Staff Expenses Claim
BIS,Skills Funding Agency,11/01/2017,Petrol Car Mileage,Central Delivery Service - London,Agency Staff Member,SCLAIM_47396,162.90,Staff Expenses Claim
BIS,Skills Funding Agency,11/01/2017,Petrol Car Mileage,Chief Executive Office - Communications,Agency Staff Member,SCLAIM_47395,19.80,Staff Expenses Claim
BIS,Skills Funding Agency,11/01/2017,Petrol Car Mileage,Employer & Provider Services North East & Yorkshire,Agency Staff Member,SCLAIM_47416,72.90,Staff Expenses Claim
BIS,Skills Funding Agency,11/01/2017,Petrol Car Mileage,Employer & Provider Services South East,Agency Staff Member,SCLAIM_47414,94.50,Staff Expenses Claim
BIS,Skills Funding Agency,11/01/2017,Petrol Car Mileage,Funding & Programmes - Funding Policy Implementation Programmes,Agency Staff Member,SCLAIM_47398,35.10,Staff Expenses Claim
BIS,Skills Funding Agency,11/01/2017,Petrol Car Mileage,Operations Finance - Executive Office,Agency Staff Member,SCLAIM_47404,148.50,Staff Expenses Claim
BIS,Skills Funding Agency,11/01/2017,Professional Services,Chief Executive Office - Executive Office,GOVERNMENT INTERNAL AUDIT AGENCY,SPINVB_33798,"164,439.64",Purchase Invoice
BIS,Skills Funding Agency,11/01/2017,Professional Services,Funding & Programmes - Executive Office,CAPGEMINI UK PLC,SPINVB_33781,"13,455.60",Purchase Invoice
BIS,Skills Funding Agency,11/01/2017,Professional Services,Operations ICT - Information & Communication Technology - Technical,CAPGEMINI UK PLC,SPINVB_33780,"40,833.77",Purchase Invoice
BIS,Skills Funding Agency,11/01/2017,Professional Subscriptions,Operations Finance - Executive Office,Agency Staff Member,SCLAIMPRO_969,147.00,Staff Expenses Claim
BIS,Skills Funding Agency,11/01/2017,Rail Warrants & Tickets,Central Delivery Service - European Social Fund - Audit Compliance,Agency Staff Member,SCLAIM_47407,71.10,Staff Expenses Claim
BIS,Skills Funding Agency,11/01/2017,Rail Warrants & Tickets,Central Delivery Service - European Social Fund - Audit Compliance,Agency Staff Member,SCLAIM_47412,6.40,Staff Expenses Claim
BIS,Skills Funding Agency,11/01/2017,Rail Warrants & Tickets,Central Delivery Service - European Social Fund - Audit Compliance,Agency Staff Member,SCLAIM_47417,91.00,Staff Expenses Claim
BIS,Skills Funding Agency,11/01/2017,Rail Warrants & Tickets,Employer & Provider Services London,Agency Staff Member,SCLAIM_47411,25.70,Staff Expenses Claim
BIS,Skills Funding Agency,11/01/2017,Rail Warrants & Tickets,Operations Finance - Executive Office,Agency Staff Member,SCLAIM_47404,32.00,Staff Expenses Claim
BIS,Skills Funding Agency,11/01/2017,Self-Drive Car Hire,Central Delivery Service - European Social Fund - Audit Compliance,Agency Staff Member,SCLAIM_47408,9.02,Staff Expenses Claim
BIS,Skills Funding Agency,11/01/2017,Self-Drive Car Hire,Funding & Programmes - Provider Management & Intervention North,Agency Staff Member,SCLAIM_47402,77.10,Staff Expenses Claim
BIS,Skills Funding Agency,11/01/2017,Software Maintenance & Repair,Operations ICT - Business IT - Agency Services,CGI IT UK LIMITED,SPCRNB_1218,"-15,000.00",Purchase Credit Note
BIS,Skills Funding Agency,11/01/2017,Software Maintenance & Repair,Operations ICT - Business IT - Agency Services,CGI IT UK LIMITED,SPINVB_33758,"186,980.40",Purchase Invoice
BIS,Skills Funding Agency,11/01/2017,Software Maintenance & Repair,Operations ICT - Mission IT / Business As Usual Major Releases,CAPGEMINI UK PLC,SPINVB_33782,"104,081.29",Purchase Invoice
BIS,Skills Funding Agency,11/01/2017,Software Maintenance & Repair,Operations ICT - Mission IT / Business As Usual Major Releases,CAPGEMINI UK PLC,SPINVB_33783,"40,409.93",Purchase Invoice
BIS,Skills Funding Agency,11/01/2017,Subsistence,Apprenticeships & Delivery Services - Executive Office,Agency Staff Member,SCLAIM_47424,26.55,Staff Expenses Claim
BIS,Skills Funding Agency,11/01/2017,Subsistence,Apprenticeships & Delivery Services - Marketing,Agency Staff Member,SCLAIM_47403,2.60,Staff Expenses Claim
BIS,Skills Funding Agency,11/01/2017,Subsistence,Central Delivery Service - European Social Fund - Audit Compliance,Agency Staff Member,SCLAIM_47405,9.25,Staff Expenses Claim
BIS,Skills Funding Agency,11/01/2017,Subsistence,Central Delivery Service - European Social Fund - Audit Compliance,Agency Staff Member,SCLAIM_47412,34.33,Staff Expenses Claim
BIS,Skills Funding Agency,11/01/2017,Subsistence,Central Delivery Service - European Social Fund - Audit Compliance,Agency Staff Member,SCLAIM_47417,33.26,Staff Expenses Claim
BIS,Skills Funding Agency,11/01/2017,Subsistence,Central Delivery Service - European Social Fund - Audit Compliance,Agency Staff Member,SCLAIM_47418,8.30,Staff Expenses Claim
BIS,Skills Funding Agency,11/01/2017,Subsistence,Central Delivery Service - European Social Fund - Audit Compliance,Agency Staff Member,SCLAIM_47420,18.85,Staff Expenses Claim
BIS,Skills Funding Agency,11/01/2017,Subsistence,Central Delivery Service - European Social Fund - Audit Compliance,Agency Staff Member,SCLAIM_47421,6.80,Staff Expenses Claim
BIS,Skills Funding Agency,11/01/2017,Subsistence,Funding & Programmes - Executive Office,Agency Staff Member,SCLAIM_47419,4.50,Staff Expenses Claim
BIS,Skills Funding Agency,11/01/2017,Subsistence,Large Companies Unit,Agency Staff Member,SCLAIM_47397,5.50,Staff Expenses Claim
BIS,Skills Funding Agency,11/01/2017,Subsistence,National Careers & Learner Services,Agency Staff Member,SCLAIM_47406,9.45,Staff Expenses Claim
BIS,Skills Funding Agency,11/01/2017,Subsistence,Operations Finance - Executive Office,Agency Staff Member,SCLAIM_47401,35.80,Staff Expenses Claim
BIS,Skills Funding Agency,11/01/2017,Subsistence,Operations Finance - Executive Office,Agency Staff Member,SCLAIM_47404,22.25,Staff Expenses Claim
BIS,Skills Funding Agency,11/01/2017,Taxis,Apprenticeships & Delivery Services - Executive Office,Agency Staff Member,SCLAIM_47425,21.30,Staff Expenses Claim
BIS,Skills Funding Agency,11/01/2017,Taxis,Central Delivery Service - European Social Fund - Audit Compliance,Agency Staff Member,SCLAIM_47405,4.00,Staff Expenses Claim
BIS,Skills Funding Agency,11/01/2017,Taxis,Central Delivery Service - European Social Fund - Audit Compliance,Agency Staff Member,SCLAIM_47418,20.50,Staff Expenses Claim
BIS,Skills Funding Agency,11/01/2017,Taxis,Central Delivery Service - European Social Fund - Audit Compliance,Agency Staff Member,SCLAIM_47420,28.40,Staff Expenses Claim
BIS,Skills Funding Agency,11/01/2017,Taxis,Employer & Provider Services London,Agency Staff Member,SCLAIM_47411,20.00,Staff Expenses Claim
BIS,Skills Funding Agency,11/01/2017,Taxis,Funding & Programmes - Executive Office,Agency Staff Member,SCLAIM_47419,17.60,Staff Expenses Claim
BIS,Skills Funding Agency,11/01/2017,Temporary Staff,Apprenticeships & Delivery Services - Executive Office,BROOK STREET UK LTD,SPINVB_33556,664.20,Purchase Invoice
BIS,Skills Funding Agency,11/01/2017,Temporary Staff,Apprenticeships & Delivery Services - Executive Office,BROOK STREET UK LTD,SPINVB_33605,531.36,Purchase Invoice
BIS,Skills Funding Agency,11/01/2017,Temporary Staff,Apprenticeships & Delivery Services - Executive Office,BROOK STREET UK LTD,SPINVB_33709,531.36,Purchase Invoice
BIS,Skills Funding Agency,11/01/2017,Temporary Staff,Apprenticeships & Delivery Services - Executive Office,BROOK STREET UK LTD,SPINVB_33787,664.20,Purchase Invoice
BIS,Skills Funding Agency,11/01/2017,Temporary Staff,Apprenticeships & Delivery Services - Executive Office,BROOK STREET UK LTD,SPINVB_33788,664.20,Purchase Invoice
BIS,Skills Funding Agency,11/01/2017,Temporary Staff,Apprenticeships & Delivery Services - Executive Office,BROOK STREET UK LTD,SPINVB_33856,398.52,Purchase Invoice
BIS,Skills Funding Agency,11/01/2017,Temporary Staff,Apprenticeships & Delivery Services - Executive Office,SMART SOURCING PLC,SPINVB_33845,"11,977.20",Purchase Invoice
BIS,Skills Funding Agency,11/01/2017,Temporary Staff,Chief Executive Office - Executive Office,SF RECRUITMENT LTD,SPINVB_33817,988.02,Purchase Invoice
BIS,Skills Funding Agency,11/01/2017,Temporary Staff,Data Science,SMART SOURCING PLC,SPINVB_33848,"11,685.60",Purchase Invoice
BIS,Skills Funding Agency,11/01/2017,Temporary Staff,Funding & Programmes - Executive Office,LA INTERNATIONAL,SPINVB_33770,"17,735.40",Purchase Invoice
BIS,Skills Funding Agency,11/01/2017,Temporary Staff,Funding & Programmes - Executive Office,SMART SOURCING PLC,SPINVB_33842,"11,194.50",Purchase Invoice
BIS,Skills Funding Agency,11/01/2017,Temporary Staff,Operations ICT - Information & Communication Technology - Technical,NTT DATA UK LIMITED,SPINVB_33831,"22,320.00",Purchase Invoice
BIS,Skills Funding Agency,11/01/2017,Temporary Staff,Operations ICT - Information & Communication Technology - Technical,NTT DATA UK LIMITED,SPINVB_33832,"11,160.00",Purchase Invoice
BIS,Skills Funding Agency,11/01/2017,Young People's Helpline,Main Funding,BRATHAY HALL TRUST,SPINVB_33868,"51,800.00",Purchase Invoice
BIS,Skills Funding Agency,11/01/2017,Young People's Helpline,Main Funding,DATA MANAGEMENT ASSOCIATES LTD,SPINVB_33867,"10,944.00",Purchase Invoice
BIS,Skills Funding Agency,11/01/2017,Young People's Helpline,Main Funding,LATRA LTD,SPINVB_33869,"2,160.00",Purchase Invoice
BIS,Skills Funding Agency,11/01/2017,Young People's Helpline,Main Funding,MANAGEMENT LEARNING RESOURCES LTD,SPINVB_33866,"4,493.93",Purchase Invoice
BIS,Skills Funding Agency,11/01/2017,Young People's Helpline,Main Funding,PROSPECTS SERVICES LTD,SPINVB_33863,"3,000.00",Purchase Invoice
BIS,Skills Funding Agency,11/01/2017,Young People's Helpline,Main Funding,PROSPECTS SERVICES LTD,SPINVB_33864,"3,000.00",Purchase Invoice
BIS,Skills Funding Agency,11/01/2017,Young People's Helpline,Main Funding,PROSPECTS SERVICES LTD,SPINVB_33865,"3,000.00",Purchase Invoice
BIS,Skills Funding Agency,11/01/2017,Young People's Helpline,Main Funding,REDHOUSE LANE COMMUNICATIONS LTD,SPINVB_33862,"1,362.00",Purchase Invoice
BIS,Skills Funding Agency,12/01/2017,16-18 Apprenticeship Grant for Employers - Centralised Contract Management,Main Funding,5 E LTD,AGEC_3166,"-1,500.00",Programme System File
BIS,Skills Funding Agency,12/01/2017,16-18 Apprenticeship Grant for Employers - Centralised Contract Management,Main Funding,5 E LTD,AGER_10739,"1,500.00",Programme System File
BIS,Skills Funding Agency,12/01/2017,16-18 Apprenticeship Grant for Employers - Centralised Contract Management,Main Funding,ALDER TRAINING LTD,AGEC_3169,"-6,000.00",Programme System File
BIS,Skills Funding Agency,12/01/2017,16-18 Apprenticeship Grant for Employers - Centralised Contract Management,Main Funding,ALDER TRAINING LTD,AGER_10680,"6,000.00",Programme System File
BIS,Skills Funding Agency,12/01/2017,16-18 Apprenticeship Grant for Employers - Centralised Contract Management,Main Funding,BROADLAND DISTRICT COUNCIL,AGEC_3264,"-3,000.00",Programme System File
BIS,Skills Funding Agency,12/01/2017,16-18 Apprenticeship Grant for Employers - Centralised Contract Management,Main Funding,BROADLAND DISTRICT COUNCIL,AGER_11250,"3,000.00",Programme System File
BIS,Skills Funding Agency,12/01/2017,16-18 Apprenticeship Grant for Employers - Centralised Contract Management,Main Funding,BROOKLANDS TECHNICAL COLLEGE,AGEC_3445,"-1,500.00",Programme System File
BIS,Skills Funding Agency,12/01/2017,16-18 Apprenticeship Grant for Employers - Centralised Contract Management,Main Funding,BROOKLANDS TECHNICAL COLLEGE,AGER_11633,"6,000.00",Programme System File
BIS,Skills Funding Agency,12/01/2017,16-18 Apprenticeship Grant for Employers - Centralised Contract Management,Main Funding,CABLECOM TRAINING LTD,AGER_10649,"1,500.00",Programme System File
BIS,Skills Funding Agency,12/01/2017,16-18 Apprenticeship Grant for Employers - Centralised Contract Management,Main Funding,CABLECOM TRAINING LTD,AGER_11635,"1,500.00",Programme System File
BIS,Skills Funding Agency,12/01/2017,16-18 Apprenticeship Grant for Employers - Centralised Contract Management,Main Funding,CENTRAL TRAINING ACADEMY LTD,AGEC_3167,"-15,000.00",Programme System File
BIS,Skills Funding Agency,12/01/2017,16-18 Apprenticeship Grant for Employers - Centralised Contract Management,Main Funding,CENTRAL TRAINING ACADEMY LTD,AGEC_3452,"-3,000.00",Programme System File
BIS,Skills Funding Agency,12/01/2017,16-18 Apprenticeship Grant for Employers - Centralised Contract Management,Main Funding,CENTRAL TRAINING ACADEMY LTD,AGER_10644,"15,000.00",Programme System File
BIS,Skills Funding Agency,12/01/2017,16-18 Apprenticeship Grant for Employers - Centralised Contract Management,Main Funding,CENTRAL TRAINING ACADEMY LTD,AGER_11642,"3,000.00",Programme System File
BIS,Skills Funding Agency,12/01/2017,16-18 Apprenticeship Grant for Employers - Centralised Contract Management,Main Funding,CHEYNES MANAGEMENT LTD,AGEC_3251,"-6,000.00",Programme System File
BIS,Skills Funding Agency,12/01/2017,16-18 Apprenticeship Grant for Employers - Centralised Contract Management,Main Funding,CHEYNES MANAGEMENT LTD,AGEC_3406,"-4,500.00",Programme System File
BIS,Skills Funding Agency,12/01/2017,16-18 Apprenticeship Grant for Employers - Centralised Contract Management,Main Funding,CHEYNES MANAGEMENT LTD,AGER_11187,"7,500.00",Programme System File
BIS,Skills Funding Agency,12/01/2017,16-18 Apprenticeship Grant for Employers - Centralised Contract Management,Main Funding,CHEYNES MANAGEMENT LTD,AGER_11576,"4,500.00",Programme System File
BIS,Skills Funding Agency,12/01/2017,16-18 Apprenticeship Grant for Employers - Centralised Contract Management,Main Funding,CLEVELAND YOUTH ASSOCIATION,AGEC_3229,"-3,000.00",Programme System File
BIS,Skills Funding Agency,12/01/2017,16-18 Apprenticeship Grant for Employers - Centralised Contract Management,Main Funding,CLEVELAND YOUTH ASSOCIATION,AGER_11014,"3,000.00",Programme System File
BIS,Skills Funding Agency,12/01/2017,16-18 Apprenticeship Grant for Employers - Centralised Contract Management,Main Funding,COLLEGE OF NORTH EAST LONDON,AGEC_3458,"-3,000.00",Programme System File
BIS,Skills Funding Agency,12/01/2017,16-18 Apprenticeship Grant for Employers - Centralised Contract Management,Main Funding,COLLEGE OF NORTH EAST LONDON,AGER_10671,"1,500.00",Programme System File
BIS,Skills Funding Agency,12/01/2017,16-18 Apprenticeship Grant for Employers - Centralised Contract Management,Main Funding,COLLEGE OF NORTH EAST LONDON,AGER_11654,"3,000.00",Programme System File
BIS,Skills Funding Agency,12/01/2017,16-18 Apprenticeship Grant for Employers - Centralised Contract Management,Main Funding,COLLEGE OF NORTH WEST LONDON,AGEC_3170,"-4,500.00",Programme System File
BIS,Skills Funding Agency,12/01/2017,16-18 Apprenticeship Grant for Employers - Centralised Contract Management,Main Funding,COLLEGE OF NORTH WEST LONDON,AGER_10676,"4,500.00",Programme System File
BIS,Skills Funding Agency,12/01/2017,16-18 Apprenticeship Grant for Employers - Centralised Contract Management,Main Funding,COLLEGE OF NORTH WEST LONDON,AGER_11658,"-1,500.00",Programme System File
BIS,Skills Funding Agency,12/01/2017,16-18 Apprenticeship Grant for Employers - Centralised Contract Management,Main Funding,COMMUNITY TRAINING SERVICES LTD,AGEC_3171,"-1,500.00",Programme System File
BIS,Skills Funding Agency,12/01/2017,16-18 Apprenticeship Grant for Employers - Centralised Contract Management,Main Funding,COMMUNITY TRAINING SERVICES LTD,AGER_10681,"1,500.00",Programme System File
BIS,Skills Funding Agency,12/01/2017,16-18 Apprenticeship Grant for Employers - Centralised Contract Management,Main Funding,DART LTD,AGER_10698,"12,000.00",Programme System File
BIS,Skills Funding Agency,12/01/2017,16-18 Apprenticeship Grant for Employers - Centralised Contract Management,Main Funding,DERBY BUSINESS COLLEGE,AGEC_3222,"-4,500.00",Programme System File
BIS,Skills Funding Agency,12/01/2017,16-18 Apprenticeship Grant for Employers - Centralised Contract Management,Main Funding,DERBY BUSINESS COLLEGE,AGER_10967,"4,500.00",Programme System File
BIS,Skills Funding Agency,12/01/2017,16-18 Apprenticeship Grant for Employers - Centralised Contract Management,Main Funding,DUDLEY COLLEGE OF TECHNOLOGY,AGER_11185,"13,500.00",Programme System File
BIS,Skills Funding Agency,12/01/2017,16-18 Apprenticeship Grant for Employers - Centralised Contract Management,Main Funding,DUDLEY COLLEGE OF TECHNOLOGY,AGER_11568,"-3,000.00",Programme System File
BIS,Skills Funding Agency,12/01/2017,16-18 Apprenticeship Grant for Employers - Centralised Contract Management,Main Funding,EALING HAMMERSMITH & WEST LONDON COLLEGE,AGEC_3175,"-6,000.00",Programme System File
BIS,Skills Funding Agency,12/01/2017,16-18 Apprenticeship Grant for Employers - Centralised Contract Management,Main Funding,EALING HAMMERSMITH & WEST LONDON COLLEGE,AGER_10716,"6,000.00",Programme System File
BIS,Skills Funding Agency,12/01/2017,16-18 Apprenticeship Grant for Employers - Centralised Contract Management,Main Funding,EAST BERKSHIRE COLLEGE,AGER_10717,"10,500.00",Programme System File
BIS,Skills Funding Agency,12/01/2017,16-18 Apprenticeship Grant for Employers - Centralised Contract Management,Main Funding,EAST BERKSHIRE COLLEGE,AGER_11366,"70,500.00",Programme System File
BIS,Skills Funding Agency,12/01/2017,16-18 Apprenticeship Grant for Employers - Centralised Contract Management,Main Funding,EDEN TRAINING SOLUTIONS LTD,AGEC_3275,"-4,500.00",Programme System File
BIS,Skills Funding Agency,12/01/2017,16-18 Apprenticeship Grant for Employers - Centralised Contract Management,Main Funding,EDEN TRAINING SOLUTIONS LTD,AGER_11287,"4,500.00",Programme System File
BIS,Skills Funding Agency,12/01/2017,16-18 Apprenticeship Grant for Employers - Centralised Contract Management,Main Funding,ELATT,AGEC_3176,"-1,500.00",Programme System File
BIS,Skills Funding Agency,12/01/2017,16-18 Apprenticeship Grant for Employers - Centralised Contract Management,Main Funding,ELATT,AGER_10722,"1,500.00",Programme System File
BIS,Skills Funding Agency,12/01/2017,16-18 Apprenticeship Grant for Employers - Centralised Contract Management,Main Funding,GATESHEAD COUNCIL,AGEC_3180,"-28,500.00",Programme System File
BIS,Skills Funding Agency,12/01/2017,16-18 Apprenticeship Grant for Employers - Centralised Contract Management,Main Funding,GATESHEAD COUNCIL,AGEC_3299,"-1,500.00",Programme System File
BIS,Skills Funding Agency,12/01/2017,16-18 Apprenticeship Grant for Employers - Centralised Contract Management,Main Funding,GATESHEAD COUNCIL,AGER_10750,"28,500.00",Programme System File
BIS,Skills Funding Agency,12/01/2017,16-18 Apprenticeship Grant for Employers - Centralised Contract Management,Main Funding,GATESHEAD COUNCIL,AGER_11379,"1,500.00",Programme System File
BIS,Skills Funding Agency,12/01/2017,16-18 Apprenticeship Grant for Employers - Centralised Contract Management,Main Funding,GORDON FRANKS TRAINING LIMITED,AGER_11610,"-1,500.00",Programme System File
BIS,Skills Funding Agency,12/01/2017,16-18 Apprenticeship Grant for Employers - Centralised Contract Management,Main Funding,HARTPURY COLLEGE,AGER_11396,"-4,500.00",Programme System File
BIS,Skills Funding Agency,12/01/2017,16-18 Apprenticeship Grant for Employers - Centralised Contract Management,Main Funding,HILLINGDON TRAINING LTD,AGEC_3312,"-1,500.00",Programme System File
BIS,Skills Funding Agency,12/01/2017,16-18 Apprenticeship Grant for Employers - Centralised Contract Management,Main Funding,HILLINGDON TRAINING LTD,AGER_10786,"1,500.00",Programme System File
BIS,Skills Funding Agency,12/01/2017,16-18 Apprenticeship Grant for Employers - Centralised Contract Management,Main Funding,HILLINGDON TRAINING LTD,AGER_11404,"1,500.00",Programme System File
BIS,Skills Funding Agency,12/01/2017,16-18 Apprenticeship Grant for Employers - Centralised Contract Management,Main Funding,HUDSON & HUGHES TRAINING LTD,AGEC_3435,"-1,500.00",Programme System File
BIS,Skills Funding Agency,12/01/2017,16-18 Apprenticeship Grant for Employers - Centralised Contract Management,Main Funding,HUDSON & HUGHES TRAINING LTD,AGER_11618,"1,500.00",Programme System File
BIS,Skills Funding Agency,12/01/2017,16-18 Apprenticeship Grant for Employers - Centralised Contract Management,Main Funding,HUMBERSIDE ENGINEERING TRAINING ASSOCIATION LTD,AGEC_3196,"-1,500.00",Programme System File
BIS,Skills Funding Agency,12/01/2017,16-18 Apprenticeship Grant for Employers - Centralised Contract Management,Main Funding,HUMBERSIDE ENGINEERING TRAINING ASSOCIATION LTD,AGER_10806,"1,500.00",Programme System File
BIS,Skills Funding Agency,12/01/2017,16-18 Apprenticeship Grant for Employers - Centralised Contract Management,Main Funding,INDEPENDENT TRAINING SERVICES LTD,AGEC_3194,"-1,500.00",Programme System File
BIS,Skills Funding Agency,12/01/2017,16-18 Apprenticeship Grant for Employers - Centralised Contract Management,Main Funding,INDEPENDENT TRAINING SERVICES LTD,AGER_10798,"1,500.00",Programme System File
BIS,Skills Funding Agency,12/01/2017,16-18 Apprenticeship Grant for Employers - Centralised Contract Management,Main Funding,LAMBETH COLLEGE AT CLAPHAM CENTRE,AGEC_3319,"-6,000.00",Programme System File
BIS,Skills Funding Agency,12/01/2017,16-18 Apprenticeship Grant for Employers - Centralised Contract Management,Main Funding,LAMBETH COLLEGE AT CLAPHAM CENTRE,AGER_11422,"6,000.00",Programme System File
BIS,Skills Funding Agency,12/01/2017,16-18 Apprenticeship Grant for Employers - Centralised Contract Management,Main Funding,LEARNING CURVE JAA LIMITED,AGEC_3254,"-18,000.00",Programme System File
BIS,Skills Funding Agency,12/01/2017,16-18 Apprenticeship Grant for Employers - Centralised Contract Management,Main Funding,LEARNING CURVE JAA LIMITED,AGER_11201,"18,000.00",Programme System File
BIS,Skills Funding Agency,12/01/2017,16-18 Apprenticeship Grant for Employers - Centralised Contract Management,Main Funding,LEARNING CURVE JAA LIMITED,AGER_11584,"1,500.00",Programme System File
BIS,Skills Funding Agency,12/01/2017,16-18 Apprenticeship Grant for Employers - Centralised Contract Management,Main Funding,LEEDS CITY COLLEGE,AGER_11283,"1,500.00",Programme System File
BIS,Skills Funding Agency,12/01/2017,16-18 Apprenticeship Grant for Employers - Centralised Contract Management,Main Funding,LIVERPOOL CHAMBER TRAINING LTD,AGEC_3277,"-4,500.00",Programme System File
BIS,Skills Funding Agency,12/01/2017,16-18 Apprenticeship Grant for Employers - Centralised Contract Management,Main Funding,LIVERPOOL CHAMBER TRAINING LTD,AGER_11289,"4,500.00",Programme System File
BIS,Skills Funding Agency,12/01/2017,16-18 Apprenticeship Grant for Employers - Centralised Contract Management,Main Funding,LONDON BOROUGH OF WALTHAM FOREST,AGEC_3244,"-1,500.00",Programme System File
BIS,Skills Funding Agency,12/01/2017,16-18 Apprenticeship Grant for Employers - Centralised Contract Management,Main Funding,LONDON BOROUGH OF WALTHAM FOREST,AGER_11138,"1,500.00",Programme System File
BIS,Skills Funding Agency,12/01/2017,16-18 Apprenticeship Grant for Employers - Centralised Contract Management,Main Funding,LONDON SKILLS & DEVELOPMENT NETWORK LIMITED,AGEC_3270,"-6,000.00",Programme System File
BIS,Skills Funding Agency,12/01/2017,16-18 Apprenticeship Grant for Employers - Centralised Contract Management,Main Funding,LONDON SKILLS & DEVELOPMENT NETWORK LIMITED,AGER_11256,"6,000.00",Programme System File
BIS,Skills Funding Agency,12/01/2017,16-18 Apprenticeship Grant for Employers - Centralised Contract Management,Main Funding,LOWESTOFT COLLEGE,AGEC_3204,"-6,000.00",Programme System File
BIS,Skills Funding Agency,12/01/2017,16-18 Apprenticeship Grant for Employers - Centralised Contract Management,Main Funding,LOWESTOFT COLLEGE,AGER_10873,"6,000.00",Programme System File
BIS,Skills Funding Agency,12/01/2017,16-18 Apprenticeship Grant for Employers - Centralised Contract Management,Main Funding,MACCLESFIELD COLLEGE,AGER_10870,"1,500.00",Programme System File
BIS,Skills Funding Agency,12/01/2017,16-18 Apprenticeship Grant for Employers - Centralised Contract Management,Main Funding,MICHAELJOHN TRAINING,AGEC_3413,"-1,500.00",Programme System File
BIS,Skills Funding Agency,12/01/2017,16-18 Apprenticeship Grant for Employers - Centralised Contract Management,Main Funding,MICHAELJOHN TRAINING,AGER_11587,"1,500.00",Programme System File
BIS,Skills Funding Agency,12/01/2017,16-18 Apprenticeship Grant for Employers - Centralised Contract Management,Main Funding,NACRO,AGEC_3332,"-1,500.00",Programme System File
BIS,Skills Funding Agency,12/01/2017,16-18 Apprenticeship Grant for Employers - Centralised Contract Management,Main Funding,NACRO,AGER_11448,"1,500.00",Programme System File
BIS,Skills Funding Agency,12/01/2017,16-18 Apprenticeship Grant for Employers - Centralised Contract Management,Main Funding,NEW COLLEGE NOTTINGHAM,AGEC_3210,"-22,500.00",Programme System File
BIS,Skills Funding Agency,12/01/2017,16-18 Apprenticeship Grant for Employers - Centralised Contract Management,Main Funding,NEW COLLEGE NOTTINGHAM,AGEC_3335,"-10,500.00",Programme System File
BIS,Skills Funding Agency,12/01/2017,16-18 Apprenticeship Grant for Employers - Centralised Contract Management,Main Funding,NEW COLLEGE NOTTINGHAM,AGER_10911,"22,500.00",Programme System File
BIS,Skills Funding Agency,12/01/2017,16-18 Apprenticeship Grant for Employers - Centralised Contract Management,Main Funding,NEW COLLEGE NOTTINGHAM,AGER_11454,"10,500.00",Programme System File
BIS,Skills Funding Agency,12/01/2017,16-18 Apprenticeship Grant for Employers - Centralised Contract Management,Main Funding,NEWCASTLE UPON TYNE CITY COUNCIL,AGER_11456,"3,000.00",Programme System File
BIS,Skills Funding Agency,12/01/2017,16-18 Apprenticeship Grant for Employers - Centralised Contract Management,Main Funding,NORTH YORKSHIRE COUNTY COUNCIL,AGEC_3215,"-1,500.00",Programme System File
BIS,Skills Funding Agency,12/01/2017,16-18 Apprenticeship Grant for Employers - Centralised Contract Management,Main Funding,NORTH YORKSHIRE COUNTY COUNCIL,AGER_10946,"1,500.00",Programme System File
BIS,Skills Funding Agency,12/01/2017,16-18 Apprenticeship Grant for Employers - Centralised Contract Management,Main Funding,NORWICH CITY COLLEGE,AGEC_3213,"-1,500.00",Programme System File
BIS,Skills Funding Agency,12/01/2017,16-18 Apprenticeship Grant for Employers - Centralised Contract Management,Main Funding,NORWICH CITY COLLEGE,AGER_10943,"1,500.00",Programme System File
BIS,Skills Funding Agency,12/01/2017,16-18 Apprenticeship Grant for Employers - Centralised Contract Management,Main Funding,PATHWAY FIRST LIMITED,AGEC_3267,"-27,000.00",Programme System File
BIS,Skills Funding Agency,12/01/2017,16-18 Apprenticeship Grant for Employers - Centralised Contract Management,Main Funding,PATHWAY FIRST LIMITED,AGER_11249,"27,000.00",Programme System File
BIS,Skills Funding Agency,12/01/2017,16-18 Apprenticeship Grant for Employers - Centralised Contract Management,Main Funding,PDM TRAINING & CONSULTANCY LTD,AGEC_3219,"-7,500.00",Programme System File
BIS,Skills Funding Agency,12/01/2017,16-18 Apprenticeship Grant for Employers - Centralised Contract Management,Main Funding,PDM TRAINING & CONSULTANCY LTD,AGER_10957,"7,500.00",Programme System File
BIS,Skills Funding Agency,12/01/2017,16-18 Apprenticeship Grant for Employers - Centralised Contract Management,Main Funding,POULTEC TRAINING LTD,AGEC_3225,"-9,000.00",Programme System File
BIS,Skills Funding Agency,12/01/2017,16-18 Apprenticeship Grant for Employers - Centralised Contract Management,Main Funding,POULTEC TRAINING LTD,AGER_10973,"9,000.00",Programme System File
BIS,Skills Funding Agency,12/01/2017,16-18 Apprenticeship Grant for Employers - Centralised Contract Management,Main Funding,REDWOOD EDUCATION AND SKILLS LIMITED,AGEC_3278,"-15,000.00",Programme System File
BIS,Skills Funding Agency,12/01/2017,16-18 Apprenticeship Grant for Employers - Centralised Contract Management,Main Funding,REDWOOD EDUCATION AND SKILLS LIMITED,AGER_11298,"15,000.00",Programme System File
BIS,Skills Funding Agency,12/01/2017,16-18 Apprenticeship Grant for Employers - Centralised Contract Management,Main Funding,ROCHDALE TRAINING ASSOCIATION LTD,AGEC_3351,"-1,500.00",Programme System File
BIS,Skills Funding Agency,12/01/2017,16-18 Apprenticeship Grant for Employers - Centralised Contract Management,Main Funding,ROCHDALE TRAINING ASSOCIATION LTD,AGER_11484,"1,500.00",Programme System File
BIS,Skills Funding Agency,12/01/2017,16-18 Apprenticeship Grant for Employers - Centralised Contract Management,Main Funding,SALFORD CITY COLLEGE,AGEC_3220,"-1,500.00",Programme System File
BIS,Skills Funding Agency,12/01/2017,16-18 Apprenticeship Grant for Employers - Centralised Contract Management,Main Funding,SALFORD CITY COLLEGE,AGER_10960,"1,500.00",Programme System File
BIS,Skills Funding Agency,12/01/2017,16-18 Apprenticeship Grant for Employers - Centralised Contract Management,Main Funding,SERCO LTD,AGEC_3354,"-1,500.00",Programme System File
BIS,Skills Funding Agency,12/01/2017,16-18 Apprenticeship Grant for Employers - Centralised Contract Management,Main Funding,SERCO LTD,AGER_11491,"1,500.00",Programme System File
BIS,Skills Funding Agency,12/01/2017,16-18 Apprenticeship Grant for Employers - Centralised Contract Management,Main Funding,SOUTH ESSEX COLLEGE,AGER_11045,"19,500.00",Programme System File
BIS,Skills Funding Agency,12/01/2017,16-18 Apprenticeship Grant for Employers - Centralised Contract Management,Main Funding,SOUTH ESSEX COLLEGE,AGER_11501,"-1,500.00",Programme System File
BIS,Skills Funding Agency,12/01/2017,16-18 Apprenticeship Grant for Employers - Centralised Contract Management,Main Funding,SOUTHPORT COLLEGE,AGEC_3234,"-4,500.00",Programme System File
BIS,Skills Funding Agency,12/01/2017,16-18 Apprenticeship Grant for Employers - Centralised Contract Management,Main Funding,SOUTHPORT COLLEGE,AGER_11051,"4,500.00",Programme System File
BIS,Skills Funding Agency,12/01/2017,16-18 Apprenticeship Grant for Employers - Centralised Contract Management,Main Funding,STOCKTON ON TEES BOROUGH COUNCIL,AGER_11056,"-1,500.00",Programme System File
BIS,Skills Funding Agency,12/01/2017,16-18 Apprenticeship Grant for Employers - Centralised Contract Management,Main Funding,STOCKTON ON TEES BOROUGH COUNCIL,AGER_11515,"-7,500.00",Programme System File
BIS,Skills Funding Agency,12/01/2017,16-18 Apprenticeship Grant for Employers - Centralised Contract Management,Main Funding,STOCKTON RIVERSIDE COLLEGE,AGEC_3368,"-3,000.00",Programme System File
BIS,Skills Funding Agency,12/01/2017,16-18 Apprenticeship Grant for Employers - Centralised Contract Management,Main Funding,STOCKTON RIVERSIDE COLLEGE,AGER_11060,"1,500.00",Programme System File
BIS,Skills Funding Agency,12/01/2017,16-18 Apprenticeship Grant for Employers - Centralised Contract Management,Main Funding,STOCKTON RIVERSIDE COLLEGE,AGER_11518,"3,000.00",Programme System File
BIS,Skills Funding Agency,12/01/2017,16-18 Apprenticeship Grant for Employers - Centralised Contract Management,Main Funding,SUFFOLK COLLEGE,AGEC_3238,"-1,500.00",Programme System File
BIS,Skills Funding Agency,12/01/2017,16-18 Apprenticeship Grant for Employers - Centralised Contract Management,Main Funding,SUFFOLK COLLEGE,AGER_11086,"1,500.00",Programme System File
BIS,Skills Funding Agency,12/01/2017,16-18 Apprenticeship Grant for Employers - Centralised Contract Management,Main Funding,SYSCO BUSINESS SKILLS ACADEMY,AGEC_3259,"-6,000.00",Programme System File
BIS,Skills Funding Agency,12/01/2017,16-18 Apprenticeship Grant for Employers - Centralised Contract Management,Main Funding,SYSCO BUSINESS SKILLS ACADEMY,AGER_11230,"6,000.00",Programme System File
BIS,Skills Funding Agency,12/01/2017,16-18 Apprenticeship Grant for Employers - Centralised Contract Management,Main Funding,TDR TRAINING LTD,AGER_11078,"1,500.00",Programme System File
BIS,Skills Funding Agency,12/01/2017,16-18 Apprenticeship Grant for Employers - Centralised Contract Management,Main Funding,TDR TRAINING LTD,AGER_11522,"-4,500.00",Programme System File
BIS,Skills Funding Agency,12/01/2017,16-18 Apprenticeship Grant for Employers - Centralised Contract Management,Main Funding,TELFORD COLLEGE OF ARTS & TECHNOLOGY,AGEC_3373,"-1,500.00",Programme System File
BIS,Skills Funding Agency,12/01/2017,16-18 Apprenticeship Grant for Employers - Centralised Contract Management,Main Funding,TELFORD COLLEGE OF ARTS & TECHNOLOGY,AGER_11082,"3,000.00",Programme System File
BIS,Skills Funding Agency,12/01/2017,16-18 Apprenticeship Grant for Employers - Centralised Contract Management,Main Funding,TELFORD COLLEGE OF ARTS & TECHNOLOGY,AGER_11528,"1,500.00",Programme System File
BIS,Skills Funding Agency,12/01/2017,16-18 Apprenticeship Grant for Employers - Centralised Contract Management,Main Funding,THE CITY OF LIVERPOOL COLLEGE,AGEC_3199,"-25,500.00",Programme System File
BIS,Skills Funding Agency,12/01/2017,16-18 Apprenticeship Grant for Employers - Centralised Contract Management,Main Funding,THE CITY OF LIVERPOOL COLLEGE,AGER_10862,"25,500.00",Programme System File
BIS,Skills Funding Agency,12/01/2017,16-18 Apprenticeship Grant for Employers - Centralised Contract Management,Main Funding,THE CITY OF LIVERPOOL COLLEGE,AGER_11434,"-3,000.00",Programme System File
BIS,Skills Funding Agency,12/01/2017,16-18 Apprenticeship Grant for Employers - Centralised Contract Management,Main Funding,TRAINING STRATEGIES LTD,AGEC_3276,"-9,000.00",Programme System File
BIS,Skills Funding Agency,12/01/2017,16-18 Apprenticeship Grant for Employers - Centralised Contract Management,Main Funding,TRAINING STRATEGIES LTD,AGER_11288,"9,000.00",Programme System File
BIS,Skills Funding Agency,12/01/2017,16-18 Apprenticeship Grant for Employers - Centralised Contract Management,Main Funding,VIRTUAL COLLEGE GROUP PLC,AGEC_3242,"-1,500.00",Programme System File
BIS,Skills Funding Agency,12/01/2017,16-18 Apprenticeship Grant for Employers - Centralised Contract Management,Main Funding,VIRTUAL COLLEGE GROUP PLC,AGER_11113,"1,500.00",Programme System File
BIS,Skills Funding Agency,12/01/2017,16-18 Apprenticeship Grant for Employers - Centralised Contract Management,Main Funding,WALFORD & NORTH SHROPSHIRE COLLEGE,AGEC_3387,"-3,000.00",Programme System File
BIS,Skills Funding Agency,12/01/2017,16-18 Apprenticeship Grant for Employers - Centralised Contract Management,Main Funding,WALFORD & NORTH SHROPSHIRE COLLEGE,AGER_11543,"3,000.00",Programme System File
BIS,Skills Funding Agency,12/01/2017,16-18 Apprenticeship Grant for Employers - Centralised Contract Management,Main Funding,WEST HERTS COLLEGE,AGER_11134,"3,000.00",Programme System File
BIS,Skills Funding Agency,12/01/2017,16-18 Apprenticeship Grant for Employers - Centralised Contract Management,Main Funding,WEST HERTS COLLEGE,AGER_11552,"1,500.00",Programme System File
BIS,Skills Funding Agency,12/01/2017,16-18 Apprenticeship Grant for Employers - Centralised Contract Management,Main Funding,WEST SUFFOLK COLLEGE,AGEC_3246,"-10,500.00",Programme System File
BIS,Skills Funding Agency,12/01/2017,16-18 Apprenticeship Grant for Employers - Centralised Contract Management,Main Funding,WEST SUFFOLK COLLEGE,AGER_11143,"10,500.00",Programme System File
BIS,Skills Funding Agency,12/01/2017,16-18 Apprenticeship Grant for Employers - Centralised Contract Management,Main Funding,WESTMINSTER KINGSWAY COLLEGE,AGEC_3247,"-4,500.00",Programme System File
BIS,Skills Funding Agency,12/01/2017,16-18 Apprenticeship Grant for Employers - Centralised Contract Management,Main Funding,WESTMINSTER KINGSWAY COLLEGE,AGER_11151,"4,500.00",Programme System File
BIS,Skills Funding Agency,12/01/2017,16-18 Apprenticeship Grant for Employers - Centralised Contract Management,Main Funding,WILTSHIRE TRANSPORT TRAINING & DEVELOPMENT LTD,AGER_11183,"3,000.00",Programme System File
BIS,Skills Funding Agency,12/01/2017,16-18 Apprenticeship Grant for Employers - Centralised Contract Management,Main Funding,WIRRAL METRO COLLEGE,AGEC_3249,"-1,500.00",Programme System File
BIS,Skills Funding Agency,12/01/2017,16-18 Apprenticeship Grant for Employers - Centralised Contract Management,Main Funding,WIRRAL METRO COLLEGE,AGER_11174,"1,500.00",Programme System File
BIS,Skills Funding Agency,12/01/2017,16-18 Apprenticeship Grant for Employers - Centralised Contract Management,Main Funding,YORK COLLEGE,AGEC_3398,"-1,500.00",Programme System File
BIS,Skills Funding Agency,12/01/2017,16-18 Apprenticeship Grant for Employers - Centralised Contract Management,Main Funding,YORK COLLEGE,AGER_11164,"-1,500.00",Programme System File
BIS,Skills Funding Agency,12/01/2017,16-18 Apprenticeship Grant for Employers - Centralised Contract Management,Main Funding,YORK COLLEGE,AGER_11565,"1,500.00",Programme System File
BIS,Skills Funding Agency,12/01/2017,16-18 Apprenticeship Grant for Employers,Main Funding,5 E LTD,NUPS16_7552,"-1,500.00",Programme Template
BIS,Skills Funding Agency,12/01/2017,16-18 Apprenticeship Grant for Employers,Main Funding,BRADFORD CITY COUNCIL,NUPS16_7559,"-1,500.00",Programme Template
BIS,Skills Funding Agency,12/01/2017,16-18 Apprenticeship Grant for Employers,Main Funding,BROOKLANDS TECHNICAL COLLEGE,NUPS16_7456,"-6,000.00",Programme Template
BIS,Skills Funding Agency,12/01/2017,16-18 Apprenticeship Grant for Employers,Main Funding,CABLECOM TRAINING LTD,NUPS16_7458,"-1,500.00",Programme Template
BIS,Skills Funding Agency,12/01/2017,16-18 Apprenticeship Grant for Employers,Main Funding,CABLECOM TRAINING LTD,NUPS16_7561,"-1,500.00",Programme Template
BIS,Skills Funding Agency,12/01/2017,16-18 Apprenticeship Grant for Employers,Main Funding,CHEYNES MANAGEMENT LTD,NUPS16_7508,"-1,500.00",Programme Template
BIS,Skills Funding Agency,12/01/2017,16-18 Apprenticeship Grant for Employers,Main Funding,COLLEGE OF NORTH EAST LONDON,NUPS16_7567,"-1,500.00",Programme Template
BIS,Skills Funding Agency,12/01/2017,16-18 Apprenticeship Grant for Employers,Main Funding,COLLEGE OF NORTH WEST LONDON,NUPS16_7463,"-4,500.00",Programme Template
BIS,Skills Funding Agency,12/01/2017,16-18 Apprenticeship Grant for Employers,Main Funding,COLLEGE OF NORTH WEST LONDON,NUPS16_7758,"-4,500.00",Programme Template
BIS,Skills Funding Agency,12/01/2017,16-18 Apprenticeship Grant for Employers,Main Funding,DUDLEY COLLEGE OF TECHNOLOGY,NUPS16_7505,"-3,000.00",Programme Template
BIS,Skills Funding Agency,12/01/2017,16-18 Apprenticeship Grant for Employers,Main Funding,DUDLEY COLLEGE OF TECHNOLOGY,NUPS16_7634,"-4,500.00",Programme Template
BIS,Skills Funding Agency,12/01/2017,16-18 Apprenticeship Grant for Employers,Main Funding,DUDLEY COLLEGE OF TECHNOLOGY,NUPS16_7770,"-3,000.00",Programme Template
BIS,Skills Funding Agency,12/01/2017,16-18 Apprenticeship Grant for Employers,Main Funding,EALING HAMMERSMITH & WEST LONDON COLLEGE,NUPS16_7568,"-1,500.00",Programme Template
BIS,Skills Funding Agency,12/01/2017,16-18 Apprenticeship Grant for Employers,Main Funding,EAST BERKSHIRE COLLEGE,NUPS16_7464,"-78,000.00",Programme Template
BIS,Skills Funding Agency,12/01/2017,16-18 Apprenticeship Grant for Employers,Main Funding,EAST BERKSHIRE COLLEGE,NUPS16_7569,"-12,000.00",Programme Template
BIS,Skills Funding Agency,12/01/2017,16-18 Apprenticeship Grant for Employers,Main Funding,EAST BERKSHIRE COLLEGE,NUPS16_7771,"1,500.00",Programme Template
BIS,Skills Funding Agency,12/01/2017,16-18 Apprenticeship Grant for Employers,Main Funding,EPPING FOREST COLLEGE,NUPS16_7571,"-1,500.00",Programme Template
BIS,Skills Funding Agency,12/01/2017,16-18 Apprenticeship Grant for Employers,Main Funding,HAIR & BEAUTY INDUSTRY TRAINING LTD,NUPS16_7739,"-3,000.00",Programme Template
BIS,Skills Funding Agency,12/01/2017,16-18 Apprenticeship Grant for Employers,Main Funding,HARTLEPOOL BOROUGH COUNCIL,NUPS16_7468,"-1,500.00",Programme Template
BIS,Skills Funding Agency,12/01/2017,16-18 Apprenticeship Grant for Employers,Main Funding,HOPWOOD HALL COLLEGE,NUPS16_7782,"-3,000.00",Programme Template
BIS,Skills Funding Agency,12/01/2017,16-18 Apprenticeship Grant for Employers,Main Funding,LEARNING CURVE JAA LIMITED,NUPS16_7638,"-1,500.00",Programme Template
BIS,Skills Funding Agency,12/01/2017,16-18 Apprenticeship Grant for Employers,Main Funding,LEEDS CITY COLLEGE,NUPS16_7789,"-3,000.00",Programme Template
BIS,Skills Funding Agency,12/01/2017,16-18 Apprenticeship Grant for Employers,Main Funding,LEICESTERSHIRE COUNTY COUNCIL,NUPS16_7821,"-3,000.00",Programme Template
BIS,Skills Funding Agency,12/01/2017,16-18 Apprenticeship Grant for Employers,Main Funding,LOWESTOFT COLLEGE,NUPS16_7478,"-1,500.00",Programme Template
BIS,Skills Funding Agency,12/01/2017,16-18 Apprenticeship Grant for Employers,Main Funding,LOWESTOFT COLLEGE,NUPS16_7594,"-1,500.00",Programme Template
BIS,Skills Funding Agency,12/01/2017,16-18 Apprenticeship Grant for Employers,Main Funding,LOWESTOFT COLLEGE,NUPS16_7793,"-3,000.00",Programme Template
BIS,Skills Funding Agency,12/01/2017,16-18 Apprenticeship Grant for Employers,Main Funding,NEW COLLEGE NOTTINGHAM,NUPS16_7599,"-1,500.00",Programme Template
BIS,Skills Funding Agency,12/01/2017,16-18 Apprenticeship Grant for Employers,Main Funding,NEWCASTLE UPON TYNE CITY COUNCIL,NUPS16_7482,"-6,000.00",Programme Template
BIS,Skills Funding Agency,12/01/2017,16-18 Apprenticeship Grant for Employers,Main Funding,NORTHERN RACING COLLEGE,NUPS16_7604,"-1,500.00",Programme Template
BIS,Skills Funding Agency,12/01/2017,16-18 Apprenticeship Grant for Employers,Main Funding,NORWICH CITY COLLEGE,NUPS16_7484,"-1,500.00",Programme Template
BIS,Skills Funding Agency,12/01/2017,16-18 Apprenticeship Grant for Employers,Main Funding,NORWICH CITY COLLEGE,NUPS16_7606,"-3,000.00",Programme Template
BIS,Skills Funding Agency,12/01/2017,16-18 Apprenticeship Grant for Employers,Main Funding,NORWICH CITY COLLEGE,NUPS16_7799,"-3,000.00",Programme Template
BIS,Skills Funding Agency,12/01/2017,16-18 Apprenticeship Grant for Employers,Main Funding,SOFTMIST LTD,NUPS16_7646,"-1,500.00",Programme Template
BIS,Skills Funding Agency,12/01/2017,16-18 Apprenticeship Grant for Employers,Main Funding,SOUTH ESSEX COLLEGE,NUPS16_7490,"-42,000.00",Programme Template
BIS,Skills Funding Agency,12/01/2017,16-18 Apprenticeship Grant for Employers,Main Funding,SOUTH ESSEX COLLEGE,NUPS16_7619,"-1,500.00",Programme Template
BIS,Skills Funding Agency,12/01/2017,16-18 Apprenticeship Grant for Employers,Main Funding,SOUTH ESSEX COLLEGE,NUPS16_7805,"-4,500.00",Programme Template
BIS,Skills Funding Agency,12/01/2017,16-18 Apprenticeship Grant for Employers,Main Funding,ST HELENS COLLEGE,NUPS16_7493,"-3,000.00",Programme Template
BIS,Skills Funding Agency,12/01/2017,16-18 Apprenticeship Grant for Employers,Main Funding,STOCKTON RIVERSIDE COLLEGE,NUPS16_7623,"-1,500.00",Programme Template
BIS,Skills Funding Agency,12/01/2017,16-18 Apprenticeship Grant for Employers,Main Funding,T Q WORKFORCE DEVELOPMENT LTD,NUPS16_7640,"-1,500.00",Programme Template
BIS,Skills Funding Agency,12/01/2017,16-18 Apprenticeship Grant for Employers,Main Funding,TDR TRAINING LTD,NUPS16_7742,"-6,000.00",Programme Template
BIS,Skills Funding Agency,12/01/2017,16-18 Apprenticeship Grant for Employers,Main Funding,TELFORD COLLEGE OF ARTS & TECHNOLOGY,NUPS16_7495,"-3,000.00",Programme Template
BIS,Skills Funding Agency,12/01/2017,16-18 Apprenticeship Grant for Employers,Main Funding,TELFORD COLLEGE OF ARTS & TECHNOLOGY,NUPS16_7624,"-3,000.00",Programme Template
BIS,Skills Funding Agency,12/01/2017,16-18 Apprenticeship Grant for Employers,Main Funding,THE CITY OF LIVERPOOL COLLEGE,NUPS16_7766,"-19,500.00",Programme Template
BIS,Skills Funding Agency,12/01/2017,16-18 Apprenticeship Grant for Employers,Main Funding,WEST HERTS COLLEGE,NUPS16_7815,"-4,500.00",Programme Template
BIS,Skills Funding Agency,12/01/2017,16-18 Apprenticeship Grant for Employers,Main Funding,WEST SUFFOLK COLLEGE,NUPS16_7631,"-1,500.00",Programme Template
BIS,Skills Funding Agency,12/01/2017,16-18 Apprenticeship Grant for Employers,Main Funding,WILTSHIRE TRANSPORT TRAINING & DEVELOPMENT LTD,NUPS16_7637,"-1,500.00",Programme Template
BIS,Skills Funding Agency,12/01/2017,16-18 Apprenticeship Grant for Employers,Main Funding,WIRRAL METRO COLLEGE,NUPS16_7502,"-1,500.00",Programme Template
BIS,Skills Funding Agency,12/01/2017,16-18 Apprenticeships - Centralised Contract Management,Main Funding,5 E LTD,AP16R_20452,"1,696.53",Programme System File
BIS,Skills Funding Agency,12/01/2017,16-18 Apprenticeships - Centralised Contract Management,Main Funding,ABINGDON & WITNEY COLLEGE,AP16R_20974,"57,728.81",Programme System File
BIS,Skills Funding Agency,12/01/2017,16-18 Apprenticeships - Centralised Contract Management,Main Funding,ACACIA TRAINING & DEVELOPMENT LTD,AP16R_21077,"32,341.31",Programme System File
BIS,Skills Funding Agency,12/01/2017,16-18 Apprenticeships - Centralised Contract Management,Main Funding,ACACIA TRAINING LTD,AP16R_21186,"12,624.63",Programme System File
BIS,Skills Funding Agency,12/01/2017,16-18 Apprenticeships - Centralised Contract Management,Main Funding,ACADEMIES ENTERPRISE,AP16R_21372,"2,875.55",Programme System File
BIS,Skills Funding Agency,12/01/2017,16-18 Apprenticeships - Centralised Contract Management,Main Funding,ACADEMY EDUCATION LTD,AP16R_20560,"38,026.80",Programme System File
BIS,Skills Funding Agency,12/01/2017,16-18 Apprenticeships - Centralised Contract Management,Main Funding,ACADEMY HAIR & BEAUTY LTD,AP16R_21127,"12,448.03",Programme System File
BIS,Skills Funding Agency,12/01/2017,16-18 Apprenticeships - Centralised Contract Management,Main Funding,ACADEMY TRANSFORMATION TRUST,AP16R_21396,702.70,Programme System File
BIS,Skills Funding Agency,12/01/2017,16-18 Apprenticeships - Centralised Contract Management,Main Funding,ACCESS TRAINING EAST MIDLANDS LTD,AP16R_21235,"46,212.96",Programme System File
BIS,Skills Funding Agency,12/01/2017,16-18 Apprenticeships - Centralised Contract Management,Main Funding,ACCESS TRAINING LTD,AP16R_21216,"53,055.56",Programme System File
BIS,Skills Funding Agency,12/01/2017,16-18 Apprenticeships - Centralised Contract Management,Main Funding,ACCRINGTON & ROSSENDALE COLLEGE,AP16R_21399,"58,207.48",Programme System File
BIS,Skills Funding Agency,12/01/2017,16-18 Apprenticeships - Centralised Contract Management,Main Funding,ACHIEVEMENT TRAINING LIMITED,AP16R_21508,"20,796.95",Programme System File
BIS,Skills Funding Agency,12/01/2017,16-18 Apprenticeships - Centralised Contract Management,Main Funding,ALDER TRAINING LTD,AP16R_20666,"52,468.94",Programme System File
BIS,Skills Funding Agency,12/01/2017,16-18 Apprenticeships - Centralised Contract Management,Main Funding,ALL TRADES TRAINING LIMITED,AP16R_21341,"3,150.66",Programme System File
BIS,Skills Funding Agency,12/01/2017,16-18 Apprenticeships - Centralised Contract Management,Main Funding,ALLIANCE LEARNING LTD,AP16R_20767,"91,060.71",Programme System File
BIS,Skills Funding Agency,12/01/2017,16-18 Apprenticeships - Centralised Contract Management,Main Funding,ALT VALLEY COMMUNITY TRUST LTD,AP16R_20539,"5,211.92",Programme System File
BIS,Skills Funding Agency,12/01/2017,16-18 Apprenticeships - Centralised Contract Management,Main Funding,AMERSHAM & WYCOMBE COLLEGE,AP16R_20822,"24,107.76",Programme System File
BIS,Skills Funding Agency,12/01/2017,16-18 Apprenticeships - Centralised Contract Management,Main Funding,ANDERSON STOCKLEY ACCREDITED TRAINING LTD,AP16R_21314,"14,069.83",Programme System File
BIS,Skills Funding Agency,12/01/2017,16-18 Apprenticeships - Centralised Contract Management,Main Funding,ANDREW COLLINGE TRAINING LTD,AP16R_20833,"49,610.49",Programme System File
BIS,Skills Funding Agency,12/01/2017,16-18 Apprenticeships - Centralised Contract Management,Main Funding,ANNE CLARKE ASSOCIATES LTD,AP16R_21289,"6,557.11",Programme System File
BIS,Skills Funding Agency,12/01/2017,16-18 Apprenticeships - Centralised Contract Management,Main Funding,APPRENTICE FUNDING ASSISTANT LTD,AP16R_21344,"121,375.21",Programme System File
BIS,Skills Funding Agency,12/01/2017,16-18 Apprenticeships - Centralised Contract Management,Main Funding,APPRENTICESHIPS & TRAINING SERVICES CONSORTIUM LIMITED,AP16R_21366,"113,026.62",Programme System File
BIS,Skills Funding Agency,12/01/2017,16-18 Apprenticeships - Centralised Contract Management,Main Funding,APPRIS CHARITY LIMITED,AP16R_21315,"73,997.31",Programme System File
BIS,Skills Funding Agency,12/01/2017,16-18 Apprenticeships - Centralised Contract Management,Main Funding,ASKHAM BRYAN COLLEGE,AP16R_20888,"111,277.20",Programme System File
BIS,Skills Funding Agency,12/01/2017,16-18 Apprenticeships - Centralised Contract Management,Main Funding,ASPIRATION TRAINING LTD,AP16R_20898,"65,514.13",Programme System File
BIS,Skills Funding Agency,12/01/2017,16-18 Apprenticeships - Centralised Contract Management,Main Funding,ASPIRE ACHIEVE ADVANCE LIMITED,AP16R_21355,"955,682.10",Programme System File
BIS,Skills Funding Agency,12/01/2017,16-18 Apprenticeships - Centralised Contract Management,Main Funding,ASPIRE TRAINING TEAM,AP16R_21140,"31,106.41",Programme System File
BIS,Skills Funding Agency,12/01/2017,16-18 Apprenticeships - Centralised Contract Management,Main Funding,ASSET TRAINING & CONSULTANCY LTD,AP16R_20919,"56,413.47",Programme System File
BIS,Skills Funding Agency,12/01/2017,16-18 Apprenticeships - Centralised Contract Management,Main Funding,ASTUTE MINDS LTD,AP16R_21269,"145,041.55",Programme System File
BIS,Skills Funding Agency,12/01/2017,16-18 Apprenticeships - Centralised Contract Management,Main Funding,ATG TRAINING,AP16R_20843,"71,914.53",Programme System File
BIS,Skills Funding Agency,12/01/2017,16-18 Apprenticeships - Centralised Contract Management,Main Funding,AURELIA TRAINING LTD,AP16R_20952,"9,428.42",Programme System File
BIS,Skills Funding Agency,12/01/2017,16-18 Apprenticeships - Centralised Contract Management,Main Funding,AVANT PARTNERSHIP LTD,AP16R_21296,"27,810.02",Programme System File
BIS,Skills Funding Agency,12/01/2017,16-18 Apprenticeships - Centralised Contract Management,Main Funding,AVANTA ENTERPRISE LTD,AP16R_21391,"121,302.53",Programme System File
BIS,Skills Funding Agency,12/01/2017,16-18 Apprenticeships - Centralised Contract Management,Main Funding,AXIA SOLUTIONS LTD,AP16R_20975,"23,057.66",Programme System File
BIS,Skills Funding Agency,12/01/2017,16-18 Apprenticeships - Centralised Contract Management,Main Funding,AYLESBURY COLLEGE,AP16R_20996,"105,234.89",Programme System File
BIS,Skills Funding Agency,12/01/2017,16-18 Apprenticeships - Centralised Contract Management,Main Funding,B SKILL LTD,AP16R_20866,"29,480.67",Programme System File
BIS,Skills Funding Agency,12/01/2017,16-18 Apprenticeships - Centralised Contract Management,Main Funding,BABCOCK SKILLS DEVELOPMENT & TRAINING LTD,AP16R_21387,"91,630.79",Programme System File
BIS,Skills Funding Agency,12/01/2017,16-18 Apprenticeships - Centralised Contract Management,Main Funding,BABCOCK TRAINING LTD,AP16R_20853,"682,089.48",Programme System File
BIS,Skills Funding Agency,12/01/2017,16-18 Apprenticeships - Centralised Contract Management,Main Funding,BABINGTON BUSINESS COLLEGE LTD,AP16R_20877,"295,609.99",Programme System File
BIS,Skills Funding Agency,12/01/2017,16-18 Apprenticeships - Centralised Contract Management,Main Funding,BAE SYSTEMS PLC,AP16R_20909,"223,219.94",Programme System File
BIS,Skills Funding Agency,12/01/2017,16-18 Apprenticeships - Centralised Contract Management,Main Funding,BALTIC TRAINING SERVICES LTD,AP16R_21266,"407,714.02",Programme System File
BIS,Skills Funding Agency,12/01/2017,16-18 Apprenticeships - Centralised Contract Management,Main Funding,BARCHESTER HEALTHCARE LTD,AP16R_20930,"5,992.71",Programme System File
BIS,Skills Funding Agency,12/01/2017,16-18 Apprenticeships - Centralised Contract Management,Main Funding,BARKING & DAGENHAM COLLEGE,AP16R_21006,"94,429.46",Programme System File
BIS,Skills Funding Agency,12/01/2017,16-18 Apprenticeships - Centralised Contract Management,Main Funding,BARKING & DAGENHAM LONDON BOROUGH COUNCIL,AP16R_21616,"3,353.35",Programme System File
BIS,Skills Funding Agency,12/01/2017,16-18 Apprenticeships - Centralised Contract Management,Main Funding,BARNARDOS,AP16R_20963,"15,889.60",Programme System File
BIS,Skills Funding Agency,12/01/2017,16-18 Apprenticeships - Centralised Contract Management,Main Funding,BARNET AND SOUTHGATE COLLEGE,AP16R_20986,"38,526.74",Programme System File
BIS,Skills Funding Agency,12/01/2017,16-18 Apprenticeships - Centralised Contract Management,Main Funding,BARNFIELD COLLEGE,AP16R_21016,"35,632.77",Programme System File
BIS,Skills Funding Agency,12/01/2017,16-18 Apprenticeships - Centralised Contract Management,Main Funding,BARNSLEY COLLEGE,AP16R_21026,"217,328.67",Programme System File
BIS,Skills Funding Agency,12/01/2017,16-18 Apprenticeships - Centralised Contract Management,Main Funding,BASINGSTOKE COLLEGE,AP16R_21046,"127,959.98",Programme System File
BIS,Skills Funding Agency,12/01/2017,16-18 Apprenticeships - Centralised Contract Management,Main Funding,BASINGSTOKE YOUTH ACTION TRUST LTD,AP16R_21067,"16,415.44",Programme System File
BIS,Skills Funding Agency,12/01/2017,16-18 Apprenticeships - Centralised Contract Management,Main Funding,BC ARCH LTD T/A ARCH APPRENTICES,AP16R_21423,"165,451.93",Programme System File
BIS,Skills Funding Agency,12/01/2017,16-18 Apprenticeships - Centralised Contract Management,Main Funding,BCTG LIMITED,AP16R_21129,"294,721.10",Programme System File
BIS,Skills Funding Agency,12/01/2017,16-18 Apprenticeships - Centralised Contract Management,Main Funding,BE TOTALLY YOU,AP16R_21268,"15,411.65",Programme System File
BIS,Skills Funding Agency,12/01/2017,16-18 Apprenticeships - Centralised Contract Management,Main Funding,BE WISER INSURANCE SERVICES LIMITED,AP16R_21408,"14,721.10",Programme System File
BIS,Skills Funding Agency,12/01/2017,16-18 Apprenticeships - Centralised Contract Management,Main Funding,BEDFORD COLLEGE,AP16R_21089,"220,419.69",Programme System File
BIS,Skills Funding Agency,12/01/2017,16-18 Apprenticeships - Centralised Contract Management,Main Funding,BERKSHIRE COLLEGE OF AGRICULTURE,AP16R_21100,"14,744.07",Programme System File
BIS,Skills Funding Agency,12/01/2017,16-18 Apprenticeships - Centralised Contract Management,Main Funding,BESTLAND SOLUTIONS LTD,AP16R_21267,"54,916.43",Programme System File
BIS,Skills Funding Agency,12/01/2017,16-18 Apprenticeships - Centralised Contract Management,Main Funding,BEXHILL COLLEGE,AP16R_21121,"3,288.88",Programme System File
BIS,Skills Funding Agency,12/01/2017,16-18 Apprenticeships - Centralised Contract Management,Main Funding,BEXLEY LONDON BOROUGH COUNCIL,AP16R_20453,967.31,Programme System File
BIS,Skills Funding Agency,12/01/2017,16-18 Apprenticeships - Centralised Contract Management,Main Funding,BEXLEY YOUTH TRAINING GROUP,AP16R_21153,"75,554.22",Programme System File
BIS,Skills Funding Agency,12/01/2017,16-18 Apprenticeships - Centralised Contract Management,Main Funding,BIRMINGHAM ELECTRICAL TRAINING LTD,AP16R_21057,"47,768.70",Programme System File
BIS,Skills Funding Agency,12/01/2017,16-18 Apprenticeships - Centralised Contract Management,Main Funding,BISHOP BURTON COLLEGE,AP16R_21142,49320.77,Programme System File
BIS,Skills Funding Agency,12/01/2017,16-18 Apprenticeships - Centralised Contract Management,Main Funding,BL TRAINING LTD,AP16R_20854,"67,866.17",Programme System File
BIS,Skills Funding Agency,12/01/2017,16-18 Apprenticeships - Centralised Contract Management,Main Funding,BLACKBURN COLLEGE,AP16R_21110,"94,108.67",Programme System File
BIS,Skills Funding Agency,12/01/2017,16-18 Apprenticeships - Centralised Contract Management,Main Funding,BLACKPOOL & FLYDE COLLEGE,AP16R_21132,"102,996.04",Programme System File
BIS,Skills Funding Agency,12/01/2017,16-18 Apprenticeships - Centralised Contract Management,Main Funding,BLUE ARROW LTD,AP16R_21413,94.21,Programme System File
BIS,Skills Funding Agency,12/01/2017,16-18 Apprenticeships - Centralised Contract Management,Main Funding,BOLTON COMMUNITY COLLEGE,AP16R_21209,"88,644.63",Programme System File
BIS,Skills Funding Agency,12/01/2017,16-18 Apprenticeships - Centralised Contract Management,Main Funding,BOROUGH OF POOLE,AP16C_4201,"-18,789.68",Programme System File
BIS,Skills Funding Agency,12/01/2017,16-18 Apprenticeships - Centralised Contract Management,Main Funding,BOROUGH OF POOLE,AP16R_21017,"18,789.68",Programme System File
BIS,Skills Funding Agency,12/01/2017,16-18 Apprenticeships - Centralised Contract Management,Main Funding,BOSCH AUTOMOTIVE SERVICE SOLUTIONS LTD,AP16R_21407,"123,871.61",Programme System File
BIS,Skills Funding Agency,12/01/2017,16-18 Apprenticeships - Centralised Contract Management,Main Funding,BOSTON COLLEGE,AP16R_21175,"70,666.98",Programme System File
BIS,Skills Funding Agency,12/01/2017,16-18 Apprenticeships - Centralised Contract Management,Main Funding,BOURNEMOUTH & POOLE COLLEGE,AP16R_21187,"226,284.27",Programme System File
BIS,Skills Funding Agency,12/01/2017,16-18 Apprenticeships - Centralised Contract Management,Main Funding,BOURNVILLE COLLEGE OF HIGHER EDUCATION,AP16R_21219,"37,736.18",Programme System File
BIS,Skills Funding Agency,12/01/2017,16-18 Apprenticeships - Centralised Contract Management,Main Funding,BPP HOLDINGS PLC,AP16R_21261,"208,561.26",Programme System File
BIS,Skills Funding Agency,12/01/2017,16-18 Apprenticeships - Centralised Contract Management,Main Funding,BRACKNELL & WOKINGHAM COLLEGE,AP16R_21240,"57,838.51",Programme System File
BIS,Skills Funding Agency,12/01/2017,16-18 Apprenticeships - Centralised Contract Management,Main Funding,BRADFORD CITY COUNCIL,AP16R_21164,"6,624.91",Programme System File
BIS,Skills Funding Agency,12/01/2017,16-18 Apprenticeships - Centralised Contract Management,Main Funding,BRADFORD COLLEGE,AP16R_21295,"211,528.58",Programme System File
BIS,Skills Funding Agency,12/01/2017,16-18 Apprenticeships - Centralised Contract Management,Main Funding,BRIDGWATER COLLEGE,AP16R_21426,"249,212.49",Programme System File
BIS,Skills Funding Agency,12/01/2017,16-18 Apprenticeships - Centralised Contract Management,Main Funding,BRIGHT HORIZONS FAMILY SOLUTIONS LTD,AP16C_4196,"-5,135.15",Programme System File
BIS,Skills Funding Agency,12/01/2017,16-18 Apprenticeships - Centralised Contract Management,Main Funding,BRIGHT HORIZONS FAMILY SOLUTIONS LTD,AP16R_20889,"16,914.74",Programme System File
BIS,Skills Funding Agency,12/01/2017,16-18 Apprenticeships - Centralised Contract Management,Main Funding,BRINSWORTH TRAINING LIMITED,AP16R_21293,"23,289.92",Programme System File
BIS,Skills Funding Agency,12/01/2017,16-18 Apprenticeships - Centralised Contract Management,Main Funding,BRISTOL CITY COUNCIL,AP16R_21427,"88,490.94",Programme System File
BIS,Skills Funding Agency,12/01/2017,16-18 Apprenticeships - Centralised Contract Management,Main Funding,BRITISH ARMY,AP16R_21373,"786,991.44",Programme System File
BIS,Skills Funding Agency,12/01/2017,16-18 Apprenticeships - Centralised Contract Management,Main Funding,BRITISH GAS SERVICES LIMITED,AP16R_21229,"12,612.44",Programme System File
BIS,Skills Funding Agency,12/01/2017,16-18 Apprenticeships - Centralised Contract Management,Main Funding,BRITISH NUCLEAR FUELS PLC,AP16R_21232,"26,797.02",Programme System File
BIS,Skills Funding Agency,12/01/2017,16-18 Apprenticeships - Centralised Contract Management,Main Funding,BRITISH PRINTING INDUSTRIES FEDERATION LTD,AP16R_21251,"36,335.29",Programme System File
BIS,Skills Funding Agency,12/01/2017,16-18 Apprenticeships - Centralised Contract Management,Main Funding,BRITISH TELECOM PLC,AP16R_21340,"85,668.03",Programme System File
BIS,Skills Funding Agency,12/01/2017,16-18 Apprenticeships - Centralised Contract Management,Main Funding,BROADLAND DISTRICT COUNCIL,AP16R_21272,"50,109.99",Programme System File
BIS,Skills Funding Agency,12/01/2017,16-18 Apprenticeships - Centralised Contract Management,Main Funding,BROMLEY COLLEGE OF FURTHER & HIGHER EDUCATION,AP16R_21440,"187,873.33",Programme System File
BIS,Skills Funding Agency,12/01/2017,16-18 Apprenticeships - Centralised Contract Management,Main Funding,BROOKLANDS TECHNICAL COLLEGE,AP16R_21306,"518,540.42",Programme System File
BIS,Skills Funding Agency,12/01/2017,16-18 Apprenticeships - Centralised Contract Management,Main Funding,BUCKINGHAMSHIRE COUNTY COUNCIL,AP16R_21346,"14,743.25",Programme System File
BIS,Skills Funding Agency,12/01/2017,16-18 Apprenticeships - Centralised Contract Management,Main Funding,BUILDING CRAFTS COLLEGE,AP16R_21218,"14,585.74",Programme System File
BIS,Skills Funding Agency,12/01/2017,16-18 Apprenticeships - Centralised Contract Management,Main Funding,BURNLEY COLLEGE,AP16R_21335,"125,203.09",Programme System File
BIS,Skills Funding Agency,12/01/2017,16-18 Apprenticeships - Centralised Contract Management,Main Funding,BURY COLLEGE,AP16R_21432,"119,931.70",Programme System File
BIS,Skills Funding Agency,12/01/2017,16-18 Apprenticeships - Centralised Contract Management,Main Funding,BUSINESS MANAGEMENT RESOURCES UK LTD,AP16R_21411,"1,694.82",Programme System File
BIS,Skills Funding Agency,12/01/2017,16-18 Apprenticeships - Centralised Contract Management,Main Funding,BUSY BEES NURSERIES,AP16R_21352,"103,907.02",Programme System File
BIS,Skills Funding Agency,12/01/2017,16-18 Apprenticeships - Centralised Contract Management,Main Funding,CABLECOM TRAINING LTD,AP16R_21442,"3,906.61",Programme System File
BIS,Skills Funding Agency,12/01/2017,16-18 Apprenticeships - Centralised Contract Management,Main Funding,CALDERDALE COLLEGE,AP16R_21464,"88,590.77",Programme System File
BIS,Skills Funding Agency,12/01/2017,16-18 Apprenticeships - Centralised Contract Management,Main Funding,CAMBRIDGE REGIONAL COLLEGE,AP16R_21435,"256,571.35",Programme System File
BIS,Skills Funding Agency,12/01/2017,16-18 Apprenticeships - Centralised Contract Management,Main Funding,CANTERBURY COLLEGE,AP16R_21356,"70,327.51",Programme System File
BIS,Skills Funding Agency,12/01/2017,16-18 Apprenticeships - Centralised Contract Management,Main Funding,CAPEL MANOR COLLEGE,AP16R_21367,"12,112.41",Programme System File
BIS,Skills Funding Agency,12/01/2017,16-18 Apprenticeships - Centralised Contract Management,Main Funding,CAPITA PLC,AP16R_21388,"109,284.57",Programme System File
BIS,Skills Funding Agency,12/01/2017,16-18 Apprenticeships - Centralised Contract Management,Main Funding,CAPITAL ENGINEERING GROUP HOLDINGS LTD,AP16R_21288,"31,930.20",Programme System File
BIS,Skills Funding Agency,12/01/2017,16-18 Apprenticeships - Centralised Contract Management,Main Funding,CARE FIRST TRAINING LTD,AP16R_20791,605.68,Programme System File
BIS,Skills Funding Agency,12/01/2017,16-18 Apprenticeships - Centralised Contract Management,Main Funding,CARE LEARNING CENTRE ISLE OF WIGHT LTD,AP16R_21131,"5,163.95",Programme System File
BIS,Skills Funding Agency,12/01/2017,16-18 Apprenticeships - Centralised Contract Management,Main Funding,CARE TRAINING EAST MIDLANDS LIMITED,AP16R_21400,"48,570.14",Programme System File
BIS,Skills Funding Agency,12/01/2017,16-18 Apprenticeships - Centralised Contract Management,Main Funding,CARE UK COMMUNITY PARTNERSHIPS LTD,AP16R_21414,"1,806.67",Programme System File
BIS,Skills Funding Agency,12/01/2017,16-18 Apprenticeships - Centralised Contract Management,Main Funding,CARILLION CONSTRUCTION LTD,AP16R_21422,"560,319.03",Programme System File
BIS,Skills Funding Agency,12/01/2017,16-18 Apprenticeships - Centralised Contract Management,Main Funding,CARLISLE COLLEGE,AP16R_21453,"73,167.44",Programme System File
BIS,Skills Funding Agency,12/01/2017,16-18 Apprenticeships - Centralised Contract Management,Main Funding,CATCH 22 CHARITY LTD,AP16R_21333,"117,561.91",Programme System File
BIS,Skills Funding Agency,12/01/2017,16-18 Apprenticeships - Centralised Contract Management,Main Funding,CENTRAL BEDFORDSHIRE COLLEGE,AP16R_20788,"31,287.16",Programme System File
BIS,Skills Funding Agency,12/01/2017,16-18 Apprenticeships - Centralised Contract Management,Main Funding,CENTRAL BEDFORDSHIRE COUNCIL,AP16C_4212,"-5,821.57",Programme System File
BIS,Skills Funding Agency,12/01/2017,16-18 Apprenticeships - Centralised Contract Management,Main Funding,CENTRAL BEDFORDSHIRE COUNCIL,AP16R_21312,"5,821.57",Programme System File
BIS,Skills Funding Agency,12/01/2017,16-18 Apprenticeships - Centralised Contract Management,Main Funding,CENTRAL COLLEGE NOTTINGHAM,AP16R_21451,"283,226.24",Programme System File
BIS,Skills Funding Agency,12/01/2017,16-18 Apprenticeships - Centralised Contract Management,Main Funding,CENTRAL SUSSEX COLLEGE,AP16R_20529,"76,778.54",Programme System File
BIS,Skills Funding Agency,12/01/2017,16-18 Apprenticeships - Centralised Contract Management,Main Funding,CENTRAL TRAINING ACADEMY LTD,AP16R_21519,"187,410.47",Programme System File
BIS,Skills Funding Agency,12/01/2017,16-18 Apprenticeships - Centralised Contract Management,Main Funding,CHAMBER TRAINING HUMBER LTD,AP16R_21605,"33,569.63",Programme System File
BIS,Skills Funding Agency,12/01/2017,16-18 Apprenticeships - Centralised Contract Management,Main Funding,CHAPMAN BENNETT ASSOCIATES LIMITED,AP16R_21325,"15,338.48",Programme System File
BIS,Skills Funding Agency,12/01/2017,16-18 Apprenticeships - Centralised Contract Management,Main Funding,CHELMSFORD COLLEGE,AP16R_21584,"51,919.94",Programme System File
BIS,Skills Funding Agency,12/01/2017,16-18 Apprenticeships - Centralised Contract Management,Main Funding,CHEYNES MANAGEMENT LTD,AP16R_21211,"153,738.19",Programme System File
BIS,Skills Funding Agency,12/01/2017,16-18 Apprenticeships - Centralised Contract Management,Main Funding,CHICHESTER COLLEGE,AP16R_21197,"141,469.67",Programme System File
BIS,Skills Funding Agency,12/01/2017,16-18 Apprenticeships - Centralised Contract Management,Main Funding,CHILDRENS LINKS,AP16R_21486,"16,382.42",Programme System File
BIS,Skills Funding Agency,12/01/2017,16-18 Apprenticeships - Centralised Contract Management,Main Funding,CHILTERN TRAINING LTD,AP16R_21497,"66,339.27",Programme System File
BIS,Skills Funding Agency,12/01/2017,16-18 Apprenticeships - Centralised Contract Management,Main Funding,CITB CONSTRUCTIONSKILLS,AP16R_21509,"2,037,931.84",Programme System File
BIS,Skills Funding Agency,12/01/2017,16-18 Apprenticeships - Centralised Contract Management,Main Funding,CITROEN UK LTD,AP16R_21263,"55,517.01",Programme System File
BIS,Skills Funding Agency,12/01/2017,16-18 Apprenticeships - Centralised Contract Management,Main Funding,CITY COLLEGE BRIGHTON & HOVE,AP16R_21541,"56,070.16",Programme System File
BIS,Skills Funding Agency,12/01/2017,16-18 Apprenticeships - Centralised Contract Management,Main Funding,CITY COLLEGE COVENTRY,AP16R_21595,"52,913.59",Programme System File
BIS,Skills Funding Agency,12/01/2017,16-18 Apprenticeships - Centralised Contract Management,Main Funding,CITY COLLEGE PLYMOUTH,AP16R_21015,"195,095.91",Programme System File
BIS,Skills Funding Agency,12/01/2017,16-18 Apprenticeships - Centralised Contract Management,Main Funding,CITY GATEWAY LTD,AP16R_21271,"5,603.16",Programme System File
BIS,Skills Funding Agency,12/01/2017,16-18 Apprenticeships - Centralised Contract Management,Main Funding,CITY OF BATH COLLEGE,AP16R_21617,"58,036.38",Programme System File
BIS,Skills Funding Agency,12/01/2017,16-18 Apprenticeships - Centralised Contract Management,Main Funding,CITY OF LONDON ADULT EDUCATION,AP16R_21243,"10,991.06",Programme System File
BIS,Skills Funding Agency,12/01/2017,16-18 Apprenticeships - Centralised Contract Management,Main Funding,CITY OF SUNDERLAND COLLEGE,AP16R_21704,"81,073.09",Programme System File
BIS,Skills Funding Agency,12/01/2017,16-18 Apprenticeships - Centralised Contract Management,Main Funding,CITY OF WESTMINSTER COLLEGE,AP16R_20386,"-5,021.42",Programme System File
BIS,Skills Funding Agency,12/01/2017,16-18 Apprenticeships - Centralised Contract Management,Main Funding,CITY OF WESTMINSTER COLLEGE,AP16R_21671,"15,878.00",Programme System File
BIS,Skills Funding Agency,12/01/2017,16-18 Apprenticeships - Centralised Contract Management,Main Funding,CITY OF WOLVERHAMPTON COLLEGE,AP16R_21184,"137,178.69",Programme System File
BIS,Skills Funding Agency,12/01/2017,16-18 Apprenticeships - Centralised Contract Management,Main Funding,CITY OF YORK COUNCIL,AP16R_21715,"6,909.37",Programme System File
BIS,Skills Funding Agency,12/01/2017,16-18 Apprenticeships - Centralised Contract Management,Main Funding,CLARKSON EVANS TRAINING LIMITED,AP16R_21332,"17,752.54",Programme System File
BIS,Skills Funding Agency,12/01/2017,16-18 Apprenticeships - Centralised Contract Management,Main Funding,CLEVELAND YOUTH ASSOCIATION,AP16R_21060,"13,257.69",Programme System File
BIS,Skills Funding Agency,12/01/2017,16-18 Apprenticeships - Centralised Contract Management,Main Funding,COLCHESTER INSTITUTE,AP16R_20454,"216,255.30",Programme System File
BIS,Skills Funding Agency,12/01/2017,16-18 Apprenticeships - Centralised Contract Management,Main Funding,COLLEGE OF ANIMAL WELFARE LTD,AP16R_20498,"28,520.39",Programme System File
BIS,Skills Funding Agency,12/01/2017,16-18 Apprenticeships - Centralised Contract Management,Main Funding,COLLEGE OF NORTH EAST LONDON,AP16R_20465,"64,500.76",Programme System File
BIS,Skills Funding Agency,12/01/2017,16-18 Apprenticeships - Centralised Contract Management,Main Funding,COLLEGE OF NORTH WEST LONDON,AP16R_20487,"51,489.74",Programme System File
BIS,Skills Funding Agency,12/01/2017,16-18 Apprenticeships - Centralised Contract Management,Main Funding,COLLEGE OF RICHARD COLLYER,AP16R_20519,"3,206.17",Programme System File
BIS,Skills Funding Agency,12/01/2017,16-18 Apprenticeships - Centralised Contract Management,Main Funding,COLLEGE OF WEST ANGLIA,AP16R_21202,"129,317.01",Programme System File
BIS,Skills Funding Agency,12/01/2017,16-18 Apprenticeships - Centralised Contract Management,Main Funding,COMMUNITY TRAINING SERVICES LTD,AP16R_21649,"20,373.02",Programme System File
BIS,Skills Funding Agency,12/01/2017,16-18 Apprenticeships - Centralised Contract Management,Main Funding,COMPASS GROUP UK & IRELAND LTD,AP16R_21317,"4,442.01",Programme System File
BIS,Skills Funding Agency,12/01/2017,16-18 Apprenticeships - Centralised Contract Management,Main Funding,CONSORTIA TRAINING LIMITED,AP16R_21365,"46,092.48",Programme System File
BIS,Skills Funding Agency,12/01/2017,16-18 Apprenticeships - Centralised Contract Management,Main Funding,CORNWALL COLLEGE,AP16R_21682,"313,414.88",Programme System File
BIS,Skills Funding Agency,12/01/2017,16-18 Apprenticeships - Centralised Contract Management,Main Funding,COVENTRY & WARWICKSHIRE CHAMBERS OF COMMERCE TRAINING LIMITED,AP16R_21551,"77,141.70",Programme System File
BIS,Skills Funding Agency,12/01/2017,16-18 Apprenticeships - Centralised Contract Management,Main Funding,COVENTRY CITY COUNCIL,AP16R_21447,"10,846.29",Programme System File
BIS,Skills Funding Agency,12/01/2017,16-18 Apprenticeships - Centralised Contract Management,Main Funding,COVET LTD,AP16R_21368,"31,006.77",Programme System File
BIS,Skills Funding Agency,12/01/2017,16-18 Apprenticeships - Centralised Contract Management,Main Funding,CRACKERJACK TRAINING LTD,AP16R_20476,"29,746.82",Programme System File
BIS,Skills Funding Agency,12/01/2017,16-18 Apprenticeships - Centralised Contract Management,Main Funding,CRAVEN COLLEGE,AP16R_20508,"124,063.10",Programme System File
BIS,Skills Funding Agency,12/01/2017,16-18 Apprenticeships - Centralised Contract Management,Main Funding,CREATIVE PROCESS,AP16R_21313,"24,914.76",Programme System File
BIS,Skills Funding Agency,12/01/2017,16-18 Apprenticeships - Centralised Contract Management,Main Funding,CROYDON COLLEGE,AP16R_20561,"35,436.51",Programme System File
BIS,Skills Funding Agency,12/01/2017,16-18 Apprenticeships - Centralised Contract Management,Main Funding,CSM CONSULTING LTD,AP16R_20582,"30,368.68",Programme System File
BIS,Skills Funding Agency,12/01/2017,16-18 Apprenticeships - Centralised Contract Management,Main Funding,CUMBRIA COUNTY COUNCIL,AP16R_20603,318.07,Programme System File
BIS,Skills Funding Agency,12/01/2017,16-18 Apprenticeships - Centralised Contract Management,Main Funding,D MANTLE LIMITED,AP16R_21353,"18,547.20",Programme System File
BIS,Skills Funding Agency,12/01/2017,16-18 Apprenticeships - Centralised Contract Management,Main Funding,DAMAR LTD,AP16R_20647,"172,218.23",Programme System File
BIS,Skills Funding Agency,12/01/2017,16-18 Apprenticeships - Centralised Contract Management,Main Funding,DARLINGTON BOROUGH COUNCIL,AP16R_20667,"15,608.37",Programme System File
BIS,Skills Funding Agency,12/01/2017,16-18 Apprenticeships - Centralised Contract Management,Main Funding,DARLINGTON COLLEGE,AP16R_20686,"88,270.66",Programme System File
BIS,Skills Funding Agency,12/01/2017,16-18 Apprenticeships - Centralised Contract Management,Main Funding,DART LTD,AP16R_16801,"-28,245.90",Programme System File
BIS,Skills Funding Agency,12/01/2017,16-18 Apprenticeships - Centralised Contract Management,Main Funding,DART LTD,AP16R_19355,"52,069.87",Programme System File
BIS,Skills Funding Agency,12/01/2017,16-18 Apprenticeships - Centralised Contract Management,Main Funding,DART LTD,AP16R_20625,"54,046.34",Programme System File
BIS,Skills Funding Agency,12/01/2017,16-18 Apprenticeships - Centralised Contract Management,Main Funding,DAVIDSON TRAINING UK LIMITED,AP16R_20706,"12,469.97",Programme System File
BIS,Skills Funding Agency,12/01/2017,16-18 Apprenticeships - Centralised Contract Management,Main Funding,DAWN HODGE ASSOCIATES LTD,AP16R_21287,"13,138.74",Programme System File
BIS,Skills Funding Agency,12/01/2017,16-18 Apprenticeships - Centralised Contract Management,Main Funding,DEARNE VALLEY COLLEGE,AP16R_20549,"39,474.48",Programme System File
BIS,Skills Funding Agency,12/01/2017,16-18 Apprenticeships - Centralised Contract Management,Main Funding,DERBY BUSINESS COLLEGE,AP16R_21011,"7,872.81",Programme System File
BIS,Skills Funding Agency,12/01/2017,16-18 Apprenticeships - Centralised Contract Management,Main Funding,DERBY CITY COUNCIL,AP16R_20571,"14,913.10",Programme System File
BIS,Skills Funding Agency,12/01/2017,16-18 Apprenticeships - Centralised Contract Management,Main Funding,DERBY COLLEGE,AP16R_20592,"232,054.24",Programme System File
BIS,Skills Funding Agency,12/01/2017,16-18 Apprenticeships - Centralised Contract Management,Main Funding,DERBYSHIRE & NOTTINGHAMSHIRE CHAMBER OF COMMERCE & INDUSTRY,AP16R_20614,"26,096.87",Programme System File
BIS,Skills Funding Agency,12/01/2017,16-18 Apprenticeships - Centralised Contract Management,Main Funding,DERBYSHIRE COUNTY COUNCIL,AP16R_20636,"6,896.21",Programme System File
BIS,Skills Funding Agency,12/01/2017,16-18 Apprenticeships - Centralised Contract Management,Main Funding,DERBYSHIRE NETWORK,AP16R_21135,"38,687.81",Programme System File
BIS,Skills Funding Agency,12/01/2017,16-18 Apprenticeships - Centralised Contract Management,Main Funding,DERWENTSIDE COLLEGE,AP16R_20676,"92,656.90",Programme System File
BIS,Skills Funding Agency,12/01/2017,16-18 Apprenticeships - Centralised Contract Management,Main Funding,DEVON COUNTY COUNCIL,AP16R_20696,244.06,Programme System File
BIS,Skills Funding Agency,12/01/2017,16-18 Apprenticeships - Centralised Contract Management,Main Funding,DHL INTERNATIONAL UK LTD,AP16C_4214,"-25,521.97",Programme System File
BIS,Skills Funding Agency,12/01/2017,16-18 Apprenticeships - Centralised Contract Management,Main Funding,DHL INTERNATIONAL UK LTD,AP16R_21322,"25,526.68",Programme System File
BIS,Skills Funding Agency,12/01/2017,16-18 Apprenticeships - Centralised Contract Management,Main Funding,DIDAC LTD,AP16R_20717,"15,320.50",Programme System File
BIS,Skills Funding Agency,12/01/2017,16-18 Apprenticeships - Centralised Contract Management,Main Funding,DIMENSIONS TRAINING SOLUTIONS LTD,AP16R_20727,"23,411.78",Programme System File
BIS,Skills Funding Agency,12/01/2017,16-18 Apprenticeships - Centralised Contract Management,Main Funding,DONCASTER COLLEGE,AP16R_20747,"131,030.18",Programme System File
BIS,Skills Funding Agency,12/01/2017,16-18 Apprenticeships - Centralised Contract Management,Main Funding,DONCASTER METRO BOROUGH COUNCIL,AP16R_20768,"11,972.03",Programme System File
BIS,Skills Funding Agency,12/01/2017,16-18 Apprenticeships - Centralised Contract Management,Main Funding,DONCASTER ROTHERHAM & DISTRICT MOTOR TRADES GROUP TRAINING ASSOCIATION LTD,AP16R_20778,"54,280.38",Programme System File
BIS,Skills Funding Agency,12/01/2017,16-18 Apprenticeships - Centralised Contract Management,Main Funding,DOOSAN BABCOCK LTD,AP16R_20938,"48,079.73",Programme System File
BIS,Skills Funding Agency,12/01/2017,16-18 Apprenticeships - Centralised Contract Management,Main Funding,DUDLEY COLLEGE OF TECHNOLOGY,AP16R_21203,"391,225.00",Programme System File
BIS,Skills Funding Agency,12/01/2017,16-18 Apprenticeships - Centralised Contract Management,Main Funding,DURHAM COUNTY COUNCIL,AP16R_20795,"9,245.06",Programme System File
BIS,Skills Funding Agency,12/01/2017,16-18 Apprenticeships - Centralised Contract Management,Main Funding,E TRAINING LTD,AP16R_20804,"8,866.16",Programme System File
BIS,Skills Funding Agency,12/01/2017,16-18 Apprenticeships - Centralised Contract Management,Main Funding,EALING HAMMERSMITH & WEST LONDON COLLEGE,AP16R_20798,"28,217.56",Programme System File
BIS,Skills Funding Agency,12/01/2017,16-18 Apprenticeships - Centralised Contract Management,Main Funding,EAST BERKSHIRE COLLEGE,AP16R_20800,"65,611.82",Programme System File
BIS,Skills Funding Agency,12/01/2017,16-18 Apprenticeships - Centralised Contract Management,Main Funding,EAST DURHAM COLLEGE,AP16R_20737,"30,986.76",Programme System File
BIS,Skills Funding Agency,12/01/2017,16-18 Apprenticeships - Centralised Contract Management,Main Funding,EAST KENT COLLEGE,AP16R_21125,"83,129.37",Programme System File
BIS,Skills Funding Agency,12/01/2017,16-18 Apprenticeships - Centralised Contract Management,Main Funding,EAST LINDSEY INFORMATION TECHNOLOGY CENTRE,AP16R_20816,"30,660.41",Programme System File
BIS,Skills Funding Agency,12/01/2017,16-18 Apprenticeships - Centralised Contract Management,Main Funding,EAST RIDING COLLEGE,AP16R_20796,"46,158.34",Programme System File
BIS,Skills Funding Agency,12/01/2017,16-18 Apprenticeships - Centralised Contract Management,Main Funding,EAST RIDING OF YORKSHIRE COUNCIL,AP16R_21213,"4,064.32",Programme System File
BIS,Skills Funding Agency,12/01/2017,16-18 Apprenticeships - Centralised Contract Management,Main Funding,EAST SURREY COLLEGE,AP16R_20794,"69,646.56",Programme System File
BIS,Skills Funding Agency,12/01/2017,16-18 Apprenticeships - Centralised Contract Management,Main Funding,EASTLEIGH COLLEGE,AP16R_20797,"145,835.85",Programme System File
BIS,Skills Funding Agency,12/01/2017,16-18 Apprenticeships - Centralised Contract Management,Main Funding,ECONOMIC SOLUTIONS LTD,AP16R_20922,"463,094.06",Programme System File
BIS,Skills Funding Agency,12/01/2017,16-18 Apprenticeships - Centralised Contract Management,Main Funding,EDEN TRAINING SOLUTIONS LTD,AP16R_21343,"34,924.90",Programme System File
BIS,Skills Funding Agency,12/01/2017,16-18 Apprenticeships - Centralised Contract Management,Main Funding,EDUCATION & TRAINING SKILLS LTD,AP16R_20805,"16,985.31",Programme System File
BIS,Skills Funding Agency,12/01/2017,16-18 Apprenticeships - Centralised Contract Management,Main Funding,EEF LTD,AP16R_21330,"113,314.41",Programme System File
BIS,Skills Funding Agency,12/01/2017,16-18 Apprenticeships - Centralised Contract Management,Main Funding,ELATT,AP16R_20758,"7,716.64",Programme System File
BIS,Skills Funding Agency,12/01/2017,16-18 Apprenticeships - Centralised Contract Management,Main Funding,ENFIELD LONDON BOROUGH COUNCIL,AP16R_20802,"5,755.64",Programme System File
BIS,Skills Funding Agency,12/01/2017,16-18 Apprenticeships - Centralised Contract Management,Main Funding,ENGLAND & WALES CRICKET BOARD LTD,AP16R_21256,"22,455.38",Programme System File
BIS,Skills Funding Agency,12/01/2017,16-18 Apprenticeships - Centralised Contract Management,Main Funding,EON UK PLC,AP16R_21310,"13,372.24",Programme System File
BIS,Skills Funding Agency,12/01/2017,16-18 Apprenticeships - Centralised Contract Management,Main Funding,EPPING FOREST COLLEGE,AP16R_20803,"26,650.08",Programme System File
BIS,Skills Funding Agency,12/01/2017,16-18 Apprenticeships - Centralised Contract Management,Main Funding,EQL SOLUTIONS LTD,AP16R_21403,"190,014.88",Programme System File
BIS,Skills Funding Agency,12/01/2017,16-18 Apprenticeships - Centralised Contract Management,Main Funding,ESG (SKILLS) LIMITED,AP16R_21375,"321,361.72",Programme System File
BIS,Skills Funding Agency,12/01/2017,16-18 Apprenticeships - Centralised Contract Management,Main Funding,ESSEX COUNTY COUNCIL,AP16R_20807,"11,694.67",Programme System File
BIS,Skills Funding Agency,12/01/2017,16-18 Apprenticeships - Centralised Contract Management,Main Funding,EXETER COLLEGE,AP16R_20810,"277,074.49",Programme System File
BIS,Skills Funding Agency,12/01/2017,16-18 Apprenticeships - Centralised Contract Management,Main Funding,FAREHAM COLLEGE,AP16R_21207,"158,588.51",Programme System File
BIS,Skills Funding Agency,12/01/2017,16-18 Apprenticeships - Centralised Contract Management,Main Funding,FAREPORT TRAINING ORGANISATION LTD,AP16R_20812,"44,671.15",Programme System File
BIS,Skills Funding Agency,12/01/2017,16-18 Apprenticeships - Centralised Contract Management,Main Funding,FARNBOROUGH COLLEGE,AP16R_20813,"84,973.79",Programme System File
BIS,Skills Funding Agency,12/01/2017,16-18 Apprenticeships - Centralised Contract Management,Main Funding,FASHION RETAIL ACADEMY,AP16R_21222,740.55,Programme System File
BIS,Skills Funding Agency,12/01/2017,16-18 Apprenticeships - Centralised Contract Management,Main Funding,FINMECCANICA UK LTD,AP16R_21278,"26,844.64",Programme System File
BIS,Skills Funding Agency,12/01/2017,16-18 Apprenticeships - Centralised Contract Management,Main Funding,FINNING (UK) LTD,AP16R_20815,"5,329.30",Programme System File
BIS,Skills Funding Agency,12/01/2017,16-18 Apprenticeships - Centralised Contract Management,Main Funding,FIRST CITY TRAINING LTD,AP16R_21233,"1,466.22",Programme System File
BIS,Skills Funding Agency,12/01/2017,16-18 Apprenticeships - Centralised Contract Management,Main Funding,FIRST4SKILLS LIMITED,AP16R_21402,"371,375.74",Programme System File
BIS,Skills Funding Agency,12/01/2017,16-18 Apprenticeships - Centralised Contract Management,Main Funding,FNTC TRAINING & CONSULTANCY LTD,AP16R_20814,"29,730.96",Programme System File
BIS,Skills Funding Agency,12/01/2017,16-18 Apprenticeships - Centralised Contract Management,Main Funding,FOCUS TRAINING (SW) LTD,AP16R_21339,"46,875.32",Programme System File
BIS,Skills Funding Agency,12/01/2017,16-18 Apprenticeships - Centralised Contract Management,Main Funding,FOOTBALL ASSOCIATION PREMIER LEAGUE LTD,AP16R_20806,"130,143.14",Programme System File
BIS,Skills Funding Agency,12/01/2017,16-18 Apprenticeships - Centralised Contract Management,Main Funding,FRANCESCO GROUP HOLDINGS LTD,AP16R_20808,"50,744.50",Programme System File
BIS,Skills Funding Agency,12/01/2017,16-18 Apprenticeships - Centralised Contract Management,Main Funding,FRANKLIN COLLEGE,AP16R_20809,"4,238.08",Programme System File
BIS,Skills Funding Agency,12/01/2017,16-18 Apprenticeships - Centralised Contract Management,Main Funding,FURNESS COLLEGE,AP16R_21441,"47,776.38",Programme System File
BIS,Skills Funding Agency,12/01/2017,16-18 Apprenticeships - Centralised Contract Management,Main Funding,G B TRAINING UK LTD,AP16R_20818,"22,254.44",Programme System File
BIS,Skills Funding Agency,12/01/2017,16-18 Apprenticeships - Centralised Contract Management,Main Funding,GATESHEAD COLLEGE,AP16R_20820,"145,212.40",Programme System File
BIS,Skills Funding Agency,12/01/2017,16-18 Apprenticeships - Centralised Contract Management,Main Funding,GATESHEAD COUNCIL,AP16R_20821,"287,109.86",Programme System File
BIS,Skills Funding Agency,12/01/2017,16-18 Apprenticeships - Centralised Contract Management,Main Funding,GEN II ENGINEERING & TECHNOLOGY TRAINING LTD,AP16R_20824,"212,164.31",Programme System File
BIS,Skills Funding Agency,12/01/2017,16-18 Apprenticeships - Centralised Contract Management,Main Funding,GHQ TRAINING LTD,AP16R_21252,"24,167.28",Programme System File
BIS,Skills Funding Agency,12/01/2017,16-18 Apprenticeships - Centralised Contract Management,Main Funding,GI GROUP RECRUITMENT LTD,AP16R_21398,"20,624.09",Programme System File
BIS,Skills Funding Agency,12/01/2017,16-18 Apprenticeships - Centralised Contract Management,Main Funding,GLOUCESTERSHIRE COLLEGE OF ARTS & TECHNOLOGY,AP16R_20826,"159,413.99",Programme System File
BIS,Skills Funding Agency,12/01/2017,16-18 Apprenticeships - Centralised Contract Management,Main Funding,GLOUCESTERSHIRE ENGINEERING TRAINING LTD,AP16R_20819,"73,806.25",Programme System File
BIS,Skills Funding Agency,12/01/2017,16-18 Apprenticeships - Centralised Contract Management,Main Funding,GORDON FRANKS TRAINING LIMITED,AP16R_21409,"20,052.12",Programme System File
BIS,Skills Funding Agency,12/01/2017,16-18 Apprenticeships - Centralised Contract Management,Main Funding,GP STRATEGIES TRAINING LTD,AP16R_21380,"224,029.47",Programme System File
BIS,Skills Funding Agency,12/01/2017,16-18 Apprenticeships - Centralised Contract Management,Main Funding,GREAT YARMOUTH COLLEGE,AP16R_21428,"40,039.83",Programme System File
BIS,Skills Funding Agency,12/01/2017,16-18 Apprenticeships - Centralised Contract Management,Main Funding,GREENBANK SERVICES LTD,AP16R_21336,540.12,Programme System File
BIS,Skills Funding Agency,12/01/2017,16-18 Apprenticeships - Centralised Contract Management,Main Funding,GREENWICH LEISURE LTD,AP16R_21424,"5,041.23",Programme System File
BIS,Skills Funding Agency,12/01/2017,16-18 Apprenticeships - Centralised Contract Management,Main Funding,GUILDFORD COLLEGE OF FURTHER & HIGHER EDUCATION,AP16R_20823,"66,336.29",Programme System File
BIS,Skills Funding Agency,12/01/2017,16-18 Apprenticeships - Centralised Contract Management,Main Funding,HADDON TRAINING LTD,AP16R_20827,"119,827.88",Programme System File
BIS,Skills Funding Agency,12/01/2017,16-18 Apprenticeships - Centralised Contract Management,Main Funding,HADLOW COLLEGE,AP16R_20828,"12,611.64",Programme System File
BIS,Skills Funding Agency,12/01/2017,16-18 Apprenticeships - Centralised Contract Management,Main Funding,HAIR & BEAUTY INDUSTRY TRAINING LTD,AP16R_21436,"18,796.38",Programme System File
BIS,Skills Funding Agency,12/01/2017,16-18 Apprenticeships - Centralised Contract Management,Main Funding,HAIR ACADEMY SOUTH WEST LIMITED,AP16R_20829,"53,774.72",Programme System File
BIS,Skills Funding Agency,12/01/2017,16-18 Apprenticeships - Centralised Contract Management,Main Funding,HALESOWEN COLLEGE,AP16R_20842,"40,198.08",Programme System File
BIS,Skills Funding Agency,12/01/2017,16-18 Apprenticeships - Centralised Contract Management,Main Funding,HAMPSHIRE COUNTY COUNCIL,AP16R_20832,"3,750.24",Programme System File
BIS,Skills Funding Agency,12/01/2017,16-18 Apprenticeships - Centralised Contract Management,Main Funding,HARLOW COLLEGE,AP16R_20835,"113,851.50",Programme System File
BIS,Skills Funding Agency,12/01/2017,16-18 Apprenticeships - Centralised Contract Management,Main Funding,HARROW COLLEGE,AP16R_20837,"15,468.99",Programme System File
BIS,Skills Funding Agency,12/01/2017,16-18 Apprenticeships - Centralised Contract Management,Main Funding,HARTLEPOOL BOROUGH COUNCIL,AP16R_20839,"2,206.28",Programme System File
BIS,Skills Funding Agency,12/01/2017,16-18 Apprenticeships - Centralised Contract Management,Main Funding,HARTLEPOOL COLLEGE OF HIGHER EDUCATION,AP16R_20841,"113,659.40",Programme System File
BIS,Skills Funding Agency,12/01/2017,16-18 Apprenticeships - Centralised Contract Management,Main Funding,HARTPURY COLLEGE,AP16R_20834,"26,778.13",Programme System File
BIS,Skills Funding Agency,12/01/2017,16-18 Apprenticeships - Centralised Contract Management,Main Funding,HAVERING COLLEGE OF FURTHER & HIGHER EDUCATION,AP16R_20840,"92,714.21",Programme System File
BIS,Skills Funding Agency,12/01/2017,16-18 Apprenticeships - Centralised Contract Management,Main Funding,HAWK MANAGEMENT UK LTD,AP16R_21225,"156,054.31",Programme System File
BIS,Skills Funding Agency,12/01/2017,16-18 Apprenticeships - Centralised Contract Management,Main Funding,HAYS TRAVEL LIMITED,AP16R_21342,"77,205.54",Programme System File
BIS,Skills Funding Agency,12/01/2017,16-18 Apprenticeships - Centralised Contract Management,Main Funding,HEADMASTERS PARTNERSHIP LTD,AP16C_4208,"-9,198.84",Programme System File
BIS,Skills Funding Agency,12/01/2017,16-18 Apprenticeships - Centralised Contract Management,Main Funding,HEADMASTERS PARTNERSHIP LTD,AP16R_21217,"55,887.11",Programme System File
BIS,Skills Funding Agency,12/01/2017,16-18 Apprenticeships - Centralised Contract Management,Main Funding,HEALTH & SAFETY TRAINING LTD,AP16R_21281,361.87,Programme System File
BIS,Skills Funding Agency,12/01/2017,16-18 Apprenticeships - Centralised Contract Management,Main Funding,HEALTH EDUCATION NORTH EAST,AP16R_21394,"52,330.00",Programme System File
BIS,Skills Funding Agency,12/01/2017,16-18 Apprenticeships - Centralised Contract Management,Main Funding,HEART OF ENGLAND TRAINING LTD,AP16R_20844,"154,607.86",Programme System File
BIS,Skills Funding Agency,12/01/2017,16-18 Apprenticeships - Centralised Contract Management,Main Funding,HEATHERCROFT TRAINING SERVICES LTD,AP16R_20845,"16,567.26",Programme System File
BIS,Skills Funding Agency,12/01/2017,16-18 Apprenticeships - Centralised Contract Management,Main Funding,HENLEY COLLEGE COVENTRY,AP16R_20847,"27,392.15",Programme System File
BIS,Skills Funding Agency,12/01/2017,16-18 Apprenticeships - Centralised Contract Management,Main Funding,HEREFORDSHIRE & LUDLOW COLLEGE,AP16R_20846,"115,854.45",Programme System File
BIS,Skills Funding Agency,12/01/2017,16-18 Apprenticeships - Centralised Contract Management,Main Funding,HEREFORDSHIRE GROUP TRAINING ASSOCIATION LTD,AP16R_20849,"92,174.78",Programme System File
BIS,Skills Funding Agency,12/01/2017,16-18 Apprenticeships - Centralised Contract Management,Main Funding,HERTFORD REGIONAL COLLEGE,AP16R_20851,"129,404.25",Programme System File
BIS,Skills Funding Agency,12/01/2017,16-18 Apprenticeships - Centralised Contract Management,Main Funding,HIGHBURY COLLEGE,AP16R_21205,"150,254.03",Programme System File
BIS,Skills Funding Agency,12/01/2017,16-18 Apprenticeships - Centralised Contract Management,Main Funding,HILLINGDON LONDON BOROUGH COUNCIL,AP16R_21425,"1,304.66",Programme System File
BIS,Skills Funding Agency,12/01/2017,16-18 Apprenticeships - Centralised Contract Management,Main Funding,HILLINGDON TRAINING LTD,AP16R_20856,"27,917.06",Programme System File
BIS,Skills Funding Agency,12/01/2017,16-18 Apprenticeships - Centralised Contract Management,Main Funding,HIT TRAINING LTD,AP16R_21254,"198,556.78",Programme System File
BIS,Skills Funding Agency,12/01/2017,16-18 Apprenticeships - Centralised Contract Management,Main Funding,HOB SALON LIMITED,AP16R_21406,"45,147.08",Programme System File
BIS,Skills Funding Agency,12/01/2017,16-18 Apprenticeships - Centralised Contract Management,Main Funding,HONDA MOTOR EUROPE LTD,AP16R_21249,"38,624.70",Programme System File
BIS,Skills Funding Agency,12/01/2017,16-18 Apprenticeships - Centralised Contract Management,Main Funding,HOOPLE LTD,AP16R_21386,"19,872.10",Programme System File
BIS,Skills Funding Agency,12/01/2017,16-18 Apprenticeships - Centralised Contract Management,Main Funding,HOPWOOD HALL COLLEGE,AP16R_20852,"43,880.96",Programme System File
BIS,Skills Funding Agency,12/01/2017,16-18 Apprenticeships - Centralised Contract Management,Main Funding,HOSPITALITY TRAINING PARTNERSHIP IOW LTD,AP16R_20855,"81,750.03",Programme System File
BIS,Skills Funding Agency,12/01/2017,16-18 Apprenticeships - Centralised Contract Management,Main Funding,HOUSE OF CLIVE HAIR & BEAUTY LTD,AP16R_21042,"167,057.44",Programme System File
BIS,Skills Funding Agency,12/01/2017,16-18 Apprenticeships - Centralised Contract Management,Main Funding,HSBC BANK PLC,AP16R_21248,"19,440.01",Programme System File
BIS,Skills Funding Agency,12/01/2017,16-18 Apprenticeships - Centralised Contract Management,Main Funding,HUDDERSFIELD TEXTILE TRAINING LTD,AP16R_20860,"8,331.81",Programme System File
BIS,Skills Funding Agency,12/01/2017,16-18 Apprenticeships - Centralised Contract Management,Main Funding,HUDSON & HUGHES TRAINING LTD,AP16R_20862,"2,207.13",Programme System File
BIS,Skills Funding Agency,12/01/2017,16-18 Apprenticeships - Centralised Contract Management,Main Funding,HUGH BAIRD COLLEGE,AP16R_20863,"36,218.16",Programme System File
BIS,Skills Funding Agency,12/01/2017,16-18 Apprenticeships - Centralised Contract Management,Main Funding,HULL BUSINESS TRAINING CENTRE LTD,AP16R_20867,"35,536.37",Programme System File
BIS,Skills Funding Agency,12/01/2017,16-18 Apprenticeships - Centralised Contract Management,Main Funding,HULL COLLEGE,AP16R_20859,"356,706.73",Programme System File
BIS,Skills Funding Agency,12/01/2017,16-18 Apprenticeships - Centralised Contract Management,Main Funding,HUMBER LEARNING CONSORTIUM,AP16R_20864,"16,082.59",Programme System File
BIS,Skills Funding Agency,12/01/2017,16-18 Apprenticeships - Centralised Contract Management,Main Funding,HUMBERSIDE ENGINEERING TRAINING ASSOCIATION LTD,AP16R_20861,"160,476.92",Programme System File
BIS,Skills Funding Agency,12/01/2017,16-18 Apprenticeships - Centralised Contract Management,Main Funding,ICON VOCATIONAL TRAINING LTD,AP16R_20869,"66,360.91",Programme System File
BIS,Skills Funding Agency,12/01/2017,16-18 Apprenticeships - Centralised Contract Management,Main Funding,IMPACT LEARNING & DATA SOLUTIONS LTD,AP16R_21297,"2,171.87",Programme System File
BIS,Skills Funding Agency,12/01/2017,16-18 Apprenticeships - Centralised Contract Management,Main Funding,IN-COMM TRAINING AND BUSINESS SERVICES LTD,AP16R_20872,"55,426.14",Programme System File
BIS,Skills Funding Agency,12/01/2017,16-18 Apprenticeships - Centralised Contract Management,Main Funding,INDEPENDENT TRAINING SERVICES LTD,AP16R_20875,"37,511.72",Programme System File
BIS,Skills Funding Agency,12/01/2017,16-18 Apprenticeships - Centralised Contract Management,Main Funding,INGEUS TRAINING LTD,AP16R_21199,"22,723.93",Programme System File
BIS,Skills Funding Agency,12/01/2017,16-18 Apprenticeships - Centralised Contract Management,Main Funding,INSPIRE TO INDEPENDENCE (i2i) LTD,AP16R_21242,"5,969.58",Programme System File
BIS,Skills Funding Agency,12/01/2017,16-18 Apprenticeships - Centralised Contract Management,Main Funding,INTEC BUSINESS COLLEGES PLC,AP16R_20868,"54,958.33",Programme System File
BIS,Skills Funding Agency,12/01/2017,16-18 Apprenticeships - Centralised Contract Management,Main Funding,INTER TRAINING SERVICES LTD,AP16R_20870,"24,030.82",Programme System File
BIS,Skills Funding Agency,12/01/2017,16-18 Apprenticeships - Centralised Contract Management,Main Funding,INTERACTIVE DEVELOPMENT EDUCATION LTD,AP16R_21255,"5,637.07",Programme System File
BIS,Skills Funding Agency,12/01/2017,16-18 Apprenticeships - Centralised Contract Management,Main Funding,INTROTRAIN (ACE) LTD,AP16R_21382,"80,448.07",Programme System File
BIS,Skills Funding Agency,12/01/2017,16-18 Apprenticeships - Centralised Contract Management,Main Funding,INTUITIONS LTD,AP16R_20871,"37,179.16",Programme System File
BIS,Skills Funding Agency,12/01/2017,16-18 Apprenticeships - Centralised Contract Management,Main Funding,IPS INTERNATIONAL LTD,AP16R_20873,"69,066.51",Programme System File
BIS,Skills Funding Agency,12/01/2017,16-18 Apprenticeships - Centralised Contract Management,Main Funding,ISIS TRAINING SERVICES LTD,AP16R_20879,"62,930.91",Programme System File
BIS,Skills Funding Agency,12/01/2017,16-18 Apprenticeships - Centralised Contract Management,Main Funding,ISLE OF WIGHT COLLEGE,AP16R_20880,"57,927.02",Programme System File
BIS,Skills Funding Agency,12/01/2017,16-18 Apprenticeships - Centralised Contract Management,Main Funding,ITEC NORTH EAST LTD,AP16R_20876,"38,951.50",Programme System File
BIS,Skills Funding Agency,12/01/2017,16-18 Apprenticeships - Centralised Contract Management,Main Funding,ITS TRAINING LIMITED,AP16R_21384,"10,031.54",Programme System File
BIS,Skills Funding Agency,12/01/2017,16-18 Apprenticeships - Centralised Contract Management,Main Funding,IXION GROUP CONTRACTS LTD,AP16C_4216,"-75,123.99",Programme System File
BIS,Skills Funding Agency,12/01/2017,16-18 Apprenticeships - Centralised Contract Management,Main Funding,IXION GROUP CONTRACTS LTD,AP16R_21376,"75,123.99",Programme System File
BIS,Skills Funding Agency,12/01/2017,16-18 Apprenticeships - Centralised Contract Management,Main Funding,JAGUAR LAND ROVER HOLDINGS LTD,AP16R_21226,"102,275.41",Programme System File
BIS,Skills Funding Agency,12/01/2017,16-18 Apprenticeships - Centralised Contract Management,Main Funding,JANCETT CHILDCARE & JACE TRAINING LIMITED,AP16R_21401,"33,702.34",Programme System File
BIS,Skills Funding Agency,12/01/2017,16-18 Apprenticeships - Centralised Contract Management,Main Funding,JARVIS TRAINING MANAGEMENT LTD,AP16R_20878,"95,947.23",Programme System File
BIS,Skills Funding Agency,12/01/2017,16-18 Apprenticeships - Centralised Contract Management,Main Funding,JBC COMPUTER TRAINING LIMITED,AP16R_21270,374.58,Programme System File
BIS,Skills Funding Agency,12/01/2017,16-18 Apprenticeships - Centralised Contract Management,Main Funding,JGA LTD,AP16R_21117,"44,522.21",Programme System File
BIS,Skills Funding Agency,12/01/2017,16-18 Apprenticeships - Centralised Contract Management,Main Funding,JOBWISE TRAINING LTD,AP16R_20881,"34,096.82",Programme System File
BIS,Skills Funding Agency,12/01/2017,16-18 Apprenticeships - Centralised Contract Management,Main Funding,JOHN LAING TRAINING LTD,AP16R_21454,"25,494.52",Programme System File
BIS,Skills Funding Agency,12/01/2017,16-18 Apprenticeships - Centralised Contract Management,Main Funding,JOHN RUSKIN COLLEGE,AP16R_20882,"61,323.67",Programme System File
BIS,Skills Funding Agency,12/01/2017,16-18 Apprenticeships - Centralised Contract Management,Main Funding,JTL,AP16R_20890,"1,004,252.88",Programme System File
BIS,Skills Funding Agency,12/01/2017,16-18 Apprenticeships - Centralised Contract Management,Main Funding,K & G HAIR LLP,AP16R_21370,"27,225.82",Programme System File
BIS,Skills Funding Agency,12/01/2017,16-18 Apprenticeships - Centralised Contract Management,Main Funding,KAPLAN FINANCIAL LIMITED,AP16C_4224,"-33,387.37",Programme System File
BIS,Skills Funding Agency,12/01/2017,16-18 Apprenticeships - Centralised Contract Management,Main Funding,KAPLAN FINANCIAL LIMITED,AP16R_20941,"319,946.57",Programme System File
BIS,Skills Funding Agency,12/01/2017,16-18 Apprenticeships - Centralised Contract Management,Main Funding,KAPLAN FINANCIAL LIMITED,AP16R_21727,"33,387.37",Programme System File
BIS,Skills Funding Agency,12/01/2017,16-18 Apprenticeships - Centralised Contract Management,Main Funding,KEITS TRAINING SERVICES LTD,AP16R_20883,"193,135.62",Programme System File
BIS,Skills Funding Agency,12/01/2017,16-18 Apprenticeships - Centralised Contract Management,Main Funding,KENDAL COLLEGE,AP16R_20891,"78,415.25",Programme System File
BIS,Skills Funding Agency,12/01/2017,16-18 Apprenticeships - Centralised Contract Management,Main Funding,KENT COUNTY COUNCIL,AP16R_20885,"47,143.50",Programme System File
BIS,Skills Funding Agency,12/01/2017,16-18 Apprenticeships - Centralised Contract Management,Main Funding,KENTUCKY FRIED CHICKEN GREAT BRITAIN LTD,AP16R_21360,"25,476.96",Programme System File
BIS,Skills Funding Agency,12/01/2017,16-18 Apprenticeships - Centralised Contract Management,Main Funding,KEY TRAINING LTD,AP16R_20887,"263,235.33",Programme System File
BIS,Skills Funding Agency,12/01/2017,16-18 Apprenticeships - Centralised Contract Management,Main Funding,KINGSTON COLLEGE,AP16C_4223,-755.36,Programme System File
BIS,Skills Funding Agency,12/01/2017,16-18 Apprenticeships - Centralised Contract Management,Main Funding,KINGSTON COLLEGE,AP16R_20892,"52,238.22",Programme System File
BIS,Skills Funding Agency,12/01/2017,16-18 Apprenticeships - Centralised Contract Management,Main Funding,KINGSTON COLLEGE,AP16R_21732,755.36,Programme System File
BIS,Skills Funding Agency,12/01/2017,16-18 Apprenticeships - Centralised Contract Management,Main Funding,KINGSTON MAURWARD COLLEGE,AP16R_20894,"61,070.37",Programme System File
BIS,Skills Funding Agency,12/01/2017,16-18 Apprenticeships - Centralised Contract Management,Main Funding,KINGSTON UPON HULL CITY COUNCIL,AP16R_20857,"111,709.84",Programme System File
BIS,Skills Funding Agency,12/01/2017,16-18 Apprenticeships - Centralised Contract Management,Main Funding,KIRKDALE INDUSTRIAL TRAINING SERVICES LTD,AP16R_20895,"85,954.89",Programme System File
BIS,Skills Funding Agency,12/01/2017,16-18 Apprenticeships - Centralised Contract Management,Main Funding,KIRKLEES COLLEGE,AP16R_20858,"203,148.36",Programme System File
BIS,Skills Funding Agency,12/01/2017,16-18 Apprenticeships - Centralised Contract Management,Main Funding,KNOWSLEY COMMUNITY COLLEGE,AP16R_20902,"23,613.15",Programme System File
BIS,Skills Funding Agency,12/01/2017,16-18 Apprenticeships - Centralised Contract Management,Main Funding,KWIK FIT GB LTD,AP16R_20896,"85,982.42",Programme System File
BIS,Skills Funding Agency,12/01/2017,16-18 Apprenticeships - Centralised Contract Management,Main Funding,LAGAT LTD,AP16R_20901,"21,232.93",Programme System File
BIS,Skills Funding Agency,12/01/2017,16-18 Apprenticeships - Centralised Contract Management,Main Funding,LAKES COLLEGE WEST CUMBRIA,AP16R_20905,"78,923.52",Programme System File
BIS,Skills Funding Agency,12/01/2017,16-18 Apprenticeships - Centralised Contract Management,Main Funding,LAMBETH COLLEGE AT CLAPHAM CENTRE,AP16R_20906,"52,831.44",Programme System File
BIS,Skills Funding Agency,12/01/2017,16-18 Apprenticeships - Centralised Contract Management,Main Funding,LANCASTER & MORECAMBE COLLEGE,AP16R_20907,"100,057.65",Programme System File
BIS,Skills Funding Agency,12/01/2017,16-18 Apprenticeships - Centralised Contract Management,Main Funding,LANCASTER TRAINING SERVICES LTD,AP16R_20897,"28,013.38",Programme System File
BIS,Skills Funding Agency,12/01/2017,16-18 Apprenticeships - Centralised Contract Management,Main Funding,LAWN TENNIS ASSOCIATION LTD,AP16R_21299,"45,454.71",Programme System File
BIS,Skills Funding Agency,12/01/2017,16-18 Apprenticeships - Centralised Contract Management,Main Funding,LEAGUE FOOTBALL EDUCATION,AP16R_20900,"512,732.74",Programme System File
BIS,Skills Funding Agency,12/01/2017,16-18 Apprenticeships - Centralised Contract Management,Main Funding,LEARNDIRECT LTD,AP16R_21433,"1,142,765.24",Programme System File
BIS,Skills Funding Agency,12/01/2017,16-18 Apprenticeships - Centralised Contract Management,Main Funding,LEARNING CURVE JAA LIMITED,AP16R_21214,"164,761.11",Programme System File
BIS,Skills Funding Agency,12/01/2017,16-18 Apprenticeships - Centralised Contract Management,Main Funding,LEARNING PARTNERSHIP FOR CORNWALL AND THE ISLES OF SCILLY LIMITED,AP16R_21119,"27,905.90",Programme System File
BIS,Skills Funding Agency,12/01/2017,16-18 Apprenticeships - Centralised Contract Management,Main Funding,LEARNING SKILLS PARTNERSHIP LIMITED,AP16R_21369,"65,374.66",Programme System File
BIS,Skills Funding Agency,12/01/2017,16-18 Apprenticeships - Centralised Contract Management,Main Funding,LEEDS CITY COLLEGE,AP16R_21326,"120,941.93",Programme System File
BIS,Skills Funding Agency,12/01/2017,16-18 Apprenticeships - Centralised Contract Management,Main Funding,LEEDS COLLEGE OF BUILDING,AP16R_20913,"173,262.70",Programme System File
BIS,Skills Funding Agency,12/01/2017,16-18 Apprenticeships - Centralised Contract Management,Main Funding,LEICESTER COLLEGE CO FREEMENS PARK CAMPUS,AP16R_20911,"167,364.38",Programme System File
BIS,Skills Funding Agency,12/01/2017,16-18 Apprenticeships - Centralised Contract Management,Main Funding,LEICESTERSHIRE COUNTY COUNCIL,AP16R_20908,"4,500.54",Programme System File
BIS,Skills Funding Agency,12/01/2017,16-18 Apprenticeships - Centralised Contract Management,Main Funding,LESLIE FRANCES HAIR FASHIONS LTD,AP16R_20910,"27,194.72",Programme System File
BIS,Skills Funding Agency,12/01/2017,16-18 Apprenticeships - Centralised Contract Management,Main Funding,LIFESKILLS SOLUTIONS LTD,AP16R_20916,"36,671.90",Programme System File
BIS,Skills Funding Agency,12/01/2017,16-18 Apprenticeships - Centralised Contract Management,Main Funding,LIFETIME TRAINING GROUP LTD,AP16R_21452,"692,225.14",Programme System File
BIS,Skills Funding Agency,12/01/2017,16-18 Apprenticeships - Centralised Contract Management,Main Funding,LIGA (UK) LTD,AP16R_21381,"35,639.28",Programme System File
BIS,Skills Funding Agency,12/01/2017,16-18 Apprenticeships - Centralised Contract Management,Main Funding,LITE STOCKPORT LTD,AP16R_21220,"14,764.41",Programme System File
BIS,Skills Funding Agency,12/01/2017,16-18 Apprenticeships - Centralised Contract Management,Main Funding,LITS LTD,AP16R_20899,"4,560.09",Programme System File
BIS,Skills Funding Agency,12/01/2017,16-18 Apprenticeships - Centralised Contract Management,Main Funding,LIVERPOOL CHAMBER TRAINING LTD,AP16R_21345,"30,169.11",Programme System File
BIS,Skills Funding Agency,12/01/2017,16-18 Apprenticeships - Centralised Contract Management,Main Funding,LOCOMOTIVATION LTD,AP16R_20915,"24,848.32",Programme System File
BIS,Skills Funding Agency,12/01/2017,16-18 Apprenticeships - Centralised Contract Management,Main Funding,LONDON BOROUGH OF WALTHAM FOREST,AP16R_21165,"5,130.91",Programme System File
BIS,Skills Funding Agency,12/01/2017,16-18 Apprenticeships - Centralised Contract Management,Main Funding,LONDON COLLEGE OF BEAUTY THERAPY LTD,AP16R_20923,"10,286.23",Programme System File
BIS,Skills Funding Agency,12/01/2017,16-18 Apprenticeships - Centralised Contract Management,Main Funding,LONDON LEARNING CONSORTIUM C.I.C.,AP16R_21286,"6,602.96",Programme System File
BIS,Skills Funding Agency,12/01/2017,16-18 Apprenticeships - Centralised Contract Management,Main Funding,LONDON SKILLS & DEVELOPMENT NETWORK LIMITED,AP16R_21291,"4,703.48",Programme System File
BIS,Skills Funding Agency,12/01/2017,16-18 Apprenticeships - Centralised Contract Management,Main Funding,LONDON VESTA COLLEGE LIMITED,AP16R_21319,"8,382.16",Programme System File
BIS,Skills Funding Agency,12/01/2017,16-18 Apprenticeships - Centralised Contract Management,Main Funding,LOOKFANTASTIC TRAINING LIMITED,AP16R_21438,"42,671.57",Programme System File
BIS,Skills Funding Agency,12/01/2017,16-18 Apprenticeships - Centralised Contract Management,Main Funding,LOUGHBOROUGH COLLEGE,AP16R_20934,"216,444.14",Programme System File
BIS,Skills Funding Agency,12/01/2017,16-18 Apprenticeships - Centralised Contract Management,Main Funding,LOWESTOFT COLLEGE,AP16R_21429,"57,399.55",Programme System File
BIS,Skills Funding Agency,12/01/2017,16-18 Apprenticeships - Centralised Contract Management,Main Funding,LUNN POLY LTD,AP16R_20925,"8,802.09",Programme System File
BIS,Skills Funding Agency,12/01/2017,16-18 Apprenticeships - Centralised Contract Management,Main Funding,LUTON BOROUGH COUNCIL,AP16R_20927,"19,017.20",Programme System File
BIS,Skills Funding Agency,12/01/2017,16-18 Apprenticeships - Centralised Contract Management,Main Funding,M I T SKILLS LIMITED,AP16R_20943,"237,696.70",Programme System File
BIS,Skills Funding Agency,12/01/2017,16-18 Apprenticeships - Centralised Contract Management,Main Funding,MACCLESFIELD COLLEGE,AP16C_4231,"-2,609.20",Programme System File
BIS,Skills Funding Agency,12/01/2017,16-18 Apprenticeships - Centralised Contract Management,Main Funding,MACCLESFIELD COLLEGE,AP16R_20929,"36,178.06",Programme System File
BIS,Skills Funding Agency,12/01/2017,16-18 Apprenticeships - Centralised Contract Management,Main Funding,MACCLESFIELD COLLEGE,AP16R_21737,"2,609.20",Programme System File
BIS,Skills Funding Agency,12/01/2017,16-18 Apprenticeships - Centralised Contract Management,Main Funding,MAINSTREAM TRAINING LTD,AP16R_21224,"7,023.16",Programme System File
BIS,Skills Funding Agency,12/01/2017,16-18 Apprenticeships - Centralised Contract Management,Main Funding,MANCHESTER COLLEGE,AP16C_4234,"-57,153.12",Programme System File
BIS,Skills Funding Agency,12/01/2017,16-18 Apprenticeships - Centralised Contract Management,Main Funding,MANCHESTER COLLEGE,AP16R_21304,"111,515.64",Programme System File
BIS,Skills Funding Agency,12/01/2017,16-18 Apprenticeships - Centralised Contract Management,Main Funding,MANCHESTER COLLEGE,AP16R_21726,"57,153.12",Programme System File
BIS,Skills Funding Agency,12/01/2017,16-18 Apprenticeships - Centralised Contract Management,Main Funding,MANCHESTER METRO UNIVERSITY,AP16R_20924,"23,495.46",Programme System File
BIS,Skills Funding Agency,12/01/2017,16-18 Apprenticeships - Centralised Contract Management,Main Funding,MANLEY SUMMERS HOUSING PERSONNEL LIMITED,AP16R_21457,516.50,Programme System File
BIS,Skills Funding Agency,12/01/2017,16-18 Apprenticeships - Centralised Contract Management,Main Funding,MANTRA LEARNING LTD,AP16R_20935,"34,911.11",Programme System File
BIS,Skills Funding Agency,12/01/2017,16-18 Apprenticeships - Centralised Contract Management,Main Funding,MARDELL ASSOCIATES LTD,AP16R_21074,"64,874.06",Programme System File
BIS,Skills Funding Agency,12/01/2017,16-18 Apprenticeships - Centralised Contract Management,Main Funding,MARITIME & ENGINEERING COLLEGE NORTH WEST,AP16R_20903,"58,439.71",Programme System File
BIS,Skills Funding Agency,12/01/2017,16-18 Apprenticeships - Centralised Contract Management,Main Funding,MARR CORPORTATION LIMITED,AP16R_21323,"97,004.39",Programme System File
BIS,Skills Funding Agency,12/01/2017,16-18 Apprenticeships - Centralised Contract Management,Main Funding,MATRIX TRAINING & DEVELOPMENT LTD,AP16R_20926,"17,411.58",Programme System File
BIS,Skills Funding Agency,12/01/2017,16-18 Apprenticeships - Centralised Contract Management,Main Funding,MCARTHUR DEAN TRAINING LTD,AP16R_20928,"40,794.26",Programme System File
BIS,Skills Funding Agency,12/01/2017,16-18 Apprenticeships - Centralised Contract Management,Main Funding,MEADOWHALL TRAINING LIMITED,AP16R_21246,"51,951.45",Programme System File
BIS,Skills Funding Agency,12/01/2017,16-18 Apprenticeships - Centralised Contract Management,Main Funding,MEDWAY COUNCIL,AP16R_20931,"1,777.39",Programme System File
BIS,Skills Funding Agency,12/01/2017,16-18 Apprenticeships - Centralised Contract Management,Main Funding,MERCEDES-BENZ UK LTD,AP16R_21303,"160,465.29",Programme System File
BIS,Skills Funding Agency,12/01/2017,16-18 Apprenticeships - Centralised Contract Management,Main Funding,MERCIA PARTNERSHIP UK LTD,AP16R_20932,"13,541.38",Programme System File
BIS,Skills Funding Agency,12/01/2017,16-18 Apprenticeships - Centralised Contract Management,Main Funding,METSKILL LTD,AP16R_20936,"167,942.83",Programme System File
BIS,Skills Funding Agency,12/01/2017,16-18 Apprenticeships - Centralised Contract Management,Main Funding,MI COMPUTSOLUTIONS INCORPORATED,AP16R_21260,"3,730.62",Programme System File
BIS,Skills Funding Agency,12/01/2017,16-18 Apprenticeships - Centralised Contract Management,Main Funding,MICHAEL JOHN OF LIVERPOOL,AP16R_21258,"35,676.54",Programme System File
BIS,Skills Funding Agency,12/01/2017,16-18 Apprenticeships - Centralised Contract Management,Main Funding,MICHAELJOHN TRAINING,AP16R_21259,"46,462.27",Programme System File
BIS,Skills Funding Agency,12/01/2017,16-18 Apprenticeships - Centralised Contract Management,Main Funding,MIDDLESBROUGH COLLEGE,AP16R_20942,"201,202.39",Programme System File
BIS,Skills Funding Agency,12/01/2017,16-18 Apprenticeships - Centralised Contract Management,Main Funding,MIDDLESBROUGH COUNCIL,AP16R_20939,"19,932.53",Programme System File
BIS,Skills Funding Agency,12/01/2017,16-18 Apprenticeships - Centralised Contract Management,Main Funding,MIDLAND GROUP TRAINING SERVICES LTD,AP16R_20944,"100,684.19",Programme System File
BIS,Skills Funding Agency,12/01/2017,16-18 Apprenticeships - Centralised Contract Management,Main Funding,MILLBROOK MANAGEMENT SERVICES LTD,AP16R_21022,"26,505.50",Programme System File
BIS,Skills Funding Agency,12/01/2017,16-18 Apprenticeships - Centralised Contract Management,Main Funding,MILTON KEYNES COLLEGE,AP16R_20948,"74,676.71",Programme System File
BIS,Skills Funding Agency,12/01/2017,16-18 Apprenticeships - Centralised Contract Management,Main Funding,MILTON KEYNES COUNCIL,AP16R_20950,"1,090.05",Programme System File
BIS,Skills Funding Agency,12/01/2017,16-18 Apprenticeships - Centralised Contract Management,Main Funding,MINISTRY OF DEFENCE,AP16R_21362,"143,933.71",Programme System File
BIS,Skills Funding Agency,12/01/2017,16-18 Apprenticeships - Centralised Contract Management,Main Funding,MINISTRY OF DEFENCE,AP16R_21371,"249,041.98",Programme System File
BIS,Skills Funding Agency,12/01/2017,16-18 Apprenticeships - Centralised Contract Management,Main Funding,MITCHELLS & BUTLERS PLC,AP16R_21416,"3,448.08",Programme System File
BIS,Skills Funding Agency,12/01/2017,16-18 Apprenticeships - Centralised Contract Management,Main Funding,MITIE GROUP PLC,AP16R_21318,"3,137.44",Programme System File
BIS,Skills Funding Agency,12/01/2017,16-18 Apprenticeships - Centralised Contract Management,Main Funding,MOBILE CARE QUALIFICATIONS LTD,AP16R_20940,"12,665.89",Programme System File
BIS,Skills Funding Agency,12/01/2017,16-18 Apprenticeships - Centralised Contract Management,Main Funding,MOMENTUM TRAINING & CONSULTANCY LTD,AP16R_21404,"24,558.96",Programme System File
BIS,Skills Funding Agency,12/01/2017,16-18 Apprenticeships - Centralised Contract Management,Main Funding,MOTOR INSURANCE REPAIR RESEARCH CENTRE,AP16R_21126,"64,617.61",Programme System File
BIS,Skills Funding Agency,12/01/2017,16-18 Apprenticeships - Centralised Contract Management,Main Funding,MOULTON COLLEGE,AP16R_20945,"65,279.03",Programme System File
BIS,Skills Funding Agency,12/01/2017,16-18 Apprenticeships - Centralised Contract Management,Main Funding,MPOWER TRAINING SOLUTIONS LTD,AP16R_21311,"3,051.12",Programme System File
BIS,Skills Funding Agency,12/01/2017,16-18 Apprenticeships - Centralised Contract Management,Main Funding,MYERSCOUGH COLLEGE,AP16R_20947,"52,853.44",Programme System File
BIS,Skills Funding Agency,12/01/2017,16-18 Apprenticeships - Centralised Contract Management,Main Funding,N & B TRAINING CO LTD,AP16R_20949,"13,636.28",Programme System File
BIS,Skills Funding Agency,12/01/2017,16-18 Apprenticeships - Centralised Contract Management,Main Funding,NACRO,AP16R_20951,"13,127.04",Programme System File
BIS,Skills Funding Agency,12/01/2017,16-18 Apprenticeships - Centralised Contract Management,Main Funding,NATIONAL BUSINESS COLLEGE LIMITED,AP16R_21439,"19,834.75",Programme System File
BIS,Skills Funding Agency,12/01/2017,16-18 Apprenticeships - Centralised Contract Management,Main Funding,NATIONAL GRID PLC,AP16R_20955,"8,212.53",Programme System File
BIS,Skills Funding Agency,12/01/2017,16-18 Apprenticeships - Centralised Contract Management,Main Funding,NATIONAL TYRE SERVICE LTD,AP16R_20953,"9,350.17",Programme System File
BIS,Skills Funding Agency,12/01/2017,16-18 Apprenticeships - Centralised Contract Management,Main Funding,NELSON & COLNE COLLEGE,AP16R_20956,"56,192.73",Programme System File
BIS,Skills Funding Agency,12/01/2017,16-18 Apprenticeships - Centralised Contract Management,Main Funding,NESTOR PRIMECARE SERVICES LIMITED,AP16R_21338,589.16,Programme System File
BIS,Skills Funding Agency,12/01/2017,16-18 Apprenticeships - Centralised Contract Management,Main Funding,NEW COLLEGE NOTTINGHAM,AP16R_21446,"109,133.44",Programme System File
BIS,Skills Funding Agency,12/01/2017,16-18 Apprenticeships - Centralised Contract Management,Main Funding,NEW COLLEGE STAMFORD,AP16R_21090,"32,293.94",Programme System File
BIS,Skills Funding Agency,12/01/2017,16-18 Apprenticeships - Centralised Contract Management,Main Funding,NEW COLLEGE SWINDON,AP16R_20959,"38,155.84",Programme System File
BIS,Skills Funding Agency,12/01/2017,16-18 Apprenticeships - Centralised Contract Management,Main Funding,NEW COLLEGE TELFORD,AP16R_20961,"5,346.26",Programme System File
BIS,Skills Funding Agency,12/01/2017,16-18 Apprenticeships - Centralised Contract Management,Main Funding,NEWBURY COLLEGE,AP16R_20966,"26,330.96",Programme System File
BIS,Skills Funding Agency,12/01/2017,16-18 Apprenticeships - Centralised Contract Management,Main Funding,NEWCASTLE UNDER LYME COLLEGE,AP16R_20970,"159,286.93",Programme System File
BIS,Skills Funding Agency,12/01/2017,16-18 Apprenticeships - Centralised Contract Management,Main Funding,NEWCASTLE UPON TYNE CITY COUNCIL,AP16R_20968,"8,626.04",Programme System File
BIS,Skills Funding Agency,12/01/2017,16-18 Apprenticeships - Centralised Contract Management,Main Funding,NEWHAM COLLEGE OF HIGHER EDUCATION,AP16R_20957,"11,406.05",Programme System File
BIS,Skills Funding Agency,12/01/2017,16-18 Apprenticeships - Centralised Contract Management,Main Funding,NHTA LTD,AP16R_20960,"35,300.39",Programme System File
BIS,Skills Funding Agency,12/01/2017,16-18 Apprenticeships - Centralised Contract Management,Main Funding,NISSAN MOTOR MANUFACTURING (UK) LTD,AP16R_21329,"27,225.49",Programme System File
BIS,Skills Funding Agency,12/01/2017,16-18 Apprenticeships - Centralised Contract Management,Main Funding,NLT TRAINING SERVICES LTD,AP16R_20965,"50,851.55",Programme System File
BIS,Skills Funding Agency,12/01/2017,16-18 Apprenticeships - Centralised Contract Management,Main Funding,NORFOLK COUNTY COUNCIL,AP16R_20967,"3,274.19",Programme System File
BIS,Skills Funding Agency,12/01/2017,16-18 Apprenticeships - Centralised Contract Management,Main Funding,NORFOLK TRAINING SERVICES LTD,AP16R_20969,"43,863.70",Programme System File
BIS,Skills Funding Agency,12/01/2017,16-18 Apprenticeships - Centralised Contract Management,Main Funding,NORTH DEVON COLLEGE,AP16R_20985,"97,673.89",Programme System File
BIS,Skills Funding Agency,12/01/2017,16-18 Apprenticeships - Centralised Contract Management,Main Funding,NORTH EAST EMPLOYMENT & TRAINING AGENCY LTD,AP16R_20954,"22,473.77",Programme System File
BIS,Skills Funding Agency,12/01/2017,16-18 Apprenticeships - Centralised Contract Management,Main Funding,NORTH EAST SURREY COLLEGE OF TECHNOLOGY,AP16R_20971,"114,242.14",Programme System File
BIS,Skills Funding Agency,12/01/2017,16-18 Apprenticeships - Centralised Contract Management,Main Funding,NORTH LANCS TRAINING GROUP LTD,AP16R_20984,"213,604.91",Programme System File
BIS,Skills Funding Agency,12/01/2017,16-18 Apprenticeships - Centralised Contract Management,Main Funding,NORTH LINCOLNSHIRE COUNCIL,AP16R_20972,-293.26,Programme System File
BIS,Skills Funding Agency,12/01/2017,16-18 Apprenticeships - Centralised Contract Management,Main Funding,NORTH LIVERPOOL REGENERATION COMPANY LTD,AP16R_21277,"30,929.54",Programme System File
BIS,Skills Funding Agency,12/01/2017,16-18 Apprenticeships - Centralised Contract Management,Main Funding,NORTH TYNESIDE METRO BOROUGH COUNCIL,AP16R_20978,"6,440.50",Programme System File
BIS,Skills Funding Agency,12/01/2017,16-18 Apprenticeships - Centralised Contract Management,Main Funding,NORTH WARWICKSHIRE & HINCKLEY COLLEGE,AP16R_20979,"155,663.58",Programme System File
BIS,Skills Funding Agency,12/01/2017,16-18 Apprenticeships - Centralised Contract Management,Main Funding,NORTH WEST COMMUNITY SERVICES TRAINING LIMITED,AP16R_20981,"27,562.16",Programme System File
BIS,Skills Funding Agency,12/01/2017,16-18 Apprenticeships - Centralised Contract Management,Main Funding,NORTH WEST KENT COLLEGE,AP16R_20988,"82,381.89",Programme System File
BIS,Skills Funding Agency,12/01/2017,16-18 Apprenticeships - Centralised Contract Management,Main Funding,NORTH WEST TRAINING COUNCIL,AP16R_20990,"55,864.45",Programme System File
BIS,Skills Funding Agency,12/01/2017,16-18 Apprenticeships - Centralised Contract Management,Main Funding,NORTH YORKSHIRE COUNTY COUNCIL,AP16R_20992,"2,405.83",Programme System File
BIS,Skills Funding Agency,12/01/2017,16-18 Apprenticeships - Centralised Contract Management,Main Funding,NORTHAMPTON COLLEGE,AP16R_21148,"92,184.01",Programme System File
BIS,Skills Funding Agency,12/01/2017,16-18 Apprenticeships - Centralised Contract Management,Main Funding,NORTHAMPTONSHIRE COUNTY COUNCIL,AP16R_20973,"17,403.98",Programme System File
BIS,Skills Funding Agency,12/01/2017,16-18 Apprenticeships - Centralised Contract Management,Main Funding,NORTHAMPTONSHIRE INDUSTRIAL TRAINING ASSOCIATION LTD,AP16R_20962,"81,933.30",Programme System File
BIS,Skills Funding Agency,12/01/2017,16-18 Apprenticeships - Centralised Contract Management,Main Funding,NORTHBROOK COLLEGE SUSSEX,AP16R_20977,"97,048.85",Programme System File
BIS,Skills Funding Agency,12/01/2017,16-18 Apprenticeships - Centralised Contract Management,Main Funding,NORTHERN CARE TRAINING LTD,AP16R_21253,"6,131.45",Programme System File
BIS,Skills Funding Agency,12/01/2017,16-18 Apprenticeships - Centralised Contract Management,Main Funding,NORTHERN RACING COLLEGE,AP16R_20980,"10,509.20",Programme System File
BIS,Skills Funding Agency,12/01/2017,16-18 Apprenticeships - Centralised Contract Management,Main Funding,NORTHUMBERLAND COUNTY COUNCIL,AP16R_20989,"21,776.93",Programme System File
BIS,Skills Funding Agency,12/01/2017,16-18 Apprenticeships - Centralised Contract Management,Main Funding,NORWICH CITY COLLEGE,AP16R_20991,"149,003.05",Programme System File
BIS,Skills Funding Agency,12/01/2017,16-18 Apprenticeships - Centralised Contract Management,Main Funding,NOTTINGHAMSHIRE TRAINING NETWORK,AP16R_20994,"6,165.83",Programme System File
BIS,Skills Funding Agency,12/01/2017,16-18 Apprenticeships - Centralised Contract Management,Main Funding,OAKLANDS COLLEGE,AP16R_20997,"148,034.58",Programme System File
BIS,Skills Funding Agency,12/01/2017,16-18 Apprenticeships - Centralised Contract Management,Main Funding,OLDHAM COLLEGE,AP16R_21120,"94,070.50",Programme System File
BIS,Skills Funding Agency,12/01/2017,16-18 Apprenticeships - Centralised Contract Management,Main Funding,OLDHAM ENGINEERING GROUP TRAINING ASSOCIATION LTD,AP16R_21437,"29,625.60",Programme System File
BIS,Skills Funding Agency,12/01/2017,16-18 Apprenticeships - Centralised Contract Management,Main Funding,OMEGA TRAINING SERVICES LTD,AP16R_21002,"7,161.03",Programme System File
BIS,Skills Funding Agency,12/01/2017,16-18 Apprenticeships - Centralised Contract Management,Main Funding,ORACLE TRAINING CONSULTANTS LTD,AP16R_21003,"37,755.76",Programme System File
BIS,Skills Funding Agency,12/01/2017,16-18 Apprenticeships - Centralised Contract Management,Main Funding,OUTSOURCE VOCATIONAL LEARNING LTD,AP16R_21300,"99,998.77",Programme System File
BIS,Skills Funding Agency,12/01/2017,16-18 Apprenticeships - Centralised Contract Management,Main Funding,OXFORD & CHERWELL COLLEGE,AP16R_21005,"221,682.85",Programme System File
BIS,Skills Funding Agency,12/01/2017,16-18 Apprenticeships - Centralised Contract Management,Main Funding,PARAGON EDUCATION & SKILLS LTD,AP16R_21000,"172,385.05",Programme System File
BIS,Skills Funding Agency,12/01/2017,16-18 Apprenticeships - Centralised Contract Management,Main Funding,PARTNERSHIP DEVELOPMENT SOLUTIONS LTD,AP16R_21347,"62,915.66",Programme System File
BIS,Skills Funding Agency,12/01/2017,16-18 Apprenticeships - Centralised Contract Management,Main Funding,PATHWAY FIRST LIMITED,AP16R_21282,"24,470.66",Programme System File
BIS,Skills Funding Agency,12/01/2017,16-18 Apprenticeships - Centralised Contract Management,Main Funding,PDM TRAINING & CONSULTANCY LTD,AP16C_4199,"-19,130.50",Programme System File
BIS,Skills Funding Agency,12/01/2017,16-18 Apprenticeships - Centralised Contract Management,Main Funding,PDM TRAINING & CONSULTANCY LTD,AP16R_20998,"38,632.47",Programme System File
BIS,Skills Funding Agency,12/01/2017,16-18 Apprenticeships - Centralised Contract Management,Main Funding,PEOPLE & BUSINESS DEVELOPMENT LTD,AP16R_21273,"19,128.81",Programme System File
BIS,Skills Funding Agency,12/01/2017,16-18 Apprenticeships - Centralised Contract Management,Main Funding,PERTEMPS PEOPLE DEVELOPMENT GROUP LTD,AP16R_21265,3592.76,Programme System File
BIS,Skills Funding Agency,12/01/2017,16-18 Apprenticeships - Centralised Contract Management,Main Funding,PETA LTD,AP16R_21001,"70,015.22",Programme System File
BIS,Skills Funding Agency,12/01/2017,16-18 Apprenticeships - Centralised Contract Management,Main Funding,PETERBOROUGH CITY COUNCIL,AP16R_21004,"19,639.00",Programme System File
BIS,Skills Funding Agency,12/01/2017,16-18 Apprenticeships - Centralised Contract Management,Main Funding,PETERBOROUGH REGIONAL COLLEGE,AP16R_21007,"111,701.99",Programme System File
BIS,Skills Funding Agency,12/01/2017,16-18 Apprenticeships - Centralised Contract Management,Main Funding,PGL TRAINING PLUMBING LTD,AP16R_21231,"68,052.38",Programme System File
BIS,Skills Funding Agency,12/01/2017,16-18 Apprenticeships - Centralised Contract Management,Main Funding,PHILIPS HAIR SALONS LTD,AP16R_21008,"28,960.53",Programme System File
BIS,Skills Funding Agency,12/01/2017,16-18 Apprenticeships - Centralised Contract Management,Main Funding,PILOT IMS LTD,AP16R_21009,288.62,Programme System File
BIS,Skills Funding Agency,12/01/2017,16-18 Apprenticeships - Centralised Contract Management,Main Funding,PIZZA HUT (UK) LTD,AP16R_21419,"8,905.35",Programme System File
BIS,Skills Funding Agency,12/01/2017,16-18 Apprenticeships - Centralised Contract Management,Main Funding,PLUMPTON COLLEGE,AP16R_21010,"16,430.10",Programme System File
BIS,Skills Funding Agency,12/01/2017,16-18 Apprenticeships - Centralised Contract Management,Main Funding,PLYMOUTH CITY COUNCIL,AP16R_21025,"2,915.55",Programme System File
BIS,Skills Funding Agency,12/01/2017,16-18 Apprenticeships - Centralised Contract Management,Main Funding,PORTSLADE ALDRIDGE COMMUNITY ACADEMY TRUST,AP16R_21378,"1,700.82",Programme System File
BIS,Skills Funding Agency,12/01/2017,16-18 Apprenticeships - Centralised Contract Management,Main Funding,PORTSMOUTH CITY COUNCIL,AP16R_21021,"3,456.40",Programme System File
BIS,Skills Funding Agency,12/01/2017,16-18 Apprenticeships - Centralised Contract Management,Main Funding,PORTSMOUTH COLLEGE,AP16R_21023,"21,445.00",Programme System File
BIS,Skills Funding Agency,12/01/2017,16-18 Apprenticeships - Centralised Contract Management,Main Funding,POSITIVE OUTCOMES LTD,AP16R_21028,"392,233.21",Programme System File
BIS,Skills Funding Agency,12/01/2017,16-18 Apprenticeships - Centralised Contract Management,Main Funding,POULTEC TRAINING LTD,AP16R_21012,"39,946.32",Programme System File
BIS,Skills Funding Agency,12/01/2017,16-18 Apprenticeships - Centralised Contract Management,Main Funding,PRE SCHOOL LEARNING ALLIANCE,AP16C_4194,"-2,627.82",Programme System File
BIS,Skills Funding Agency,12/01/2017,16-18 Apprenticeships - Centralised Contract Management,Main Funding,PRE SCHOOL LEARNING ALLIANCE,AP16R_20811,"3,169.93",Programme System File
